Effective Date ,Department ,Supplier Name ,Payment Date ,Amount**,Purpose of Spend,Merchant Category ,Card Transaction 
18/10/2019 to 18/11/2019,Adults and Communities,Activityvillage,05/11/2019,13.3,Subscriptions - General,"Hobby, Toy, and Game Shops",GPC
18/10/2019 to 18/11/2019,Adults and Communities,Amazon Prime Amzn.Co.Uk/P,28/10/2019,-6.66,Other Expenditure - General,Unknown,GPC
18/10/2019 to 18/11/2019,Adults and Communities,Amazon Prime*ed2fk9v75,10/11/2019,6.66,Other Expenditure - General,Continuity/Subscription Merchants,GPC
18/10/2019 to 18/11/2019,Adults and Communities,Amazon Prime*oj0rr5v35,05/11/2019,6.66,Subscriptions - General,Continuity/Subscription Merchants,GPC
18/10/2019 to 18/11/2019,Adults and Communities,Amazon.Co.Uk Amazon.Co.Uk,09/11/2019,-3.22,IT Equipment - General,Miscellaneous and Specialty Retail Stores,GPC
18/10/2019 to 18/11/2019,Adults and Communities,Amazon.Co.Uk*4p72q9rq5,30/10/2019,5.83,Display/Conservn/Exhibitions - Exhibitions,Unknown,GPC
18/10/2019 to 18/11/2019,Adults and Communities,Amazon.Co.Uk*9053f9w15,15/11/2019,4.41,Other Expenditure - General,Direct Marketers - Other,GPC
18/10/2019 to 18/11/2019,Adults and Communities,Amazon.Co.Uk*931i86l75 Am,06/11/2019,59.58,Stationery - Pre Press,Miscellaneous and Specialty Retail Stores,GPC
18/10/2019 to 18/11/2019,Adults and Communities,Amazon.Co.Uk*ik67e91d5,31/10/2019,17.37,Other Expenditure - General,Unknown,GPC
18/10/2019 to 18/11/2019,Adults and Communities,Amazon.Co.Uk*mo1px42a4 Am,28/10/2019,10.55,Other Expenditure - General,Unknown,GPC
18/10/2019 to 18/11/2019,Adults and Communities,Amazon.Co.Uk*mo43q4hd4 Am,20/10/2019,10.81,Materials - General,Miscellaneous and Specialty Retail Stores,GPC
18/10/2019 to 18/11/2019,Adults and Communities,Amazon.Co.Uk*mo80p1wa4,05/11/2019,4.96,Provisions - General,Direct Marketers - Other,GPC
18/10/2019 to 18/11/2019,Adults and Communities,Amazon.Co.Uk*mo88q4g44 Am,16/10/2019,11.07,Provisions - General,Miscellaneous and Specialty Retail Stores,GPC
18/10/2019 to 18/11/2019,Adults and Communities,Amazon.Co.Uk*mo9ce86u4,24/10/2019,34.49,Other Expenditure - General,Unknown,GPC
18/10/2019 to 18/11/2019,Adults and Communities,Amazon.Co.Uk*s20kd6zc5 Am,05/11/2019,5.07,Materials - General,Miscellaneous and Specialty Retail Stores,GPC
18/10/2019 to 18/11/2019,Adults and Communities,Amazon.Co.Uk*s20kd6zc5 Am,05/11/2019,15.83,Stationery - General,Miscellaneous and Specialty Retail Stores,GPC
18/10/2019 to 18/11/2019,Adults and Communities,Amazon.Co.Uk*wt8o45b85,05/11/2019,17.48,Display/Conservn/Exhibitions - Exhibitions,Direct Marketers - Other,GPC
18/10/2019 to 18/11/2019,Adults and Communities,Amazon.Co.Uk*xx0ie9pk5,10/11/2019,20.24,Other Equipment & Materials - General,Direct Marketers - Other,GPC
18/10/2019 to 18/11/2019,Adults and Communities,Amazon.Co.Uk*zr6nf9xz5,04/11/2019,19.08,Stationery - General,Direct Marketers - Other,GPC
18/10/2019 to 18/11/2019,Adults and Communities,Amz*partyvision,28/10/2019,-14.99,Other Expenditure - General,Unknown,GPC
18/10/2019 to 18/11/2019,Adults and Communities,Amznmktplace,12/11/2019,29.1,Cleaning Materials - General,Miscellaneous and Specialty Retail Stores,GPC
18/10/2019 to 18/11/2019,Adults and Communities,Amznmktplace,13/11/2019,45,Cleaning Materials - General,Miscellaneous and Specialty Retail Stores,GPC
18/10/2019 to 18/11/2019,Adults and Communities,Amznmktplace,19/10/2019,19.63,Display/Conservn/Exhibitions - Exhibitions,Miscellaneous and Specialty Retail Stores,GPC
18/10/2019 to 18/11/2019,Adults and Communities,Amznmktplace,29/10/2019,11.4,Display/Conservn/Exhibitions - Exhibitions,Unknown,GPC
18/10/2019 to 18/11/2019,Adults and Communities,Amznmktplace,12/11/2019,11.99,Display/Conservn/Exhibitions - Exhibitions,Miscellaneous and Specialty Retail Stores,GPC
18/10/2019 to 18/11/2019,Adults and Communities,Amznmktplace,13/11/2019,9.33,Educational Visits - General,Miscellaneous and Specialty Retail Stores,GPC
18/10/2019 to 18/11/2019,Adults and Communities,Amznmktplace,28/10/2019,24.96,Furniture - General,Unknown,GPC
18/10/2019 to 18/11/2019,Adults and Communities,Amznmktplace,26/10/2019,44.98,General Equipment - General,Unknown,GPC
18/10/2019 to 18/11/2019,Adults and Communities,Amznmktplace,29/10/2019,14.48,General Equipment - General,Unknown,GPC
18/10/2019 to 18/11/2019,Adults and Communities,Amznmktplace,04/11/2019,94.5,General Equipment - General,Miscellaneous and Specialty Retail Stores,GPC
18/10/2019 to 18/11/2019,Adults and Communities,Amznmktplace,07/11/2019,16.98,General Equipment - General,Miscellaneous and Specialty Retail Stores,GPC
18/10/2019 to 18/11/2019,Adults and Communities,Amznmktplace,31/10/2019,14.57,IT Equipment - General,Unknown,GPC
18/10/2019 to 18/11/2019,Adults and Communities,Amznmktplace,12/11/2019,30.59,IT Equipment - General,Miscellaneous and Specialty Retail Stores,GPC
18/10/2019 to 18/11/2019,Adults and Communities,Amznmktplace,14/11/2019,3.33,IT Equipment - General,Miscellaneous and Specialty Retail Stores,GPC
18/10/2019 to 18/11/2019,Adults and Communities,Amznmktplace,15/11/2019,63.96,IT Equipment - General,Miscellaneous and Specialty Retail Stores,GPC
18/10/2019 to 18/11/2019,Adults and Communities,Amznmktplace,18/10/2019,17.46,Materials - General,Miscellaneous and Specialty Retail Stores,GPC
18/10/2019 to 18/11/2019,Adults and Communities,Amznmktplace,24/10/2019,5.42,Materials - General,Unknown,GPC
18/10/2019 to 18/11/2019,Adults and Communities,Amznmktplace,07/11/2019,33.33,Materials - General,Miscellaneous and Specialty Retail Stores,GPC
18/10/2019 to 18/11/2019,Adults and Communities,Amznmktplace,15/11/2019,9.45,Materials - General,Miscellaneous and Specialty Retail Stores,GPC
18/10/2019 to 18/11/2019,Adults and Communities,Amznmktplace,15/11/2019,15.59,Materials - General,Miscellaneous and Specialty Retail Stores,GPC
18/10/2019 to 18/11/2019,Adults and Communities,Amznmktplace,17/11/2019,56.2,Materials - General,Miscellaneous and Specialty Retail Stores,GPC
18/10/2019 to 18/11/2019,Adults and Communities,Amznmktplace,17/11/2019,35.08,Materials - General,Miscellaneous and Specialty Retail Stores,GPC
18/10/2019 to 18/11/2019,Adults and Communities,Amznmktplace,17/10/2019,60.23,Operational Equipment - DDA,Miscellaneous and Specialty Retail Stores,GPC
18/10/2019 to 18/11/2019,Adults and Communities,Amznmktplace,01/11/2019,111.93,Operational Equipment - DDA,Miscellaneous and Specialty Retail Stores,GPC
18/10/2019 to 18/11/2019,Adults and Communities,Amznmktplace,11/11/2019,13.17,Operational Equipment - DDA,Miscellaneous and Specialty Retail Stores,GPC
18/10/2019 to 18/11/2019,Adults and Communities,Amznmktplace,24/10/2019,3.99,Operational Equipment - General,Unknown,GPC
18/10/2019 to 18/11/2019,Adults and Communities,Amznmktplace,10/11/2019,18.13,Operational Equipment - General,Miscellaneous and Specialty Retail Stores,GPC
18/10/2019 to 18/11/2019,Adults and Communities,Amznmktplace,17/10/2019,211.11,Other Equipment & Materials - General,Miscellaneous and Specialty Retail Stores,GPC
18/10/2019 to 18/11/2019,Adults and Communities,Amznmktplace,30/10/2019,59.68,Other Equipment & Materials - General,Unknown,GPC
18/10/2019 to 18/11/2019,Adults and Communities,Amznmktplace,01/11/2019,1.96,Other Equipment & Materials - General,Miscellaneous and Specialty Retail Stores,GPC
18/10/2019 to 18/11/2019,Adults and Communities,Amznmktplace,02/11/2019,22.36,Other Equipment & Materials - General,Miscellaneous and Specialty Retail Stores,GPC
18/10/2019 to 18/11/2019,Adults and Communities,Amznmktplace,12/11/2019,16.15,Other Equipment & Materials - General,Miscellaneous and Specialty Retail Stores,GPC
18/10/2019 to 18/11/2019,Adults and Communities,Amznmktplace,18/10/2019,25.46,Other Expenditure - General,Miscellaneous and Specialty Retail Stores,GPC
18/10/2019 to 18/11/2019,Adults and Communities,Amznmktplace,22/10/2019,95.98,Other Expenditure - General,Miscellaneous and Specialty Retail Stores,GPC
18/10/2019 to 18/11/2019,Adults and Communities,Amznmktplace,24/10/2019,14.99,Other Expenditure - General,Unknown,GPC
18/10/2019 to 18/11/2019,Adults and Communities,Amznmktplace,27/10/2019,69.07,Other Expenditure - General,Unknown,GPC
18/10/2019 to 18/11/2019,Adults and Communities,Amznmktplace,28/10/2019,16.95,Other Expenditure - General,Unknown,GPC
18/10/2019 to 18/11/2019,Adults and Communities,Amznmktplace,28/10/2019,14.99,Other Expenditure - General,Unknown,GPC
18/10/2019 to 18/11/2019,Adults and Communities,Amznmktplace,14/11/2019,32.36,Other Expenditure - General,Miscellaneous and Specialty Retail Stores,GPC
18/10/2019 to 18/11/2019,Adults and Communities,Amznmktplace,14/11/2019,27.56,Other Expenditure - General,Miscellaneous and Specialty Retail Stores,GPC
18/10/2019 to 18/11/2019,Adults and Communities,Amznmktplace,14/11/2019,139.95,Other Expenditure - General,Miscellaneous and Specialty Retail Stores,GPC
18/10/2019 to 18/11/2019,Adults and Communities,Amznmktplace,10/11/2019,10.4,Other Services - General,Miscellaneous and Specialty Retail Stores,GPC
18/10/2019 to 18/11/2019,Adults and Communities,Amznmktplace,20/10/2019,17.74,Provisions - General,Miscellaneous and Specialty Retail Stores,GPC
18/10/2019 to 18/11/2019,Adults and Communities,Amznmktplace,20/10/2019,9.17,Provisions - General,Miscellaneous and Specialty Retail Stores,GPC
18/10/2019 to 18/11/2019,Adults and Communities,Amznmktplace,22/10/2019,9.08,Provisions - General,Miscellaneous and Specialty Retail Stores,GPC
18/10/2019 to 18/11/2019,Adults and Communities,Amznmktplace,01/11/2019,34.52,Provisions - General,Miscellaneous and Specialty Retail Stores,GPC
18/10/2019 to 18/11/2019,Adults and Communities,Amznmktplace,14/11/2019,43.95,Publicity/Marketing - General,Miscellaneous and Specialty Retail Stores,GPC
18/10/2019 to 18/11/2019,Adults and Communities,Amznmktplace,22/10/2019,43.4,Stationery - General,Miscellaneous and Specialty Retail Stores,GPC
18/10/2019 to 18/11/2019,Adults and Communities,Amznmktplace,25/10/2019,11.63,Stationery - General,Unknown,GPC
18/10/2019 to 18/11/2019,Adults and Communities,Amznmktplace,27/10/2019,106.37,Stationery - General,Unknown,GPC
18/10/2019 to 18/11/2019,Adults and Communities,Amznmktplace,28/10/2019,34.86,Stationery - General,Unknown,GPC
18/10/2019 to 18/11/2019,Adults and Communities,Amznmktplace,31/10/2019,10.85,Stationery - General,Unknown,GPC
18/10/2019 to 18/11/2019,Adults and Communities,Amznmktplace,11/11/2019,13.91,Stationery - General,Miscellaneous and Specialty Retail Stores,GPC
18/10/2019 to 18/11/2019,Adults and Communities,Amznmktplace,13/11/2019,20.39,Stationery - General,Miscellaneous and Specialty Retail Stores,GPC
18/10/2019 to 18/11/2019,Adults and Communities,Amznmktplace,13/11/2019,15.92,Stationery - General,Miscellaneous and Specialty Retail Stores,GPC
18/10/2019 to 18/11/2019,Adults and Communities,Amznmktplace,14/11/2019,32.95,Stationery - General,Miscellaneous and Specialty Retail Stores,GPC
18/10/2019 to 18/11/2019,Adults and Communities,Amznmktplace Amazon.Co.Uk,08/11/2019,20.45,Cleaning Materials - General,Miscellaneous and Specialty Retail Stores,GPC
18/10/2019 to 18/11/2019,Adults and Communities,Amznmktplace Amazon.Co.Uk,15/11/2019,30.98,Materials - General,Miscellaneous and Specialty Retail Stores,GPC
18/10/2019 to 18/11/2019,Adults and Communities,Amznmktplace Amazon.Co.Uk,12/11/2019,26.64,Protective Clothing & Uniforms - General,Miscellaneous and Specialty Retail Stores,GPC
18/10/2019 to 18/11/2019,Adults and Communities,Amznmktplace Amazon.Co.Uk,30/10/2019,36.84,Provisions - General,Unknown,GPC
18/10/2019 to 18/11/2019,Adults and Communities,Amznmktplace Amazon.Co.Uk,17/10/2019,104.88,Stationery - General,Miscellaneous and Specialty Retail Stores,GPC
18/10/2019 to 18/11/2019,Adults and Communities,Amznmktplace Amazon.Co.Uk,17/10/2019,23.47,Stationery - General,Miscellaneous and Specialty Retail Stores,GPC
18/10/2019 to 18/11/2019,Adults and Communities,Amznmktplace Amazon.Co.Uk,19/10/2019,136.93,Stationery - General,Miscellaneous and Specialty Retail Stores,GPC
18/10/2019 to 18/11/2019,Adults and Communities,Amznmktplace Amazon.Co.Uk,21/10/2019,96.38,Stationery - General,Miscellaneous and Specialty Retail Stores,GPC
18/10/2019 to 18/11/2019,Adults and Communities,Amznmktplace Amazon.Co.Uk,22/10/2019,16.63,Stationery - General,Miscellaneous and Specialty Retail Stores,GPC
18/10/2019 to 18/11/2019,Adults and Communities,Amznmktplace Amazon.Co.Uk,23/10/2019,6.99,Stationery - General,Miscellaneous and Specialty Retail Stores,GPC
18/10/2019 to 18/11/2019,Adults and Communities,Amznmktplace Amazon.Co.Uk,24/10/2019,109.53,Stationery - General,Unknown,GPC
18/10/2019 to 18/11/2019,Adults and Communities,Amznmktplace Amazon.Co.Uk,12/11/2019,76.51,Stationery - General,Miscellaneous and Specialty Retail Stores,GPC
18/10/2019 to 18/11/2019,Adults and Communities,Ao Retail Limited,13/11/2019,306.5,General Equipment - General,Household Appliance Stores,GPC
18/10/2019 to 18/11/2019,Adults and Communities,Asda Groceries Online,18/10/2019,97.14,Provisions - General,"Grocery Stores, Supermarkets",GPC
18/10/2019 to 18/11/2019,Adults and Communities,Asda Groceries Online,18/10/2019,-1.88,Provisions - General,"Grocery Stores, Supermarkets",GPC
18/10/2019 to 18/11/2019,Adults and Communities,Asda Groceries Online,19/10/2019,5,Provisions - General,"Grocery Stores, Supermarkets",GPC
18/10/2019 to 18/11/2019,Adults and Communities,Asda Groceries Online,21/10/2019,-0.17,Provisions - General,"Grocery Stores, Supermarkets",GPC
18/10/2019 to 18/11/2019,Adults and Communities,Asda Groceries Online,21/10/2019,190.11,Provisions - General,"Grocery Stores, Supermarkets",GPC
18/10/2019 to 18/11/2019,Adults and Communities,Asda Groceries Online,25/10/2019,-0.02,Provisions - General,Unknown,GPC
18/10/2019 to 18/11/2019,Adults and Communities,Asda Groceries Online,25/10/2019,160.01,Provisions - General,Unknown,GPC
18/10/2019 to 18/11/2019,Adults and Communities,Asda Groceries Online,28/10/2019,217.71,Provisions - General,Unknown,GPC
18/10/2019 to 18/11/2019,Adults and Communities,Asda Groceries Online,28/10/2019,-1.79,Provisions - General,Unknown,GPC
18/10/2019 to 18/11/2019,Adults and Communities,Asda Groceries Online,01/11/2019,-1.44,Provisions - General,"Grocery Stores, Supermarkets",GPC
18/10/2019 to 18/11/2019,Adults and Communities,Asda Groceries Online,01/11/2019,139.5,Provisions - General,"Grocery Stores, Supermarkets",GPC
18/10/2019 to 18/11/2019,Adults and Communities,Asda Groceries Online,04/11/2019,115.47,Provisions - General,"Grocery Stores, Supermarkets",GPC
18/10/2019 to 18/11/2019,Adults and Communities,Asda Groceries Online,04/11/2019,-0.35,Provisions - General,"Grocery Stores, Supermarkets",GPC
18/10/2019 to 18/11/2019,Adults and Communities,Asda Groceries Online,08/11/2019,145.02,Provisions - General,"Grocery Stores, Supermarkets",GPC
18/10/2019 to 18/11/2019,Adults and Communities,Asda Groceries Online,11/11/2019,154.94,Provisions - General,"Grocery Stores, Supermarkets",GPC
18/10/2019 to 18/11/2019,Adults and Communities,Asda Groceries Online,11/11/2019,0.08,Provisions - General,"Grocery Stores, Supermarkets",GPC
18/10/2019 to 18/11/2019,Adults and Communities,Asda Groceries Online,15/11/2019,77.11,Provisions - General,"Grocery Stores, Supermarkets",GPC
18/10/2019 to 18/11/2019,Adults and Communities,Asda Groceries Online,15/11/2019,-0.03,Provisions - General,"Grocery Stores, Supermarkets",GPC
18/10/2019 to 18/11/2019,Adults and Communities,Asda Max,11/11/2019,40,Stationery - General,Photographic Studios,GPC
18/10/2019 to 18/11/2019,Adults and Communities,Asda Stores 4477,26/10/2019,3.49,Materials - General,Unknown,GPC
18/10/2019 to 18/11/2019,Adults and Communities,Asda Stores 4477,30/10/2019,3.58,Materials - General,Unknown,GPC
18/10/2019 to 18/11/2019,Adults and Communities,Asda Stores 4477,13/11/2019,0.52,Materials - General,"Grocery Stores, Supermarkets",GPC
18/10/2019 to 18/11/2019,Adults and Communities,Asda Stores 4533,04/11/2019,7.6,Client/Volunteers - General,"Grocery Stores, Supermarkets",GPC
18/10/2019 to 18/11/2019,Adults and Communities,Asda Superstore,29/10/2019,23.9,Materials - General,Unknown,GPC
18/10/2019 to 18/11/2019,Adults and Communities,Asda Superstore,28/10/2019,24,Other Services - General,Unknown,GPC
18/10/2019 to 18/11/2019,Adults and Communities,Asda Superstore,18/10/2019,21.89,Provisions - General,"Grocery Stores, Supermarkets",GPC
18/10/2019 to 18/11/2019,Adults and Communities,Asda Superstore,19/10/2019,15,Provisions - General,"Grocery Stores, Supermarkets",GPC
18/10/2019 to 18/11/2019,Adults and Communities,Asda Superstore,07/11/2019,17.5,Provisions - General,"Grocery Stores, Supermarkets",GPC
18/10/2019 to 18/11/2019,Adults and Communities,Asda Superstore,10/11/2019,11.25,Provisions - General,"Grocery Stores, Supermarkets",GPC
18/10/2019 to 18/11/2019,Adults and Communities,Asda Superstore,11/11/2019,72.48,Provisions - General,"Grocery Stores, Supermarkets",GPC
18/10/2019 to 18/11/2019,Adults and Communities,Asda Superstore,13/11/2019,33.46,Provisions - General,"Grocery Stores, Supermarkets",GPC
18/10/2019 to 18/11/2019,Adults and Communities,Asda Superstore,31/10/2019,2,Stationery - General,Unknown,GPC
18/10/2019 to 18/11/2019,Adults and Communities,Aubreyfalls,01/11/2019,130,Materials - General,Miscellaneous House Furnishing Specialty Shops,GPC
18/10/2019 to 18/11/2019,Adults and Communities,B&m Retail Ltd,13/11/2019,4.98,Other Expenditure - General,Discount Stores,GPC
18/10/2019 to 18/11/2019,Adults and Communities,B&m Retail Ltd,29/10/2019,4.86,Provisions - General,Unknown,GPC
18/10/2019 to 18/11/2019,Adults and Communities,B&m Retail Ltd,07/11/2019,28.82,Provisions - General,Discount Stores,GPC
18/10/2019 to 18/11/2019,Adults and Communities,B&m Retail Ltd,15/11/2019,14.8,Provisions - General,Discount Stores,GPC
18/10/2019 to 18/11/2019,Adults and Communities,Baker Ross,05/11/2019,14.1,Publicity/Marketing - General,"Artist Supply Stores, Craft Shops",GPC
18/10/2019 to 18/11/2019,Adults and Communities,Bc.Basecamp 2 2997305,04/11/2019,15.53,Other Services - General,Membership Organizations-Not Elsewhere Classified,GPC
18/10/2019 to 18/11/2019,Adults and Communities,Belper North Mill Trus,29/10/2019,7,Public Transport -  Staff - General,Unknown,GPC
18/10/2019 to 18/11/2019,Adults and Communities,Blackbox Av,04/11/2019,130,Grounds Maint-Non Contract - General,"RADIO, TELEVISION, AND STEREO STORES (ELECTRONIC STORES)",GPC
18/10/2019 to 18/11/2019,Adults and Communities,Bobby S,21/10/2019,8.18,Provisions - General,"Eating Places, Restaurants",GPC
18/10/2019 to 18/11/2019,Adults and Communities,Boots 0038,28/10/2019,24,Stationery - General,Unknown,GPC
18/10/2019 to 18/11/2019,Adults and Communities,Bt Shop,30/10/2019,76.6,Telephones - General,Unknown,GPC
18/10/2019 to 18/11/2019,Adults and Communities,Camaloon,08/11/2019,49.73,Publicity/Marketing - General,Men's And Women's Clothing Stores,GPC
18/10/2019 to 18/11/2019,Adults and Communities,Central Eng Coop,25/10/2019,12,Cleaning Materials - General,Unknown,GPC
18/10/2019 to 18/11/2019,Adults and Communities,Central Eng Coop,17/10/2019,3.92,Materials - General,Department Stores,GPC
18/10/2019 to 18/11/2019,Adults and Communities,Central Eng Coop,09/11/2019,36.69,Provisions - General,Department Stores,GPC
18/10/2019 to 18/11/2019,Adults and Communities,Central Eng Coop,14/11/2019,8.6,Provisions - General,Department Stores,GPC
18/10/2019 to 18/11/2019,Adults and Communities,Charnwood Borough Council,17/10/2019,6,Casual/Essential - General,Automobile Parking Lots and Garages,GPC
18/10/2019 to 18/11/2019,Adults and Communities,Charnwood Borough Council,21/10/2019,0.6,Casual/Essential - General,Automobile Parking Lots and Garages,GPC
18/10/2019 to 18/11/2019,Adults and Communities,Charnwood Borough Council,21/10/2019,1.6,Casual/Essential - General,Automobile Parking Lots and Garages,GPC
18/10/2019 to 18/11/2019,Adults and Communities,Charnwood Borough Council,01/11/2019,1.6,Casual/Essential - General,Automobile Parking Lots and Garages,GPC
18/10/2019 to 18/11/2019,Adults and Communities,Charnwood Borough Council,07/11/2019,3.2,Casual/Essential - General,Automobile Parking Lots and Garages,GPC
18/10/2019 to 18/11/2019,Adults and Communities,Charnwood Borough Council,11/11/2019,6,Casual/Essential - General,Automobile Parking Lots and Garages,GPC
18/10/2019 to 18/11/2019,Adults and Communities,Charnwood Borough Council,14/11/2019,6,Casual/Essential - General,Automobile Parking Lots and Garages,GPC
18/10/2019 to 18/11/2019,Adults and Communities,Charnwood Borough Council,14/11/2019,6,Casual/Essential - General,Automobile Parking Lots and Garages,GPC
18/10/2019 to 18/11/2019,Adults and Communities,Charnwood Borough Council,14/11/2019,6,Casual/Essential - General,Automobile Parking Lots and Garages,GPC
18/10/2019 to 18/11/2019,Adults and Communities,Charnwood Borough Council,14/11/2019,6,Casual/Essential - General,Automobile Parking Lots and Garages,GPC
18/10/2019 to 18/11/2019,Adults and Communities,Charnwood Borough Council,14/11/2019,4.08,Client/Volunteers - General,Automobile Parking Lots and Garages,GPC
18/10/2019 to 18/11/2019,Adults and Communities,Charnwood Borough Council,14/11/2019,5,Client/Volunteers - General,Automobile Parking Lots and Garages,GPC
18/10/2019 to 18/11/2019,Adults and Communities,Contactless.Travel,31/10/2019,3.8,Public Transport -  Staff - General,Unknown,GPC
18/10/2019 to 18/11/2019,Adults and Communities,Contactless.Travel,12/11/2019,3.8,Public Transport -  Staff - General,Local and Suburban Commuter Pass Trans,GPC
18/10/2019 to 18/11/2019,Adults and Communities,Currys S/s Derby,21/10/2019,339.99,Other Expenditure - General,"RADIO, TELEVISION, AND STEREO STORES (ELECTRONIC STORES)",GPC
18/10/2019 to 18/11/2019,Adults and Communities,Demco Europe,30/10/2019,522,Furniture - General,Unknown,GPC
18/10/2019 to 18/11/2019,Adults and Communities,Digital Id,17/10/2019,21.48,Stationery - General,"Computers, Computer Peripheral Equipment, Software",GPC
18/10/2019 to 18/11/2019,Adults and Communities,Dvla Vehicle Tax,11/11/2019,262.5,Road Licences - General,Government Services-Not Elsewhere Classified,GPC
18/10/2019 to 18/11/2019,Adults and Communities,East Midlands Trai,06/11/2019,9.8,Casual/Essential - General,Passenger Railways,GPC
18/10/2019 to 18/11/2019,Adults and Communities,East Midlands Trai,07/11/2019,9.6,Casual/Essential - General,Passenger Railways,GPC
18/10/2019 to 18/11/2019,Adults and Communities,East Midlands Trai,12/11/2019,9.6,Casual/Essential - General,Passenger Railways,GPC
18/10/2019 to 18/11/2019,Adults and Communities,East Midlands Trai,15/11/2019,9.8,Casual/Essential - General,Passenger Railways,GPC
18/10/2019 to 18/11/2019,Adults and Communities,East Midlands Trai,07/11/2019,26.8,Display/Conservn/Exhibitions - Exhibitions,Passenger Railways,GPC
18/10/2019 to 18/11/2019,Adults and Communities,Espo,07/11/2019,29.35,Stationery - General,Government Services-Not Elsewhere Classified,GPC
18/10/2019 to 18/11/2019,Adults and Communities,Euroffice.Co.Uk,12/11/2019,75.83,Operational Equipment - DDA,"Stationery, Office, and School Supply Stores",GPC
18/10/2019 to 18/11/2019,Adults and Communities,Facebk *pa93gpj8r2,31/10/2019,15,Publicity/Marketing - General,Unknown,GPC
18/10/2019 to 18/11/2019,Adults and Communities,Facebk Aamfcns522,18/11/2019,38,Publicity/Marketing - General,Advertising Services,GPC
18/10/2019 to 18/11/2019,Adults and Communities,Fast Key Services Limi,25/10/2019,6.05,General Equipment - General,Business Services-Not Elsewhere Classified,GPC
18/10/2019 to 18/11/2019,Adults and Communities,Fast Key Services Limi,30/10/2019,11.03,General Equipment - General,Unknown,GPC
18/10/2019 to 18/11/2019,Adults and Communities,Fast Key Services Limi,31/10/2019,21.82,General Equipment - General,Unknown,GPC
18/10/2019 to 18/11/2019,Adults and Communities,Fast Key Services Limi,14/11/2019,32.16,General Equipment - General,Business Services-Not Elsewhere Classified,GPC
18/10/2019 to 18/11/2019,Adults and Communities,Fast Key Services Limi,22/10/2019,5.16,Other Expenditure - General,Business Services-Not Elsewhere Classified,GPC
18/10/2019 to 18/11/2019,Adults and Communities,Fast Key Services Limi,22/10/2019,1.07,Postal Services - General,Business Services-Not Elsewhere Classified,GPC
18/10/2019 to 18/11/2019,Adults and Communities,First Leicester,23/10/2019,2.4,Public Transport -  Staff - General,Unknown,GPC
18/10/2019 to 18/11/2019,Adults and Communities,Firstaid4less.Co.Uk,29/10/2019,66.84,Other Expenditure - General,Unknown,GPC
18/10/2019 to 18/11/2019,Adults and Communities,Fs *android Kiosk,11/11/2019,6,Display/Conservn/Exhibitions - Exhibitions,Digital Goods,GPC
18/10/2019 to 18/11/2019,Adults and Communities,Gen Register Office,04/11/2019,11,Other Expenditure - General,Government Services-Not Elsewhere Classified,GPC
18/10/2019 to 18/11/2019,Adults and Communities,Hachette UK Distributi,11/11/2019,250,Stationery - General,CombinationMail/Phones and Retail Merchants,GPC
18/10/2019 to 18/11/2019,Adults and Communities,Harborough District Co,17/10/2019,6,Casual/Essential - General,Automobile Parking Lots and Garages,GPC
18/10/2019 to 18/11/2019,Adults and Communities,Harborough District Co,18/10/2019,6,Casual/Essential - General,Automobile Parking Lots and Garages,GPC
18/10/2019 to 18/11/2019,Adults and Communities,Harborough District Co,21/10/2019,1.5,Casual/Essential - General,Automobile Parking Lots and Garages,GPC
18/10/2019 to 18/11/2019,Adults and Communities,Harborough District Co,01/11/2019,2.5,Casual/Essential - General,Automobile Parking Lots and Garages,GPC
18/10/2019 to 18/11/2019,Adults and Communities,Harborough District Co,04/11/2019,6,Casual/Essential - General,Automobile Parking Lots and Garages,GPC
18/10/2019 to 18/11/2019,Adults and Communities,Harborough District Co,15/11/2019,5,Casual/Essential - General,Automobile Parking Lots and Garages,GPC
18/10/2019 to 18/11/2019,Adults and Communities,Home Bargains Coalvill,29/10/2019,14.65,Other Expenditure - General,Unknown,GPC
18/10/2019 to 18/11/2019,Adults and Communities,Horizon Sainsburys Hin,12/11/2019,0.6,Casual/Essential - Casual,Automobile Parking Lots and Garages,GPC
18/10/2019 to 18/11/2019,Adults and Communities,Interflora British Uni,04/11/2019,39.92,Materials - General,Florists,GPC
18/10/2019 to 18/11/2019,Adults and Communities,Interflora British Uni,04/11/2019,34,Other Expenditure - General,Continuity/Subscription Merchants,GPC
18/10/2019 to 18/11/2019,Adults and Communities,Iz *bodgers Farm,15/11/2019,36,Furniture - General,Miscellaneous and Specialty Retail Stores,GPC
18/10/2019 to 18/11/2019,Adults and Communities,Iz *stage 2 Coffee,04/11/2019,4.8,Subsistence - General,"Eating Places, Restaurants",GPC
18/10/2019 to 18/11/2019,Adults and Communities,Lakeland Limited,20/10/2019,16.66,Cleaning Materials - General,Miscellaneous General Merchandise Stores,GPC
18/10/2019 to 18/11/2019,Adults and Communities,Lcc Catering Services,18/10/2019,5.45,Other Expenditure - General,Government Services-Not Elsewhere Classified,GPC
18/10/2019 to 18/11/2019,Adults and Communities,Lcc Heritage Services,05/11/2019,2,Other Expenditure - General,Government Services-Not Elsewhere Classified,GPC
18/10/2019 to 18/11/2019,Adults and Communities,Leic Thurmast,22/10/2019,74.99,Aids & Adaptations - Minor Adaptations,Unknown,GPC
18/10/2019 to 18/11/2019,Adults and Communities,Leic Thurmast,22/10/2019,4.58,Aids & Adaptations - Minor Adaptations,Unknown,GPC
18/10/2019 to 18/11/2019,Adults and Communities,Leicester City Council,22/10/2019,3.33,Casual/Essential - General,Automobile Parking Lots and Garages,GPC
18/10/2019 to 18/11/2019,Adults and Communities,Lidl Gb South Wigston,30/10/2019,29.99,Display/Conservn/Exhibitions - Exhibitions,Unknown,GPC
18/10/2019 to 18/11/2019,Adults and Communities,Links International,12/11/2019,25,Materials - General,Computer Software Stores,GPC
18/10/2019 to 18/11/2019,Adults and Communities,Loros,17/10/2019,10.45,Display/Conservn/Exhibitions - Exhibitions,Charitable and Social Service Organizations,GPC
18/10/2019 to 18/11/2019,Adults and Communities,Loughborough Endowed S,31/10/2019,278.4,Hospitality - General,Unknown,GPC
18/10/2019 to 18/11/2019,Adults and Communities,Martin McColl,15/11/2019,2.25,Other Expenditure - General,"Miscellaneous Food Stores-Convenience Stores, Mark",GPC
18/10/2019 to 18/11/2019,Adults and Communities,Mercury News 63933,12/11/2019,102.7,Books - General,"Grocery Stores, Supermarkets",GPC
18/10/2019 to 18/11/2019,Adults and Communities,Ncp Limited,16/10/2019,5.25,Casual/Essential - General,Automobile Parking Lots and Garages,GPC
18/10/2019 to 18/11/2019,Adults and Communities,Ncp Limited,22/10/2019,3.83,Casual/Essential - General,Automobile Parking Lots and Garages,GPC
18/10/2019 to 18/11/2019,Adults and Communities,Ncp Limited,23/10/2019,5.25,Casual/Essential - General,Automobile Parking Lots and Garages,GPC
18/10/2019 to 18/11/2019,Adults and Communities,Ncp Limited,23/10/2019,5.25,Casual/Essential - General,Automobile Parking Lots and Garages,GPC
18/10/2019 to 18/11/2019,Adults and Communities,Ncp Limited,23/10/2019,2.58,Casual/Essential - General,Automobile Parking Lots and Garages,GPC
18/10/2019 to 18/11/2019,Adults and Communities,Ncp Limited,05/11/2019,6.3,Casual/Essential - General,Automobile Parking Lots and Garages,GPC
18/10/2019 to 18/11/2019,Adults and Communities,Ncp Limited,06/11/2019,2.58,Casual/Essential - General,Automobile Parking Lots and Garages,GPC
18/10/2019 to 18/11/2019,Adults and Communities,Oadby & Wigston B.Coun,15/11/2019,93,Other Expenditure - General,Government Services-Not Elsewhere Classified,GPC
18/10/2019 to 18/11/2019,Adults and Communities,Oakhouse Foods,26/10/2019,90.91,Catering Equipment - General,Unknown,GPC
18/10/2019 to 18/11/2019,Adults and Communities,Ocado Retail Limit,05/11/2019,9.99,Provisions - General,"Grocery Stores, Supermarkets",GPC
18/10/2019 to 18/11/2019,Adults and Communities,Oxfam F1715,01/11/2019,3.46,Display/Conservn/Exhibitions - Exhibitions,Charitable and Social Service Organizations,GPC
18/10/2019 to 18/11/2019,Adults and Communities,Pavilion Publishing An,14/11/2019,48,Conference - General,"Books, Periodicals, and Newspapers",GPC
18/10/2019 to 18/11/2019,Adults and Communities,Paypal *dresstextil,29/10/2019,35,Public Transport -  Staff - General,Unknown,GPC
18/10/2019 to 18/11/2019,Adults and Communities,Paypal *ebay Gibbonsjo,23/10/2019,15.67,Display/Conservn/Exhibitions - General,Miscellaneous and Specialty Retail Stores,GPC
18/10/2019 to 18/11/2019,Adults and Communities,Paypal *ebay Harding20,17/10/2019,74,Display/Conservn/Exhibitions - General,Miscellaneous and Specialty Retail Stores,GPC
18/10/2019 to 18/11/2019,Adults and Communities,Paypal *ebay Jdservice,08/11/2019,7.99,Other Expenditure - General,Unknown,GPC
18/10/2019 to 18/11/2019,Adults and Communities,Paypal *ebay Jdservice,08/11/2019,17.25,Other Expenditure - General,Unknown,GPC
18/10/2019 to 18/11/2019,Adults and Communities,Paypal *ebay Jinchenea,06/11/2019,26.79,Other Equipment & Materials - General,Miscellaneous and Specialty Retail Stores,GPC
18/10/2019 to 18/11/2019,Adults and Communities,Paypal *ebay Kingdomfa,06/11/2019,7.99,Other Equipment & Materials - General,Women's Ready to Wear Shoes,GPC
18/10/2019 to 18/11/2019,Adults and Communities,Paypal *ebay Laser1014,06/11/2019,16.96,Other Equipment & Materials - General,Variety Stores,GPC
18/10/2019 to 18/11/2019,Adults and Communities,Paypal *ebay Michaelhi,06/11/2019,6.99,Display/Conservn/Exhibitions - General,Book Stores,GPC
18/10/2019 to 18/11/2019,Adults and Communities,Paypal *ebay Sstraiton,06/11/2019,8.98,Materials - General,Miscellaneous and Specialty Retail Stores,GPC
18/10/2019 to 18/11/2019,Adults and Communities,Paypal *ebay Webstuff,06/11/2019,6.39,Other Equipment & Materials - General,Miscellaneous and Specialty Retail Stores,GPC
18/10/2019 to 18/11/2019,Adults and Communities,Paypal *eco Craft,22/10/2019,2.5,Stationery - General,Antique Shops,GPC
18/10/2019 to 18/11/2019,Adults and Communities,Paypal *eco Craft,12/11/2019,82.91,Stationery - General,Antique Shops,GPC
18/10/2019 to 18/11/2019,Adults and Communities,Paypal *iarecording,14/11/2019,20,Display/Conservn/Exhibitions - Exhibitions,Chemicals and Allied Products Not Elsewhere Classi,GPC
18/10/2019 to 18/11/2019,Adults and Communities,Paypal *tassellhors,01/11/2019,15.84,Other Equipment & Materials - General,"Hobby, Toy, and Game Shops",GPC
18/10/2019 to 18/11/2019,Adults and Communities,Post Office Counter,18/10/2019,13.14,Postal Services - General,Postage Stamps,GPC
18/10/2019 to 18/11/2019,Adults and Communities,Poundland Ltd,19/10/2019,4,Provisions - General,Discount Stores,GPC
18/10/2019 to 18/11/2019,Adults and Communities,Pp*stevewagsta,15/11/2019,6,Furniture - General,"Artist Supply Stores, Craft Shops",GPC
18/10/2019 to 18/11/2019,Adults and Communities,Pp*stevewagsta,15/11/2019,40,Other Equipment & Materials - General,"Artist Supply Stores, Craft Shops",GPC
18/10/2019 to 18/11/2019,Adults and Communities,Premier Farnell,11/11/2019,1990,Operational Equipment - General,Electrical Parts and Equipment,GPC
18/10/2019 to 18/11/2019,Adults and Communities,Punjab Times Trust Ltd,05/11/2019,95,Publicity/Marketing - Information Provision,Advertising Services,GPC
18/10/2019 to 18/11/2019,Adults and Communities,Royal Mail Online Shop,01/11/2019,393,Postal Services - General,Postage Stamps,GPC
18/10/2019 to 18/11/2019,Adults and Communities,Ryman,13/11/2019,5.83,Display/Conservn/Exhibitions - Exhibitions,"Stationery, Office, and School Supply Stores",GPC
18/10/2019 to 18/11/2019,Adults and Communities,Ryman,05/11/2019,7.49,Provisions - General,"Stationery, Office, and School Supply Stores",GPC
18/10/2019 to 18/11/2019,Adults and Communities,Safe.Co.Uk,17/10/2019,139,IT Equipment - Purchase - Hardware,"Stationery, Office, and School Supply Stores",GPC
18/10/2019 to 18/11/2019,Adults and Communities,Sainsburys Local,31/10/2019,9.45,Provisions - General,Unknown,GPC
18/10/2019 to 18/11/2019,Adults and Communities,Sainsburys Local,16/11/2019,3,Provisions - General,"Grocery Stores, Supermarkets",GPC
18/10/2019 to 18/11/2019,Adults and Communities,Sainsburys S/mkt,28/10/2019,31.1,Materials - General,Unknown,GPC
18/10/2019 to 18/11/2019,Adults and Communities,Sainsburys S/mkt,18/10/2019,52.1,Provisions - General,"Grocery Stores, Supermarkets",GPC
18/10/2019 to 18/11/2019,Adults and Communities,Sainsburys S/mkt,19/10/2019,6,Provisions - General,"Grocery Stores, Supermarkets",GPC
18/10/2019 to 18/11/2019,Adults and Communities,Sainsburys S/mkt,01/11/2019,104.44,Provisions - General,"Grocery Stores, Supermarkets",GPC
18/10/2019 to 18/11/2019,Adults and Communities,Sainsburys S/mkt,06/11/2019,62.33,Provisions - General,"Grocery Stores, Supermarkets",GPC
18/10/2019 to 18/11/2019,Adults and Communities,Sainsburys S/mkts,07/11/2019,3.66,Display/Conservn/Exhibitions - General,"Grocery Stores, Supermarkets",GPC
18/10/2019 to 18/11/2019,Adults and Communities,Sainsburys S/mkts,12/11/2019,4.8,Materials - General,"Grocery Stores, Supermarkets",GPC
18/10/2019 to 18/11/2019,Adults and Communities,Sainsburys S/mkts,12/11/2019,2.5,Operational Equipment - General,"Grocery Stores, Supermarkets",GPC
18/10/2019 to 18/11/2019,Adults and Communities,Sainsburys S/mkts,27/10/2019,7.1,Provisions - General,Unknown,GPC
18/10/2019 to 18/11/2019,Adults and Communities,Sainsburys S/mkts,01/11/2019,29.28,Provisions - General,"Grocery Stores, Supermarkets",GPC
18/10/2019 to 18/11/2019,Adults and Communities,Sainsburys S/mkts,05/11/2019,7.32,Provisions - General,"Grocery Stores, Supermarkets",GPC
18/10/2019 to 18/11/2019,Adults and Communities,Screwfix Coalville,21/10/2019,118.31,Display/Conservn/Exhibitions - Exhibitions,Unknown,GPC
18/10/2019 to 18/11/2019,Adults and Communities,Screwfix Coalville,25/10/2019,83.32,Protective Clothing & Uniforms - General,Unknown,GPC
18/10/2019 to 18/11/2019,Adults and Communities,Screwfix Market Harboroug,18/10/2019,9.99,Display/Conservn/Exhibitions - Exhibitions,"Building Materials, Lumber Stores",GPC
18/10/2019 to 18/11/2019,Adults and Communities,Specialist Crafts Ltd,22/10/2019,31.95,Other Equipment & Materials - General,"Artist Supply Stores, Craft Shops",GPC
18/10/2019 to 18/11/2019,Adults and Communities,Specialist Crafts Ltd,18/10/2019,225.11,Stationery - General,"Artist Supply Stores, Craft Shops",GPC
18/10/2019 to 18/11/2019,Adults and Communities,Stationeryu,29/10/2019,45.52,Materials - General,Unknown,GPC
18/10/2019 to 18/11/2019,Adults and Communities,Stickermule.Com,24/10/2019,65.6,Publicity/Marketing - General,Unknown,GPC
18/10/2019 to 18/11/2019,Adults and Communities,Studio 88 Ltd,01/11/2019,145.75,Materials - General,Art Dealers and Galleries,GPC
18/10/2019 to 18/11/2019,Adults and Communities,Tesco Store 2846,17/11/2019,24.03,Materials - General,"Grocery Stores, Supermarkets",GPC
18/10/2019 to 18/11/2019,Adults and Communities,Tesco Store 2846,23/10/2019,15.99,Other Expenditure - General,Unknown,GPC
18/10/2019 to 18/11/2019,Adults and Communities,Tesco Store 2846,17/10/2019,91.79,Provisions - General,"Grocery Stores, Supermarkets",GPC
18/10/2019 to 18/11/2019,Adults and Communities,Tesco Store 2846,25/10/2019,77.09,Provisions - General,Unknown,GPC
18/10/2019 to 18/11/2019,Adults and Communities,Tesco Store 2846,31/10/2019,140.98,Provisions - General,Unknown,GPC
18/10/2019 to 18/11/2019,Adults and Communities,Tesco Store 2846,14/11/2019,189.79,Provisions - General,"Grocery Stores, Supermarkets",GPC
18/10/2019 to 18/11/2019,Adults and Communities,Tesco Stores 2044,19/10/2019,27.5,Display/Conservn/Exhibitions - Exhibitions,"Grocery Stores, Supermarkets",GPC
18/10/2019 to 18/11/2019,Adults and Communities,Tesco Stores 2044,25/10/2019,6,Materials - General,Unknown,GPC
18/10/2019 to 18/11/2019,Adults and Communities,Tesco Stores 3297,03/11/2019,4.35,Educational Visits - General,"Grocery Stores, Supermarkets",GPC
18/10/2019 to 18/11/2019,Adults and Communities,Tesco Stores 3297,16/11/2019,28.4,Educational Visits - General,"Grocery Stores, Supermarkets",GPC
18/10/2019 to 18/11/2019,Adults and Communities,Tesco Stores 3297,16/11/2019,12.45,Educational Visits - General,"Grocery Stores, Supermarkets",GPC
18/10/2019 to 18/11/2019,Adults and Communities,Tesco Stores 3297,16/11/2019,9,Materials - General,"Grocery Stores, Supermarkets",GPC
18/10/2019 to 18/11/2019,Adults and Communities,Tesco Stores 5182,05/11/2019,43.09,General Equipment - General,"Grocery Stores, Supermarkets",GPC
18/10/2019 to 18/11/2019,Adults and Communities,Tesco Stores 5182,21/10/2019,102.29,Provisions - General,"Grocery Stores, Supermarkets",GPC
18/10/2019 to 18/11/2019,Adults and Communities,Tesco Stores 5182,24/10/2019,6.1,Provisions - General,Unknown,GPC
18/10/2019 to 18/11/2019,Adults and Communities,Tesco Stores 5182,25/10/2019,114.16,Provisions - General,Unknown,GPC
18/10/2019 to 18/11/2019,Adults and Communities,Tesco Stores 5182,30/10/2019,94.39,Provisions - General,Unknown,GPC
18/10/2019 to 18/11/2019,Adults and Communities,Tesco Stores 5182,08/11/2019,161.3,Provisions - General,"Grocery Stores, Supermarkets",GPC
18/10/2019 to 18/11/2019,Adults and Communities,Tesco Stores 5182,14/11/2019,113.78,Provisions - General,"Grocery Stores, Supermarkets",GPC
18/10/2019 to 18/11/2019,Adults and Communities,Tesco Stores 5902,05/11/2019,29.28,Other Equipment & Materials - General,"Grocery Stores, Supermarkets",GPC
18/10/2019 to 18/11/2019,Adults and Communities,Tfg Copy Print,05/11/2019,13.5,Stationery - General,Unknown,GPC
18/10/2019 to 18/11/2019,Adults and Communities,Tfg Copy Print,06/11/2019,103.5,Stationery - General,Unknown,GPC
18/10/2019 to 18/11/2019,Adults and Communities,The Book People,15/11/2019,9.6,Books - General,Book Stores,GPC
18/10/2019 to 18/11/2019,Adults and Communities,The Book People,15/11/2019,21.38,Books - General,Book Stores,GPC
18/10/2019 to 18/11/2019,Adults and Communities,The Myers Briggs Company,22/10/2019,88,Training Expenses - General,Business Services-Not Elsewhere Classified,GPC
18/10/2019 to 18/11/2019,Adults and Communities,The Myers Briggs Company,05/11/2019,264,Training Expenses - General,Business Services-Not Elsewhere Classified,GPC
18/10/2019 to 18/11/2019,Adults and Communities,The Otter 071242,12/11/2019,10,Client/Volunteers - General,"Eating Places, Restaurants",GPC
18/10/2019 to 18/11/2019,Adults and Communities,The Plastic Box Company,25/10/2019,77.5,Other Equipment & Materials - General,Unknown,GPC
18/10/2019 to 18/11/2019,Adults and Communities,The Range,12/11/2019,5,Other Equipment & Materials - General,Department Stores,GPC
18/10/2019 to 18/11/2019,Adults and Communities,The Range,07/11/2019,24.47,Other Expenditure - General,Department Stores,GPC
18/10/2019 to 18/11/2019,Adults and Communities,Trainline,18/10/2019,3.01,Other Expenditure - General,Passenger Railways,GPC
18/10/2019 to 18/11/2019,Adults and Communities,Trainline,18/10/2019,2.5,Postal Services - General,Passenger Railways,GPC
18/10/2019 to 18/11/2019,Adults and Communities,Trainline,18/10/2019,85.1,Public Transport -  Staff - General,Passenger Railways,GPC
18/10/2019 to 18/11/2019,Adults and Communities,Trainline,31/10/2019,41.24,Public Transport -  Staff - General,Unknown,GPC
18/10/2019 to 18/11/2019,Adults and Communities,Trainline,13/11/2019,288.83,Public Transport -  Staff - General,Passenger Railways,GPC
18/10/2019 to 18/11/2019,Adults and Communities,Trainline,14/11/2019,47.7,Public Transport -  Staff - General,Passenger Railways,GPC
18/10/2019 to 18/11/2019,Adults and Communities,Trainline.Com,12/11/2019,21.1,Other Expenditure - General,Passenger Railways,GPC
18/10/2019 to 18/11/2019,Adults and Communities,Trainline.Com,17/10/2019,160.69,Public Transport -  Staff - General,Passenger Railways,GPC
18/10/2019 to 18/11/2019,Adults and Communities,Trainline.Com,06/11/2019,29.75,Public Transport -  Staff - General,Passenger Railways,GPC
18/10/2019 to 18/11/2019,Adults and Communities,Trainline.Com,11/11/2019,181.53,Public Transport -  Staff - General,Passenger Railways,GPC
18/10/2019 to 18/11/2019,Adults and Communities,Trainline.Com,13/11/2019,9.97,Public Transport -  Staff - General,Passenger Railways,GPC
18/10/2019 to 18/11/2019,Adults and Communities,Travelodge Gb0000,08/11/2019,134.98,Subsistence - General,Travelodge,GPC
18/10/2019 to 18/11/2019,Adults and Communities,Travelodge Gb0000,22/10/2019,23.33,Training Expenses - General,Unknown,GPC
18/10/2019 to 18/11/2019,Adults and Communities,Trinity Court Potterie,15/11/2019,26,Furniture - General,"Artist Supply Stores, Craft Shops",GPC
18/10/2019 to 18/11/2019,Adults and Communities,Twitter Online Ads,26/10/2019,60,Publicity/Marketing - General,Unknown,GPC
18/10/2019 to 18/11/2019,Adults and Communities,University Hospitals Of L,24/10/2019,1.7,Casual/Essential - General,Automobile Parking Lots and Garages,GPC
18/10/2019 to 18/11/2019,Adults and Communities,Viking Uk,30/10/2019,8.8,Provisions - General,Unknown,GPC
18/10/2019 to 18/11/2019,Adults and Communities,Vistapr*vistaprint.Com,08/11/2019,28.78,Publicity/Marketing - General,Unknown,GPC
18/10/2019 to 18/11/2019,Adults and Communities,W Boyes & Co Ltd Coalv,04/11/2019,3.1,Materials - General,Discount Stores,GPC
18/10/2019 to 18/11/2019,Adults and Communities,W Boyes & Co Ltd Coalv,29/10/2019,5.49,Other Expenditure - General,Unknown,GPC
18/10/2019 to 18/11/2019,Adults and Communities,Waitrose Direct,05/11/2019,34.94,Materials - General,"Grocery Stores, Supermarkets",GPC
18/10/2019 to 18/11/2019,Adults and Communities,West Coast Trains,17/11/2019,17,Casual/Essential - General,Automobile Parking Lots and Garages,GPC
18/10/2019 to 18/11/2019,Adults and Communities,Wickes Ashby De La Zouch,22/10/2019,22.43,Display/Conservn/Exhibitions - Exhibitions,Unknown,GPC
18/10/2019 to 18/11/2019,Adults and Communities,Wickes Ashby De La Zouch,13/11/2019,69.17,Display/Conservn/Exhibitions - Exhibitions,"Building Materials, Lumber Stores",GPC
18/10/2019 to 18/11/2019,Adults and Communities,Wilko Retail Limit,05/11/2019,85.08,Provisions - General,Household Appliance Stores,GPC
18/10/2019 to 18/11/2019,Adults and Communities,Wilko Retail Limited,25/10/2019,7.29,Display/Conservn/Exhibitions - Exhibitions,Unknown,GPC
18/10/2019 to 18/11/2019,Adults and Communities,Wilko Retail Limited,15/11/2019,5.55,Materials - General,Miscellaneous General Merchandise Stores,GPC
18/10/2019 to 18/11/2019,Adults and Communities,Wilko Retail Limited,25/10/2019,4,Other Expenditure - General,Unknown,GPC
18/10/2019 to 18/11/2019,Adults and Communities,Wm Morrisons Store,01/11/2019,6.06,IT Equipment - Licences,"Grocery Stores, Supermarkets",GPC
18/10/2019 to 18/11/2019,Adults and Communities,Wm Morrisons Store,17/10/2019,24.75,Materials - General,"Grocery Stores, Supermarkets",GPC
18/10/2019 to 18/11/2019,Adults and Communities,Wm Morrisons Store,18/10/2019,12.55,Materials - General,"Grocery Stores, Supermarkets",GPC
18/10/2019 to 18/11/2019,Adults and Communities,Wm Morrisons Store,24/10/2019,24.26,Materials - General,Unknown,GPC
18/10/2019 to 18/11/2019,Adults and Communities,Wm Morrisons Store,28/10/2019,9.97,Materials - General,Unknown,GPC
18/10/2019 to 18/11/2019,Adults and Communities,Wm Morrisons Store,31/10/2019,30.76,Materials - General,Unknown,GPC
18/10/2019 to 18/11/2019,Adults and Communities,Wm Morrisons Store,01/11/2019,2.92,Materials - General,"Grocery Stores, Supermarkets",GPC
18/10/2019 to 18/11/2019,Adults and Communities,Wm Morrisons Store,07/11/2019,14.4,Materials - General,"Grocery Stores, Supermarkets",GPC
18/10/2019 to 18/11/2019,Adults and Communities,Wm Morrisons Store,14/11/2019,4.35,Materials - General,"Grocery Stores, Supermarkets",GPC
18/10/2019 to 18/11/2019,Adults and Communities,Wm Morrisons Store,15/11/2019,11.75,Materials - General,"Grocery Stores, Supermarkets",GPC
18/10/2019 to 18/11/2019,Adults and Communities,Wm Morrisons Store,14/11/2019,3,Other Expenditure - General,"Grocery Stores, Supermarkets",GPC
18/10/2019 to 18/11/2019,Adults and Communities,Wm Morrisons Store,06/11/2019,30.8,Provisions - General,"Grocery Stores, Supermarkets",GPC
18/10/2019 to 18/11/2019,Adults and Communities,Wm Morrisons Store,07/11/2019,28,Provisions - General,"Grocery Stores, Supermarkets",GPC
18/10/2019 to 18/11/2019,Adults and Communities,Woodmansterne Publicat,31/10/2019,78.6,Materials - General,Unknown,GPC
18/10/2019 to 18/11/2019,Adults and Communities,World Of Books,23/10/2019,47.8,Books - General,Unknown,GPC
18/10/2019 to 18/11/2019,Adults and Communities,Www.Bksb.Co.Uk Cur,12/11/2019,158.4,Training Expenses - General,Schools and Educational Services-Not Elsewhere Cla,GPC
18/10/2019 to 18/11/2019,Adults and Communities,Www.Complete-Costumes.,22/10/2019,86.99,Display/Conservn/Exhibitions - Exhibitions,"Clothing Rental-Costumes, Uniforms",GPC
18/10/2019 to 18/11/2019,Adults and Communities,Www.Complete-Costumes.,22/10/2019,86.99,Display/Conservn/Exhibitions - Exhibitions,"Clothing Rental-Costumes, Uniforms",GPC
18/10/2019 to 18/11/2019,Adults and Communities,Www.Complete-Costumes.,31/10/2019,240.99,Display/Conservn/Exhibitions - Exhibitions,Unknown,GPC
18/10/2019 to 18/11/2019,Adults and Communities,Www.Complete-Costumes.,06/11/2019,86.99,Display/Conservn/Exhibitions - Exhibitions,"Clothing Rental-Costumes, Uniforms",GPC
18/10/2019 to 18/11/2019,Adults and Communities,Www.Lakesidearts.Org.Uk,29/10/2019,15,Public Transport -  Staff - General,Unknown,GPC
18/10/2019 to 18/11/2019,Adults and Communities,Www.Neopost.Co.Uk,18/10/2019,480,Postal Services - General,"Stationary, Office Supplies, Printing and Writing",GPC
18/10/2019 to 18/11/2019,Adults and Communities,Www.Neopost.Co.Uk,18/10/2019,480,Postal Services - General,"Stationary, Office Supplies, Printing and Writing",GPC
18/10/2019 to 18/11/2019,Adults and Communities,Www.Neopost.Co.Uk,18/10/2019,480,Postal Services - General,"Stationary, Office Supplies, Printing and Writing",GPC
18/10/2019 to 18/11/2019,Adults and Communities,Www.Newark-Sherwooddc.,25/10/2019,204.96,Other Expenditure - General,Government Services-Not Elsewhere Classified,GPC
18/10/2019 to 18/11/2019,Adults and Communities,Www.Postofficeshop.Co.Uk,30/10/2019,19.04,Postal Services - General,Unknown,GPC
18/10/2019 to 18/11/2019,Adults and Communities,Www.Prop4shows.O.Uk,24/10/2019,9.92,Other Equipment & Materials - General,Unknown,GPC
18/10/2019 to 18/11/2019,Adults and Communities,Www.Ransom.Co.Uk,15/11/2019,215.3,Printing - General,Unknown,GPC
18/10/2019 to 18/11/2019,Adults and Communities,Www.Ryman.Co.Uk,15/11/2019,35.9,Stationery - General,"Stationery, Office, and School Supply Stores",GPC
18/10/2019 to 18/11/2019,Adults and Communities,Www.Safetyfirstaid.Co.,29/10/2019,10.92,Other Expenditure - General,Unknown,GPC
18/10/2019 to 18/11/2019,Adults and Communities,Www.Talktalkbusiness.C,23/10/2019,85.02,Telephones - General,Unknown,GPC
18/10/2019 to 18/11/2019,Adults and Communities,Www.Theworks.Co.Uk,08/11/2019,24.17,Stationery - General,Discount Stores,GPC
18/10/2019 to 18/11/2019,Adults and Communities,Www.Ukpos.Com,31/10/2019,29.82,Stationery - General,Unknown,GPC
18/10/2019 to 18/11/2019,Adults and Communities,Www.Warm-Glass.Co.Uk,01/11/2019,129.68,Materials - General,"Artist Supply Stores, Craft Shops",GPC
18/10/2019 to 18/11/2019,Adults and Communities,Www.Zen.Co.Uk,11/11/2019,34.76,Telephones - General,Computer Network/Information Services,GPC
18/10/2019 to 18/11/2019,Adults and Communities,Yorkshire Trading - Me,07/11/2019,1,Display/Conservn/Exhibitions - Exhibitions,Variety Stores,GPC
18/10/2019 to 18/11/2019,Adults and Communities,Information not known,05/11/2019,0.43,Other Services - General,Unknown,GPC
18/10/2019 to 18/11/2019,C&YPS-Non Delegated,Able Removals And Storage,22/10/2019,312,Other Expenditure - General,Unknown,GPC
18/10/2019 to 18/11/2019,C&YPS-Non Delegated,Adhd Solutions Cic,14/11/2019,60,Provisions - General,Charitable and Social Service Organizations,GPC
18/10/2019 to 18/11/2019,C&YPS-Non Delegated,Affordable Appliances,21/10/2019,380,Other Transfer Payments - Leaving Care Grants,Household Appliance Stores,GPC
18/10/2019 to 18/11/2019,C&YPS-Non Delegated,Affordable Appliances,22/10/2019,337,Other Transfer Payments - Leaving Care Grants,Unknown,GPC
18/10/2019 to 18/11/2019,C&YPS-Non Delegated,Aldi 19 772,22/10/2019,13.37,Other Equipment & Materials - General,Unknown,GPC
18/10/2019 to 18/11/2019,C&YPS-Non Delegated,Aldi 24 772,11/11/2019,17.36,Other Expenditure - General,"Grocery Stores, Supermarkets",GPC
18/10/2019 to 18/11/2019,C&YPS-Non Delegated,Aldi 3 772,11/11/2019,61.13,Materials - General,"Grocery Stores, Supermarkets",GPC
18/10/2019 to 18/11/2019,C&YPS-Non Delegated,Aldi 47 772,21/10/2019,16.27,Other Equipment & Materials - General,Unknown,GPC
18/10/2019 to 18/11/2019,C&YPS-Non Delegated,Aldi 47 772,15/11/2019,4.58,Other Equipment & Materials - General,"Grocery Stores, Supermarkets",GPC
18/10/2019 to 18/11/2019,C&YPS-Non Delegated,Aldi 54 772,28/10/2019,26.94,Materials - General,Unknown,GPC
18/10/2019 to 18/11/2019,C&YPS-Non Delegated,Aldi 54 772,04/11/2019,31.7,Materials - General,"Grocery Stores, Supermarkets",GPC
18/10/2019 to 18/11/2019,C&YPS-Non Delegated,Allpay *emh Homes,29/10/2019,436,Other Transfer Payments - General,Unknown,GPC
18/10/2019 to 18/11/2019,C&YPS-Non Delegated,Allpay *emh Homes,29/10/2019,436,Other Transfer Payments - General,Unknown,GPC
18/10/2019 to 18/11/2019,C&YPS-Non Delegated,Allpay *longhurst Group,25/10/2019,476.42,Other Transfer Payments - Section 24,Charitable and Social Service Organizations,GPC
18/10/2019 to 18/11/2019,C&YPS-Non Delegated,Amazon Prime*it8po3rt5,13/11/2019,6.66,General Equipment - General,Continuity/Subscription Merchants,GPC
18/10/2019 to 18/11/2019,C&YPS-Non Delegated,Amazon.Co.Uk,31/10/2019,-29.95,Materials - General,Unknown,GPC
18/10/2019 to 18/11/2019,C&YPS-Non Delegated,Amazon.Co.Uk Amazon.Co.Uk,22/10/2019,-11.89,IT Equipment - General,Miscellaneous and Specialty Retail Stores,GPC
18/10/2019 to 18/11/2019,C&YPS-Non Delegated,Amazon.Co.Uk Amazon.Co.Uk,30/10/2019,-29.95,Materials - General,Unknown,GPC
18/10/2019 to 18/11/2019,C&YPS-Non Delegated,Amazon.Co.Uk*0a7t47ix5 Am,12/11/2019,12.27,Materials - General,Miscellaneous and Specialty Retail Stores,GPC
18/10/2019 to 18/11/2019,C&YPS-Non Delegated,Amazon.Co.Uk*av6k51ih5,13/11/2019,98.75,IT Equipment - General,Direct Marketers - Other,GPC
18/10/2019 to 18/11/2019,C&YPS-Non Delegated,Amazon.Co.Uk*c28ml9eo5,12/11/2019,11.34,Other Equipment & Materials - General,Direct Marketers - Other,GPC
18/10/2019 to 18/11/2019,C&YPS-Non Delegated,Amazon.Co.Uk*c570w4jy5,14/11/2019,11.89,IT Equipment - General,Direct Marketers - Other,GPC
18/10/2019 to 18/11/2019,C&YPS-Non Delegated,Amazon.Co.Uk*ds4dv58u5,07/11/2019,91.23,Other Transfer Payments - Sector 17- Other,Direct Marketers - Other,GPC
18/10/2019 to 18/11/2019,C&YPS-Non Delegated,Amazon.Co.Uk*fq9m083t5,17/11/2019,8.18,Other Equipment & Materials - General,Direct Marketers - Other,GPC
18/10/2019 to 18/11/2019,C&YPS-Non Delegated,Amazon.Co.Uk*i84ez6wr5,31/10/2019,29.95,Materials - General,Unknown,GPC
18/10/2019 to 18/11/2019,C&YPS-Non Delegated,Amazon.Co.Uk*it62k78g5 Am,30/10/2019,29.95,Materials - General,Unknown,GPC
18/10/2019 to 18/11/2019,C&YPS-Non Delegated,Amazon.Co.Uk*m14v31jx5 Am,07/11/2019,38.65,IT Equipment - General,Miscellaneous and Specialty Retail Stores,GPC
18/10/2019 to 18/11/2019,C&YPS-Non Delegated,Amazon.Co.Uk*mo01l7614 Am,24/10/2019,7.91,Other Transfer Payments - Sector 17- Other,Unknown,GPC
18/10/2019 to 18/11/2019,C&YPS-Non Delegated,Amazon.Co.Uk*mo16h7dh4 Am,27/10/2019,85.61,Stationery - General,Unknown,GPC
18/10/2019 to 18/11/2019,C&YPS-Non Delegated,Amazon.Co.Uk*mo1g996w4,25/10/2019,135.3,Other Equipment & Materials - General,Unknown,GPC
18/10/2019 to 18/11/2019,C&YPS-Non Delegated,Amazon.Co.Uk*mo1ud38k4,23/10/2019,11.83,Other Expenditure - General,Unknown,GPC
18/10/2019 to 18/11/2019,C&YPS-Non Delegated,Amazon.Co.Uk*mo5ox02s4,31/10/2019,62.27,Other Expenditure - General,Unknown,GPC
18/10/2019 to 18/11/2019,C&YPS-Non Delegated,Amazon.Co.Uk*mo9d47664,24/10/2019,23.16,Other Equipment & Materials - General,Unknown,GPC
18/10/2019 to 18/11/2019,C&YPS-Non Delegated,Amazon.Co.Uk*nx7dl3lj5,08/11/2019,17.08,Other Expenditure - General,Direct Marketers - Other,GPC
18/10/2019 to 18/11/2019,C&YPS-Non Delegated,Amazon.Co.Uk*tc5xk9jx5 Am,12/11/2019,8.33,Materials - General,Miscellaneous and Specialty Retail Stores,GPC
18/10/2019 to 18/11/2019,C&YPS-Non Delegated,Amazon.Co.Uk*wy4ro3rn5,12/11/2019,15.02,Other Expenditure - General,Direct Marketers - Other,GPC
18/10/2019 to 18/11/2019,C&YPS-Non Delegated,Amazon.Co.Uk*y32le02h5,05/11/2019,86.67,Other Equipment & Materials - General,Direct Marketers - Other,GPC
18/10/2019 to 18/11/2019,C&YPS-Non Delegated,Amber Rooms,24/10/2019,12.99,Other Transfer Payments - Birthday & Christmas Presents,Unknown,GPC
18/10/2019 to 18/11/2019,C&YPS-Non Delegated,Amf Bowling,14/11/2019,6.46,Other Transfer Payments - Section 23 Grants,"Membership Clubs (Sports, Recreation, Athletic), C",GPC
18/10/2019 to 18/11/2019,C&YPS-Non Delegated,Amfbowling.Co.Uk,13/11/2019,24.6,Other Transfer Payments - Section 23 Grants,"Membership Clubs (Sports, Recreation, Athletic), C",GPC
18/10/2019 to 18/11/2019,C&YPS-Non Delegated,Amzn Mktp Uk*mo7cw2df4,29/10/2019,66.13,Other Equipment & Materials - General,Unknown,GPC
18/10/2019 to 18/11/2019,C&YPS-Non Delegated,Amzn Mktp Us,29/10/2019,-7.67,Provisions - General,Unknown,GPC
18/10/2019 to 18/11/2019,C&YPS-Non Delegated,Amzn Mktp Us,29/10/2019,-12.09,Provisions - General,Unknown,GPC
18/10/2019 to 18/11/2019,C&YPS-Non Delegated,Amzn Mktp Us,02/11/2019,-0.65,Provisions - General,Miscellaneous and Specialty Retail Stores,GPC
18/10/2019 to 18/11/2019,C&YPS-Non Delegated,Amzn Mktp Us*3284h4md3,20/10/2019,11.4,Provisions - General,Miscellaneous and Specialty Retail Stores,GPC
18/10/2019 to 18/11/2019,C&YPS-Non Delegated,Amznmktplace,07/11/2019,84.72,Books - General,Miscellaneous and Specialty Retail Stores,GPC
18/10/2019 to 18/11/2019,C&YPS-Non Delegated,Amznmktplace,10/11/2019,44.46,IT Equipment - General,Miscellaneous and Specialty Retail Stores,GPC
18/10/2019 to 18/11/2019,C&YPS-Non Delegated,Amznmktplace,21/10/2019,37.46,Materials - General,Miscellaneous and Specialty Retail Stores,GPC
18/10/2019 to 18/11/2019,C&YPS-Non Delegated,Amznmktplace,23/10/2019,6.08,Materials - General,Miscellaneous and Specialty Retail Stores,GPC
18/10/2019 to 18/11/2019,C&YPS-Non Delegated,Amznmktplace,23/10/2019,29.27,Materials - General,Miscellaneous and Specialty Retail Stores,GPC
18/10/2019 to 18/11/2019,C&YPS-Non Delegated,Amznmktplace,26/10/2019,41.85,Materials - General,Unknown,GPC
18/10/2019 to 18/11/2019,C&YPS-Non Delegated,Amznmktplace,10/11/2019,18.48,Materials - General,Miscellaneous and Specialty Retail Stores,GPC
18/10/2019 to 18/11/2019,C&YPS-Non Delegated,Amznmktplace,18/10/2019,3.21,Other Equipment & Materials - General,Miscellaneous and Specialty Retail Stores,GPC
18/10/2019 to 18/11/2019,C&YPS-Non Delegated,Amznmktplace,22/10/2019,3.99,Other Equipment & Materials - General,Miscellaneous and Specialty Retail Stores,GPC
18/10/2019 to 18/11/2019,C&YPS-Non Delegated,Amznmktplace,24/10/2019,21.15,Other Equipment & Materials - General,Unknown,GPC
18/10/2019 to 18/11/2019,C&YPS-Non Delegated,Amznmktplace,25/10/2019,42.5,Other Equipment & Materials - General,Unknown,GPC
18/10/2019 to 18/11/2019,C&YPS-Non Delegated,Amznmktplace,31/10/2019,20.83,Other Equipment & Materials - General,Unknown,GPC
18/10/2019 to 18/11/2019,C&YPS-Non Delegated,Amznmktplace,31/10/2019,41.42,Other Equipment & Materials - General,Unknown,GPC
18/10/2019 to 18/11/2019,C&YPS-Non Delegated,Amznmktplace,04/11/2019,36.85,Other Equipment & Materials - General,Miscellaneous and Specialty Retail Stores,GPC
18/10/2019 to 18/11/2019,C&YPS-Non Delegated,Amznmktplace,05/11/2019,152.03,Other Equipment & Materials - General,Miscellaneous and Specialty Retail Stores,GPC
18/10/2019 to 18/11/2019,C&YPS-Non Delegated,Amznmktplace,06/11/2019,32.31,Other Equipment & Materials - General,Miscellaneous and Specialty Retail Stores,GPC
18/10/2019 to 18/11/2019,C&YPS-Non Delegated,Amznmktplace,06/11/2019,17.06,Other Equipment & Materials - General,Miscellaneous and Specialty Retail Stores,GPC
18/10/2019 to 18/11/2019,C&YPS-Non Delegated,Amznmktplace,10/11/2019,43.72,Other Equipment & Materials - General,Miscellaneous and Specialty Retail Stores,GPC
18/10/2019 to 18/11/2019,C&YPS-Non Delegated,Amznmktplace,10/11/2019,85.92,Other Equipment & Materials - General,Miscellaneous and Specialty Retail Stores,GPC
18/10/2019 to 18/11/2019,C&YPS-Non Delegated,Amznmktplace,11/11/2019,160.01,Other Equipment & Materials - General,Miscellaneous and Specialty Retail Stores,GPC
18/10/2019 to 18/11/2019,C&YPS-Non Delegated,Amznmktplace,13/11/2019,58.12,Other Equipment & Materials - General,Miscellaneous and Specialty Retail Stores,GPC
18/10/2019 to 18/11/2019,C&YPS-Non Delegated,Amznmktplace,24/10/2019,34.33,Other Expenditure - General,Unknown,GPC
18/10/2019 to 18/11/2019,C&YPS-Non Delegated,Amznmktplace,17/11/2019,12.23,Other Expenditure - General,Miscellaneous and Specialty Retail Stores,GPC
18/10/2019 to 18/11/2019,C&YPS-Non Delegated,Amznmktplace,26/10/2019,335.72,Other Services - General,Unknown,GPC
18/10/2019 to 18/11/2019,C&YPS-Non Delegated,Amznmktplace,15/11/2019,289.37,Other Transfer Payments - Leaving Care Grants,Miscellaneous and Specialty Retail Stores,GPC
18/10/2019 to 18/11/2019,C&YPS-Non Delegated,Amznmktplace,23/10/2019,80.28,Other Transfer Payments - Sector 17- Other,Miscellaneous and Specialty Retail Stores,GPC
18/10/2019 to 18/11/2019,C&YPS-Non Delegated,Amznmktplace,31/10/2019,49.91,Other Transfer Payments - Sector 17- Other,Unknown,GPC
18/10/2019 to 18/11/2019,C&YPS-Non Delegated,Amznmktplace,21/10/2019,33.99,Provisions - General,Miscellaneous and Specialty Retail Stores,GPC
18/10/2019 to 18/11/2019,C&YPS-Non Delegated,Amznmktplace,28/10/2019,27.48,R & M of Buildings - General,Unknown,GPC
18/10/2019 to 18/11/2019,C&YPS-Non Delegated,Amznmktplace,29/10/2019,5.33,Stationery - General,Unknown,GPC
18/10/2019 to 18/11/2019,C&YPS-Non Delegated,Amznmktplace Amazon.Co.Uk,29/10/2019,2.99,General Equipment - General,Unknown,GPC
18/10/2019 to 18/11/2019,C&YPS-Non Delegated,Amznmktplace Amazon.Co.Uk,07/11/2019,65.83,General Equipment - General,Miscellaneous and Specialty Retail Stores,GPC
18/10/2019 to 18/11/2019,C&YPS-Non Delegated,Amznmktplace Amazon.Co.Uk,29/10/2019,24.8,IT Equipment - General,Unknown,GPC
18/10/2019 to 18/11/2019,C&YPS-Non Delegated,Amznmktplace Amazon.Co.Uk,29/10/2019,9.16,IT Equipment - General,Unknown,GPC
18/10/2019 to 18/11/2019,C&YPS-Non Delegated,Amznmktplace Amazon.Co.Uk,17/10/2019,45.46,Materials - General,Miscellaneous and Specialty Retail Stores,GPC
18/10/2019 to 18/11/2019,C&YPS-Non Delegated,Amznmktplace Amazon.Co.Uk,07/11/2019,52.47,Materials - General,Miscellaneous and Specialty Retail Stores,GPC
18/10/2019 to 18/11/2019,C&YPS-Non Delegated,Amznmktplace Amazon.Co.Uk,30/10/2019,10.66,Other Equipment & Materials - General,Unknown,GPC
18/10/2019 to 18/11/2019,C&YPS-Non Delegated,Amznmktplace Amazon.Co.Uk,15/11/2019,168.75,Other Equipment & Materials - General,Miscellaneous and Specialty Retail Stores,GPC
18/10/2019 to 18/11/2019,C&YPS-Non Delegated,Amznmktplace Amazon.Co.Uk,16/11/2019,-48.97,Other Equipment & Materials - General,Miscellaneous and Specialty Retail Stores,GPC
18/10/2019 to 18/11/2019,C&YPS-Non Delegated,Amznmktplace Amazon.Co.Uk,09/11/2019,23.72,Other Expenditure - General,Miscellaneous and Specialty Retail Stores,GPC
18/10/2019 to 18/11/2019,C&YPS-Non Delegated,Amznmktplace Amazon.Co.Uk,10/11/2019,25.98,Other Expenditure - General,Miscellaneous and Specialty Retail Stores,GPC
18/10/2019 to 18/11/2019,C&YPS-Non Delegated,Amznmktplace Amazon.Co.Uk,24/10/2019,133.17,Provisions - General,Unknown,GPC
18/10/2019 to 18/11/2019,C&YPS-Non Delegated,Amznmktplace Amazon.Co.Uk,03/11/2019,19.1,Provisions - General,Miscellaneous and Specialty Retail Stores,GPC
18/10/2019 to 18/11/2019,C&YPS-Non Delegated,Amznmktplace Amazon.Co.Uk,12/11/2019,45.34,R & M of Buildings - General,Miscellaneous and Specialty Retail Stores,GPC
18/10/2019 to 18/11/2019,C&YPS-Non Delegated,Apple.Com/Bill,14/11/2019,21.65,IT Equipment - General,Record Shops,GPC
18/10/2019 to 18/11/2019,C&YPS-Non Delegated,Apple.Com/Bill,15/11/2019,41.66,IT Equipment - General,Record Shops,GPC
18/10/2019 to 18/11/2019,C&YPS-Non Delegated,Apple.Com/Bill,15/11/2019,1.66,IT Equipment - General,Record Shops,GPC
18/10/2019 to 18/11/2019,C&YPS-Non Delegated,Apple.Com/Bill,15/11/2019,41.66,IT Equipment - General,Record Shops,GPC
18/10/2019 to 18/11/2019,C&YPS-Non Delegated,Apple.Com/Bill,15/11/2019,41.66,IT Equipment - General,Record Shops,GPC
18/10/2019 to 18/11/2019,C&YPS-Non Delegated,Apple.Com/Bill,15/11/2019,9.98,IT Equipment - General,Record Shops,GPC
18/10/2019 to 18/11/2019,C&YPS-Non Delegated,Argos Hinckley Ins,31/10/2019,22.99,Other Equipment & Materials - General,Unknown,GPC
18/10/2019 to 18/11/2019,C&YPS-Non Delegated,Argos Hinckley Ins,04/11/2019,206.91,Other Equipment & Materials - General,Discount Stores,GPC
18/10/2019 to 18/11/2019,C&YPS-Non Delegated,Argos Hinckley Ins,04/11/2019,41,Other Transfer Payments - Leaving Care Grants,Discount Stores,GPC
18/10/2019 to 18/11/2019,C&YPS-Non Delegated,Argos Hinckley Ins,04/11/2019,-6,Other Transfer Payments - Leaving Care Grants,Discount Stores,GPC
18/10/2019 to 18/11/2019,C&YPS-Non Delegated,Argos Ltd,30/10/2019,524.95,Materials - General,Unknown,GPC
18/10/2019 to 18/11/2019,C&YPS-Non Delegated,Argos Ltd,30/10/2019,31.99,Materials - General,Unknown,GPC
18/10/2019 to 18/11/2019,C&YPS-Non Delegated,Argos Ltd,22/10/2019,356.99,Other Transfer Payments - Leaving Care Grants,Unknown,GPC
18/10/2019 to 18/11/2019,C&YPS-Non Delegated,Argos Ltd,24/10/2019,179.99,Other Transfer Payments - Leaving Care Grants,Unknown,GPC
18/10/2019 to 18/11/2019,C&YPS-Non Delegated,Argos Ltd,25/10/2019,64.94,Other Transfer Payments - Leaving Care Grants,Unknown,GPC
18/10/2019 to 18/11/2019,C&YPS-Non Delegated,Argos Retail Group,31/10/2019,7.99,Other Equipment & Materials - General,Unknown,GPC
18/10/2019 to 18/11/2019,C&YPS-Non Delegated,Arriva Midlands Limited,22/10/2019,22,Other Transfer Payments - General,Unknown,GPC
18/10/2019 to 18/11/2019,C&YPS-Non Delegated,Arriva Passenger S,11/11/2019,73,Client/Volunteers - General,Automotive Repair Shops (non-dealer),GPC
18/10/2019 to 18/11/2019,C&YPS-Non Delegated,Arriva Passenger S,14/11/2019,60,Other Transfer Payments - Section 24,Automotive Repair Shops (non-dealer),GPC
18/10/2019 to 18/11/2019,C&YPS-Non Delegated,Asda George Com Leeds,12/11/2019,58.96,Other Transfer Payments - Leaving Care Grants,"Grocery Stores, Supermarkets",GPC
18/10/2019 to 18/11/2019,C&YPS-Non Delegated,Asda Groceries Online,23/10/2019,36,Other Equipment & Materials - General,Unknown,GPC
18/10/2019 to 18/11/2019,C&YPS-Non Delegated,Asda Stores 4533,17/10/2019,50,Other Transfer Payments - General,"Grocery Stores, Supermarkets",GPC
18/10/2019 to 18/11/2019,C&YPS-Non Delegated,Asda Storess4342,29/10/2019,7.05,Other Transfer Payments - Section 23 Grants,Unknown,GPC
18/10/2019 to 18/11/2019,C&YPS-Non Delegated,Asda Superstore,06/11/2019,17,Materials - General,"Grocery Stores, Supermarkets",GPC
18/10/2019 to 18/11/2019,C&YPS-Non Delegated,Asda Superstore,30/10/2019,5.71,Other Expenditure - General,Unknown,GPC
18/10/2019 to 18/11/2019,C&YPS-Non Delegated,Asda Superstore,05/11/2019,25.19,Other Expenditure - General,"Grocery Stores, Supermarkets",GPC
18/10/2019 to 18/11/2019,C&YPS-Non Delegated,Asda Superstore,07/11/2019,7.9,Other Expenditure - General,"Grocery Stores, Supermarkets",GPC
18/10/2019 to 18/11/2019,C&YPS-Non Delegated,Asda Superstore,05/11/2019,118.65,Other Transfer Payments - General,"Grocery Stores, Supermarkets",GPC
18/10/2019 to 18/11/2019,C&YPS-Non Delegated,Asda Superstore,12/11/2019,9.25,Other Transfer Payments - General,"Grocery Stores, Supermarkets",GPC
18/10/2019 to 18/11/2019,C&YPS-Non Delegated,Asda Superstore,25/10/2019,5,Other Transfer Payments - Section 23 Grants,Unknown,GPC
18/10/2019 to 18/11/2019,C&YPS-Non Delegated,Asda Superstore,24/10/2019,20.44,Other Transfer Payments - Section 24,Unknown,GPC
18/10/2019 to 18/11/2019,C&YPS-Non Delegated,Asda Superstore,05/11/2019,28.83,Other Transfer Payments - Section 24,"Grocery Stores, Supermarkets",GPC
18/10/2019 to 18/11/2019,C&YPS-Non Delegated,Asda Superstore,23/10/2019,3.35,Provisions - General,Unknown,GPC
18/10/2019 to 18/11/2019,C&YPS-Non Delegated,Audible.Co.Uk,29/10/2019,7.99,Other Expenditure - General,Unknown,GPC
18/10/2019 to 18/11/2019,C&YPS-Non Delegated,Ayston Post,28/10/2019,2.35,Provisions - General,Unknown,GPC
18/10/2019 to 18/11/2019,C&YPS-Non Delegated,B & M Retail,24/10/2019,154.07,Other Transfer Payments - Leaving Care Grants,Unknown,GPC
18/10/2019 to 18/11/2019,C&YPS-Non Delegated,B & Q 1157,31/10/2019,46.67,Provisions - General,Unknown,GPC
18/10/2019 to 18/11/2019,C&YPS-Non Delegated,B&m Retail Ltd,04/11/2019,146.86,Other Transfer Payments - General,Discount Stores,GPC
18/10/2019 to 18/11/2019,C&YPS-Non Delegated,B&m Retail Ltd,28/10/2019,24.99,Other Transfer Payments - Leaving Care Grants,Unknown,GPC
18/10/2019 to 18/11/2019,C&YPS-Non Delegated,Baker Ross,06/11/2019,199.35,Other Equipment & Materials - General,"Artist Supply Stores, Craft Shops",GPC
18/10/2019 to 18/11/2019,C&YPS-Non Delegated,Baker Ross,06/11/2019,59.08,Other Equipment & Materials - General,"Artist Supply Stores, Craft Shops",GPC
18/10/2019 to 18/11/2019,C&YPS-Non Delegated,Bargain Booze 557,27/10/2019,22,Other Transfer Payments - General,Unknown,GPC
18/10/2019 to 18/11/2019,C&YPS-Non Delegated,Bargain Booze 557,04/11/2019,22,Other Transfer Payments - General,"Grocery Stores, Supermarkets",GPC
18/10/2019 to 18/11/2019,C&YPS-Non Delegated,Bartellas Coffee House,11/11/2019,10.5,Other Transfer Payments - Section 24,Fast-Food Restaurants (Quick Payment Service Pilot,GPC
18/10/2019 to 18/11/2019,C&YPS-Non Delegated,Brennans Pharmacy,05/11/2019,3.5,Provisions - General,"Drug Stores, Pharmacies",GPC
18/10/2019 to 18/11/2019,C&YPS-Non Delegated,Bt Bill Payment 2,11/11/2019,81.24,Communications Equipment - General,Telecommunication Equipment Including Telephone Sa,GPC
18/10/2019 to 18/11/2019,C&YPS-Non Delegated,Bt Bill Payment 2,21/10/2019,58.2,Telephones - General,Unknown,GPC
18/10/2019 to 18/11/2019,C&YPS-Non Delegated,Bt Bill Payment 2,11/11/2019,89.23,Telephones - General,Telecommunication Equipment Including Telephone Sa,GPC
18/10/2019 to 18/11/2019,C&YPS-Non Delegated,Bt Bill Payment 2,06/11/2019,55.89,Telephones - Mobile Phones,Telecommunication Equipment Including Telephone Sa,GPC
18/10/2019 to 18/11/2019,C&YPS-Non Delegated,Bunches,01/11/2019,17.5,Other Equipment & Materials - General,Florists,GPC
18/10/2019 to 18/11/2019,C&YPS-Non Delegated,Burger King,13/11/2019,12.38,Other Transfer Payments - General,Fast-Food Restaurants (Quick Payment Service Pilot,GPC
18/10/2019 to 18/11/2019,C&YPS-Non Delegated,Burger King Barrierlin,08/11/2019,6.99,Other Equipment & Materials - General,Fast-Food Restaurants (Quick Payment Service Pilot,GPC
18/10/2019 to 18/11/2019,C&YPS-Non Delegated,Campanile Hotels,18/10/2019,317.5,Other Agency & Cont Services - LCT/LAC (Not Fostered),Unknown,GPC
18/10/2019 to 18/11/2019,C&YPS-Non Delegated,Card Factory,04/11/2019,1.29,Materials - General,"Gift, Card, Novelty, and Souvenir Shops",GPC
18/10/2019 to 18/11/2019,C&YPS-Non Delegated,Carphone Warehouse,11/11/2019,14.99,Other Transfer Payments - Leaving Care Grants,Telecommunication Equipment Including Telephone Sa,GPC
18/10/2019 to 18/11/2019,C&YPS-Non Delegated,Central Co-Op Reta,13/11/2019,10.53,Provisions - General,Department Stores,GPC
18/10/2019 to 18/11/2019,C&YPS-Non Delegated,Central Eng Coop,06/11/2019,6.18,Hospitality - General,Department Stores,GPC
18/10/2019 to 18/11/2019,C&YPS-Non Delegated,Central Eng Coop,22/10/2019,22.45,Materials - General,Unknown,GPC
18/10/2019 to 18/11/2019,C&YPS-Non Delegated,Central Eng Coop,25/10/2019,10.77,Other Equipment & Materials - General,Unknown,GPC
18/10/2019 to 18/11/2019,C&YPS-Non Delegated,Central Eng Coop,28/10/2019,1.47,Other Equipment & Materials - General,Unknown,GPC
18/10/2019 to 18/11/2019,C&YPS-Non Delegated,Central Eng Coop,29/10/2019,7.67,Other Equipment & Materials - General,Unknown,GPC
18/10/2019 to 18/11/2019,C&YPS-Non Delegated,Central Eng Coop,14/11/2019,11.25,Other Equipment & Materials - General,Department Stores,GPC
18/10/2019 to 18/11/2019,C&YPS-Non Delegated,Central Eng Coop,17/10/2019,27.13,Other Expenditure - General,Department Stores,GPC
18/10/2019 to 18/11/2019,C&YPS-Non Delegated,Central Eng Coop,22/10/2019,3.23,Provisions - General,Unknown,GPC
18/10/2019 to 18/11/2019,C&YPS-Non Delegated,Cineworld,30/10/2019,19.7,Other Transfer Payments - General,Unknown,GPC
18/10/2019 to 18/11/2019,C&YPS-Non Delegated,Costa Coalville,22/10/2019,6.4,Subsistence - General,Unknown,GPC
18/10/2019 to 18/11/2019,C&YPS-Non Delegated,Costa Coffee,14/11/2019,3.9,Subsistence - General,Fast-Food Restaurants (Quick Payment Service Pilot,GPC
18/10/2019 to 18/11/2019,C&YPS-Non Delegated,Costa Coffee 43040280,12/11/2019,13.83,Other Equipment & Materials - General,Fast-Food Restaurants (Quick Payment Service Pilot,GPC
18/10/2019 to 18/11/2019,C&YPS-Non Delegated,Countesthorpe Born And Br,30/10/2019,45,Provisions - General,Unknown,GPC
18/10/2019 to 18/11/2019,C&YPS-Non Delegated,Currys S/s,28/10/2019,324.99,Materials - General,Unknown,GPC
18/10/2019 to 18/11/2019,C&YPS-Non Delegated,Cut Price Beds,04/11/2019,349,Other Transfer Payments - Leaving Care Grants,"Furniture, Home Furnishings and Equipment Stores,",GPC
18/10/2019 to 18/11/2019,C&YPS-Non Delegated,De Montfort Hall,11/11/2019,91,Other Transfer Payments - Sector 17- Other,Government Services-Not Elsewhere Classified,GPC
18/10/2019 to 18/11/2019,C&YPS-Non Delegated,Derbyshire County Coun,29/10/2019,1.6,Other Transfer Payments - Section 23 Grants,Unknown,GPC
18/10/2019 to 18/11/2019,C&YPS-Non Delegated,Directline Flights,05/11/2019,81.19,Casual/Essential - Casual,Travel Agencies,GPC
18/10/2019 to 18/11/2019,C&YPS-Non Delegated,Directline Flights,05/11/2019,65.62,Casual/Essential - Casual,Travel Agencies,GPC
18/10/2019 to 18/11/2019,C&YPS-Non Delegated,Dolcino (Loughborough),24/10/2019,7.05,Other Transfer Payments - Section 23 Grants,Unknown,GPC
18/10/2019 to 18/11/2019,C&YPS-Non Delegated,Dominos Pizza UK & Irelan,14/11/2019,25.99,Other Equipment & Materials - General,"Eating Places, Restaurants",GPC
18/10/2019 to 18/11/2019,C&YPS-Non Delegated,Dunelm,22/10/2019,52.5,Other Equipment & Materials - General,Unknown,GPC
18/10/2019 to 18/11/2019,C&YPS-Non Delegated,Dvla Driver Online,21/10/2019,34,Other Expenditure - General,Government Services-Not Elsewhere Classified,GPC
18/10/2019 to 18/11/2019,C&YPS-Non Delegated,Dvla Driver Online,18/10/2019,34,Other Transfer Payments - Section 23 Grants,Government Services-Not Elsewhere Classified,GPC
18/10/2019 to 18/11/2019,C&YPS-Non Delegated,East Midlands Rail,11/11/2019,167.4,Public Transport -  Staff - General,Passenger Railways,GPC
18/10/2019 to 18/11/2019,C&YPS-Non Delegated,East Midlands Rail,11/11/2019,32.65,Public Transport -  Staff - General,Passenger Railways,GPC
18/10/2019 to 18/11/2019,C&YPS-Non Delegated,East Midlands Trai,05/11/2019,160.4,Casual/Essential - General,Passenger Railways,GPC
18/10/2019 to 18/11/2019,C&YPS-Non Delegated,East Midlands Trai,03/11/2019,7.2,Client/Volunteers - General,Passenger Railways,GPC
18/10/2019 to 18/11/2019,C&YPS-Non Delegated,East Midlands Trai,11/11/2019,174.5,Other Expenditure - General,Passenger Railways,GPC
18/10/2019 to 18/11/2019,C&YPS-Non Delegated,East Midlands Trai,30/10/2019,6.25,Public Transport -  Staff - General,Unknown,GPC
18/10/2019 to 18/11/2019,C&YPS-Non Delegated,East Midlands Trai,12/11/2019,133.65,Public Transport -  Staff - General,Passenger Railways,GPC
18/10/2019 to 18/11/2019,C&YPS-Non Delegated,Eb *atec 2020 Coventry,01/11/2019,110.5,Training Expenses - General,Business Services-Not Elsewhere Classified,GPC
18/10/2019 to 18/11/2019,C&YPS-Non Delegated,Eb *doing More With Gr,13/11/2019,83.33,Training Expenses - General,Business Services-Not Elsewhere Classified,GPC
18/10/2019 to 18/11/2019,C&YPS-Non Delegated,Eb *refund To Buyer,30/10/2019,35.7,Other Equipment & Materials - General,Unknown,GPC
18/10/2019 to 18/11/2019,C&YPS-Non Delegated,Eb *refund To Buyer,05/11/2019,17.85,Other Equipment & Materials - General,Business Services-Not Elsewhere Classified,GPC
18/10/2019 to 18/11/2019,C&YPS-Non Delegated,Eb *refund To Buyer,07/11/2019,111.71,Other Recoverable Charges - General,Business Services-Not Elsewhere Classified,GPC
18/10/2019 to 18/11/2019,C&YPS-Non Delegated,Eb *refund To Buyer,07/11/2019,111.71,Other Recoverable Charges - General,Business Services-Not Elsewhere Classified,GPC
18/10/2019 to 18/11/2019,C&YPS-Non Delegated,Eb *refund To Buyer,08/11/2019,112.91,Other Recoverable Charges - General,Business Services-Not Elsewhere Classified,GPC
18/10/2019 to 18/11/2019,C&YPS-Non Delegated,Eb *refund To Buyer,08/11/2019,112.91,Other Recoverable Charges - General,Business Services-Not Elsewhere Classified,GPC
18/10/2019 to 18/11/2019,C&YPS-Non Delegated,Eb *refund To Buyer,08/11/2019,112.91,Other Recoverable Charges - General,Business Services-Not Elsewhere Classified,GPC
18/10/2019 to 18/11/2019,C&YPS-Non Delegated,Eb *refund To Buyer,15/11/2019,46.76,Other Recoverable Charges - General,Business Services-Not Elsewhere Classified,GPC
18/10/2019 to 18/11/2019,C&YPS-Non Delegated,Eb *refund To Buyer,15/11/2019,46.76,Other Recoverable Charges - General,Business Services-Not Elsewhere Classified,GPC
18/10/2019 to 18/11/2019,C&YPS-Non Delegated,Emery Johnson Astills,24/10/2019,150,Other Transfer Payments - Sector 17- Other,"Legal Services, Attorneys",GPC
18/10/2019 to 18/11/2019,C&YPS-Non Delegated,Erg Facilities Lim,28/10/2019,187,Other Transfer Payments - Education Costs,Unknown,GPC
18/10/2019 to 18/11/2019,C&YPS-Non Delegated,Euroflorist Ab,13/11/2019,29.95,Other Expenditure - General,Florists,GPC
18/10/2019 to 18/11/2019,C&YPS-Non Delegated,Extra Room Self St,08/11/2019,129.6,Other Transfer Payments - General,Public Warehousing,GPC
18/10/2019 to 18/11/2019,C&YPS-Non Delegated,Facebk Nwzfqnjeq2,31/10/2019,29,Rent - Room Hire,Unknown,GPC
18/10/2019 to 18/11/2019,C&YPS-Non Delegated,Fast Cash Earl Shilton,24/10/2019,145,Other Transfer Payments - Leaving Care Grants,Unknown,GPC
18/10/2019 to 18/11/2019,C&YPS-Non Delegated,Fast Key Services Limi,23/10/2019,26.81,Other Expenditure - General,Business Services-Not Elsewhere Classified,GPC
18/10/2019 to 18/11/2019,C&YPS-Non Delegated,Fast Key Services Limi,17/10/2019,6.05,R & M of Buildings - General,Business Services-Not Elsewhere Classified,GPC
18/10/2019 to 18/11/2019,C&YPS-Non Delegated,Fast Key Services Limi,23/10/2019,7.24,R & M of Buildings - General,Business Services-Not Elsewhere Classified,GPC
18/10/2019 to 18/11/2019,C&YPS-Non Delegated,Findel Education,08/11/2019,39.98,Other Equipment & Materials - General,Direct Marketers - Other,GPC
18/10/2019 to 18/11/2019,C&YPS-Non Delegated,Gen Register Office,17/10/2019,18,Other Expenditure - General,Government Services-Not Elsewhere Classified,GPC
18/10/2019 to 18/11/2019,C&YPS-Non Delegated,Gen Register Office,17/10/2019,-7.5,Other Expenditure - General,Government Services-Not Elsewhere Classified,GPC
18/10/2019 to 18/11/2019,C&YPS-Non Delegated,Gen Register Office,21/10/2019,38,Other Transfer Payments - General,Government Services-Not Elsewhere Classified,GPC
18/10/2019 to 18/11/2019,C&YPS-Non Delegated,Gen Register Office,08/11/2019,45.25,Other Transfer Payments - General,Government Services-Not Elsewhere Classified,GPC
18/10/2019 to 18/11/2019,C&YPS-Non Delegated,Gen Register Office,08/11/2019,-38.75,Other Transfer Payments - General,Government Services-Not Elsewhere Classified,GPC
18/10/2019 to 18/11/2019,C&YPS-Non Delegated,Gen Register Office,17/10/2019,25,Other Transfer Payments - Section 23 Grants,Government Services-Not Elsewhere Classified,GPC
18/10/2019 to 18/11/2019,C&YPS-Non Delegated,Gen Register Office,30/10/2019,14,Other Transfer Payments - Section 23 Grants,Unknown,GPC
18/10/2019 to 18/11/2019,C&YPS-Non Delegated,Gen Register Office,06/11/2019,28,Other Transfer Payments - Section 23 Grants,Government Services-Not Elsewhere Classified,GPC
18/10/2019 to 18/11/2019,C&YPS-Non Delegated,Gen Register Office,21/10/2019,28,Other Transfer Payments - Sector 17- Other,Government Services-Not Elsewhere Classified,GPC
18/10/2019 to 18/11/2019,C&YPS-Non Delegated,Gen Register Office,21/10/2019,-11,Other Transfer Payments - Sector 17- Other,Government Services-Not Elsewhere Classified,GPC
18/10/2019 to 18/11/2019,C&YPS-Non Delegated,Gillys Sandwich Bar,25/10/2019,8.7,Other Transfer Payments - Section 24,Unknown,GPC
18/10/2019 to 18/11/2019,C&YPS-Non Delegated,Government Events,18/10/2019,386.58,Training Expenses - General,"Civic, Social, and Fraternal Associations",GPC
18/10/2019 to 18/11/2019,C&YPS-Non Delegated,Greggs Plc,30/10/2019,5,Other Transfer Payments - General,Unknown,GPC
18/10/2019 to 18/11/2019,C&YPS-Non Delegated,Harborough District Co,28/10/2019,2,Public Transport -  Staff - General,Unknown,GPC
18/10/2019 to 18/11/2019,C&YPS-Non Delegated,Hermitage Leisure Centre,21/10/2019,3.2,Subscriptions - General,"Membership Clubs (Sports, Recreation, Athletic), C",GPC
18/10/2019 to 18/11/2019,C&YPS-Non Delegated,Hm Passport Office,22/10/2019,54,Other Expenditure - General,Government Services-Not Elsewhere Classified,GPC
18/10/2019 to 18/11/2019,C&YPS-Non Delegated,Hmcourts-Service.G,30/10/2019,21,Other Transfer Payments - Section 23 Grants,Unknown,GPC
18/10/2019 to 18/11/2019,C&YPS-Non Delegated,Hole In The Wall,07/11/2019,79.95,Other Transfer Payments - Section 23 Grants,Men's and Boy's Clothing and Furnishings Store,GPC
18/10/2019 to 18/11/2019,C&YPS-Non Delegated,Holiday Inn Leicester Wig,08/11/2019,401.67,Rent - Room Hire,"Lodging-Hotels, Motels, Resorts",GPC
18/10/2019 to 18/11/2019,C&YPS-Non Delegated,Holiday Inn Leicester Wig,15/11/2019,406.67,Rent - Room Hire,"Lodging-Hotels, Motels, Resorts",GPC
18/10/2019 to 18/11/2019,C&YPS-Non Delegated,Home Bargains,11/11/2019,4.84,Materials - General,Hardware Stores,GPC
18/10/2019 to 18/11/2019,C&YPS-Non Delegated,Home Bargains Coalvill,23/10/2019,9.25,Other Equipment & Materials - General,Unknown,GPC
18/10/2019 to 18/11/2019,C&YPS-Non Delegated,Home Bargains Coalvill,13/11/2019,3.97,Other Transfer Payments - General,Hardware Stores,GPC
18/10/2019 to 18/11/2019,C&YPS-Non Delegated,Hotel Ibis Leicester City,29/10/2019,37.54,Conference - General,Unknown,GPC
18/10/2019 to 18/11/2019,C&YPS-Non Delegated,Hotel On Booking.Com Abin,25/10/2019,175,Other Transfer Payments - Sector 17- Other,Unknown,GPC
18/10/2019 to 18/11/2019,C&YPS-Non Delegated,Hotel On Booking.Com Herm,17/10/2019,51.67,Other Transfer Payments - Sector 17- Other,"Lodging-Hotels, Motels, Resorts",GPC
18/10/2019 to 18/11/2019,C&YPS-Non Delegated,Hotel On Booking.Com Mand,18/10/2019,329.17,Other Expenditure - General,"Lodging-Hotels, Motels, Resorts",GPC
18/10/2019 to 18/11/2019,C&YPS-Non Delegated,Hotel On Booking.Com Mand,26/10/2019,-395,Other Expenditure - General,Unknown,GPC
18/10/2019 to 18/11/2019,C&YPS-Non Delegated,Hotel On Booking.Com Prie,28/10/2019,90,Subsistence - General,Unknown,GPC
18/10/2019 to 18/11/2019,C&YPS-Non Delegated,Hotel On Booking.Com Room,18/10/2019,330,Other Expenditure - General,"Lodging-Hotels, Motels, Resorts",GPC
18/10/2019 to 18/11/2019,C&YPS-Non Delegated,Iceland,01/11/2019,24.69,Other Transfer Payments - Section 24,"Grocery Stores, Supermarkets",GPC
18/10/2019 to 18/11/2019,C&YPS-Non Delegated,Inclusive Group,01/11/2019,210.5,IT Equipment - General,Computer and Data Processing Services,GPC
18/10/2019 to 18/11/2019,C&YPS-Non Delegated,Insomnia Coffee Shop,30/10/2019,10.75,Subsistence - General,Unknown,GPC
18/10/2019 to 18/11/2019,C&YPS-Non Delegated,Itunes.Com/Bill,21/10/2019,83.32,IT Equipment - General,Record Shops,GPC
18/10/2019 to 18/11/2019,C&YPS-Non Delegated,Iz *hinckley Homel,30/10/2019,150,Other Transfer Payments - General,Unknown,GPC
18/10/2019 to 18/11/2019,C&YPS-Non Delegated,Iz *hinckley Homel,01/11/2019,150,Other Transfer Payments - General,Charitable and Social Service Organizations,GPC
18/10/2019 to 18/11/2019,C&YPS-Non Delegated,Jhoots Wigston,01/11/2019,5.35,Other Equipment & Materials - General,"Drug Stores, Pharmacies",GPC
18/10/2019 to 18/11/2019,C&YPS-Non Delegated,Kfc - Leicester Msa,08/11/2019,5.81,Other Transfer Payments - Section 24,Fast-Food Restaurants (Quick Payment Service Pilot,GPC
18/10/2019 to 18/11/2019,C&YPS-Non Delegated,Kilworth House Hotel,29/10/2019,130,Subsistence - General,Unknown,GPC
18/10/2019 to 18/11/2019,C&YPS-Non Delegated,Le Pain Quotidien,05/11/2019,3,Subsistence - General,"Eating Places, Restaurants",GPC
18/10/2019 to 18/11/2019,C&YPS-Non Delegated,Leic City Council,08/11/2019,12,Other Expenditure - General,Government Services-Not Elsewhere Classified,GPC
18/10/2019 to 18/11/2019,C&YPS-Non Delegated,Leic City Council,08/11/2019,12,Other Expenditure - General,Government Services-Not Elsewhere Classified,GPC
18/10/2019 to 18/11/2019,C&YPS-Non Delegated,Leic City Council,08/11/2019,12,Other Expenditure - General,Government Services-Not Elsewhere Classified,GPC
18/10/2019 to 18/11/2019,C&YPS-Non Delegated,Leic City Council,12/11/2019,12,Other Expenditure - General,Government Services-Not Elsewhere Classified,GPC
18/10/2019 to 18/11/2019,C&YPS-Non Delegated,Leic City Council,17/10/2019,-13,Other Transfer Payments - Section 23 Grants,Government Services-Not Elsewhere Classified,GPC
18/10/2019 to 18/11/2019,C&YPS-Non Delegated,Leic City Council,22/10/2019,12,Other Transfer Payments - Section 23 Grants,Government Services-Not Elsewhere Classified,GPC
18/10/2019 to 18/11/2019,C&YPS-Non Delegated,Leic City Council,22/10/2019,12,Other Transfer Payments - Section 23 Grants,Government Services-Not Elsewhere Classified,GPC
18/10/2019 to 18/11/2019,C&YPS-Non Delegated,Leic City Council,23/10/2019,12,Other Transfer Payments - Section 23 Grants,Government Services-Not Elsewhere Classified,GPC
18/10/2019 to 18/11/2019,C&YPS-Non Delegated,Leic City Council,24/10/2019,23,Other Transfer Payments - Section 23 Grants,Government Services-Not Elsewhere Classified,GPC
18/10/2019 to 18/11/2019,C&YPS-Non Delegated,Leic City Council,30/10/2019,23,Other Transfer Payments - Section 23 Grants,Unknown,GPC
18/10/2019 to 18/11/2019,C&YPS-Non Delegated,Leic City Council,30/10/2019,12,Other Transfer Payments - Section 23 Grants,Unknown,GPC
18/10/2019 to 18/11/2019,C&YPS-Non Delegated,Leic City Council,30/10/2019,12,Other Transfer Payments - Section 23 Grants,Unknown,GPC
18/10/2019 to 18/11/2019,C&YPS-Non Delegated,Leic City Council,06/11/2019,10,Other Transfer Payments - Section 23 Grants,Government Services-Not Elsewhere Classified,GPC
18/10/2019 to 18/11/2019,C&YPS-Non Delegated,Leic City Council,06/11/2019,23,Other Transfer Payments - Section 23 Grants,Government Services-Not Elsewhere Classified,GPC
18/10/2019 to 18/11/2019,C&YPS-Non Delegated,Leic City Council,06/11/2019,12,Other Transfer Payments - Section 23 Grants,Government Services-Not Elsewhere Classified,GPC
18/10/2019 to 18/11/2019,C&YPS-Non Delegated,Leic City Council,06/11/2019,23,Other Transfer Payments - Section 23 Grants,Government Services-Not Elsewhere Classified,GPC
18/10/2019 to 18/11/2019,C&YPS-Non Delegated,Leic City Council,07/11/2019,-11,Other Transfer Payments - Section 23 Grants,Government Services-Not Elsewhere Classified,GPC
18/10/2019 to 18/11/2019,C&YPS-Non Delegated,Leic City Council,11/11/2019,12,Other Transfer Payments - Section 23 Grants,Government Services-Not Elsewhere Classified,GPC
18/10/2019 to 18/11/2019,C&YPS-Non Delegated,Leic City Council,12/11/2019,12,Other Transfer Payments - Section 23 Grants,Government Services-Not Elsewhere Classified,GPC
18/10/2019 to 18/11/2019,C&YPS-Non Delegated,Leic City Council,12/11/2019,12,Other Transfer Payments - Section 23 Grants,Government Services-Not Elsewhere Classified,GPC
18/10/2019 to 18/11/2019,C&YPS-Non Delegated,Leic City Council,28/10/2019,12,Other Transfer Payments - Sector 17- Other,Unknown,GPC
18/10/2019 to 18/11/2019,C&YPS-Non Delegated,Leic City Council,22/10/2019,10.5,Subscriptions - General,Government Services-Not Elsewhere Classified,GPC
18/10/2019 to 18/11/2019,C&YPS-Non Delegated,Leic City Council,11/11/2019,12,Subscriptions - General,Government Services-Not Elsewhere Classified,GPC
18/10/2019 to 18/11/2019,C&YPS-Non Delegated,Lidl Gb Leicester,14/11/2019,13.91,Other Transfer Payments - Section 24,"Grocery Stores, Supermarkets",GPC
18/10/2019 to 18/11/2019,C&YPS-Non Delegated,Lidl Gb Melton Mowbra,21/10/2019,5.77,Other Transfer Payments - General,Unknown,GPC
18/10/2019 to 18/11/2019,C&YPS-Non Delegated,Loughborough Sst,17/10/2019,21.85,Casual/Essential - General,Passenger Railways,GPC
18/10/2019 to 18/11/2019,C&YPS-Non Delegated,Lul Ticket Machine,07/11/2019,19.6,Other Transport Costs - General,Passenger Railways,GPC
18/10/2019 to 18/11/2019,C&YPS-Non Delegated,Lul Ticket Machine,08/11/2019,19.6,Other Transport Costs - General,Passenger Railways,GPC
18/10/2019 to 18/11/2019,C&YPS-Non Delegated,M6 Toll,01/11/2019,4,Other Transfer Payments - General,"Bridge and Road Fees, Tolls",GPC
18/10/2019 to 18/11/2019,C&YPS-Non Delegated,Market Harborough Sf Conn,24/10/2019,9.87,Training Expenses - General,Unknown,GPC
18/10/2019 to 18/11/2019,C&YPS-Non Delegated,Max Photobooth,06/11/2019,6,Other Expenditure - General,Photographic Studios,GPC
18/10/2019 to 18/11/2019,C&YPS-Non Delegated,McDonalds,12/11/2019,14.54,Other Equipment & Materials - General,Fast-Food Restaurants (Quick Payment Service Pilot,GPC
18/10/2019 to 18/11/2019,C&YPS-Non Delegated,McDonalds,25/10/2019,5.09,Other Transfer Payments - General,Unknown,GPC
18/10/2019 to 18/11/2019,C&YPS-Non Delegated,McDonalds,25/10/2019,1.24,Other Transfer Payments - General,Unknown,GPC
18/10/2019 to 18/11/2019,C&YPS-Non Delegated,McDonalds,29/10/2019,6.55,Other Transfer Payments - General,Unknown,GPC
18/10/2019 to 18/11/2019,C&YPS-Non Delegated,McDonalds,30/10/2019,4.08,Other Transfer Payments - General,Unknown,GPC
18/10/2019 to 18/11/2019,C&YPS-Non Delegated,McDonalds,04/11/2019,11.78,Other Transfer Payments - General,Fast-Food Restaurants (Quick Payment Service Pilot,GPC
18/10/2019 to 18/11/2019,C&YPS-Non Delegated,McDonalds,16/10/2019,8.07,Other Transfer Payments - Leaving Care Grants,Fast-Food Restaurants (Quick Payment Service Pilot,GPC
18/10/2019 to 18/11/2019,C&YPS-Non Delegated,McDonalds,26/10/2019,4.79,Other Transfer Payments - Leaving Care Grants,Unknown,GPC
18/10/2019 to 18/11/2019,C&YPS-Non Delegated,McDonalds,28/10/2019,2.56,Other Transfer Payments - Section 23 Grants,Unknown,GPC
18/10/2019 to 18/11/2019,C&YPS-Non Delegated,McDonalds,11/11/2019,8.83,Other Transfer Payments - Section 23 Grants,Fast-Food Restaurants (Quick Payment Service Pilot,GPC
18/10/2019 to 18/11/2019,C&YPS-Non Delegated,McDonalds,15/11/2019,7.14,Other Transfer Payments - Section 23 Grants,"Eating Places, Restaurants",GPC
18/10/2019 to 18/11/2019,C&YPS-Non Delegated,McDonalds,15/11/2019,6.58,Other Transfer Payments - Section 23 Grants,Fast-Food Restaurants (Quick Payment Service Pilot,GPC
18/10/2019 to 18/11/2019,C&YPS-Non Delegated,McDonalds,13/11/2019,7.06,Other Transfer Payments - Section 24,"Eating Places, Restaurants",GPC
18/10/2019 to 18/11/2019,C&YPS-Non Delegated,McDonalds,05/11/2019,1.69,Provisions - General,Fast-Food Restaurants (Quick Payment Service Pilot,GPC
18/10/2019 to 18/11/2019,C&YPS-Non Delegated,McDonalds,24/10/2019,8.01,Subsistence - General,Unknown,GPC
18/10/2019 to 18/11/2019,C&YPS-Non Delegated,McDonalds,04/11/2019,1.86,Subsistence - General,Fast-Food Restaurants (Quick Payment Service Pilot,GPC
18/10/2019 to 18/11/2019,C&YPS-Non Delegated,McDonalds,04/11/2019,7.19,Subsistence - General,Fast-Food Restaurants (Quick Payment Service Pilot,GPC
18/10/2019 to 18/11/2019,C&YPS-Non Delegated,McDonalds,04/11/2019,6.38,Subsistence - General,Fast-Food Restaurants (Quick Payment Service Pilot,GPC
18/10/2019 to 18/11/2019,C&YPS-Non Delegated,McDonalds,14/11/2019,12.62,Subsistence - General,"Eating Places, Restaurants",GPC
18/10/2019 to 18/11/2019,C&YPS-Non Delegated,Mick George Ltd,28/10/2019,115,Other Transfer Payments - Sector 17- Other,Unknown,GPC
18/10/2019 to 18/11/2019,C&YPS-Non Delegated,Milk&more,01/11/2019,27.5,Provisions - General,Dairy Products Stores,GPC
18/10/2019 to 18/11/2019,C&YPS-Non Delegated,Milk&more,01/11/2019,38.75,Provisions - General,Dairy Products Stores,GPC
18/10/2019 to 18/11/2019,C&YPS-Non Delegated,Millstone Day Nursery,13/11/2019,75,Other Transfer Payments - Section 23 Grants,Child Care Services,GPC
18/10/2019 to 18/11/2019,C&YPS-Non Delegated,Nas Uk,14/11/2019,34.95,General Equipment - General,Charitable and Social Service Organizations,GPC
18/10/2019 to 18/11/2019,C&YPS-Non Delegated,National Youth Agency,14/11/2019,60,Training Expenses - General,Charitable and Social Service Organizations,GPC
18/10/2019 to 18/11/2019,C&YPS-Non Delegated,National Youth Agency,14/11/2019,60,Training Expenses - General,Charitable and Social Service Organizations,GPC
18/10/2019 to 18/11/2019,C&YPS-Non Delegated,Ncc Income,06/11/2019,9.17,Other Transfer Payments - Section 23 Grants,Government Services-Not Elsewhere Classified,GPC
18/10/2019 to 18/11/2019,C&YPS-Non Delegated,Ncp Hinkley Brittania,07/11/2019,0.6,Other Transfer Payments - General,Automobile Parking Lots and Garages,GPC
18/10/2019 to 18/11/2019,C&YPS-Non Delegated,Ncp Limited,06/11/2019,1.6,Client/Volunteers - General,Automobile Parking Lots and Garages,GPC
18/10/2019 to 18/11/2019,C&YPS-Non Delegated,Ncp Limited,14/11/2019,4.5,Other Transfer Payments - Section 24,Automobile Parking Lots and Garages,GPC
18/10/2019 to 18/11/2019,C&YPS-Non Delegated,Ncp Limited,05/11/2019,13.5,Training Expenses - General,Automobile Parking Lots and Garages,GPC
18/10/2019 to 18/11/2019,C&YPS-Non Delegated,New Look,23/10/2019,10.04,Educational Visits - General,Unknown,GPC
18/10/2019 to 18/11/2019,C&YPS-Non Delegated,New Look 1635,25/10/2019,28.05,Other Transfer Payments - Education Costs,Unknown,GPC
18/10/2019 to 18/11/2019,C&YPS-Non Delegated,New Look Internet,06/11/2019,35.97,Educational Visits - General,Women's Ready to Wear Shoes,GPC
18/10/2019 to 18/11/2019,C&YPS-Non Delegated,New Look Internet,06/11/2019,14.98,Educational Visits - General,Women's Ready to Wear Shoes,GPC
18/10/2019 to 18/11/2019,C&YPS-Non Delegated,Next Retail Ltd,15/11/2019,172,Other Transfer Payments - Section 23 Grants,Family Clothing Stores,GPC
18/10/2019 to 18/11/2019,C&YPS-Non Delegated,Norfolk County Council,14/11/2019,75,Books - General,Government Services-Not Elsewhere Classified,GPC
18/10/2019 to 18/11/2019,C&YPS-Non Delegated,North Wilshire Carpets,24/10/2019,496,Other Transfer Payments - Leaving Care Grants,Unknown,GPC
18/10/2019 to 18/11/2019,C&YPS-Non Delegated,Nwldc Card Payment,12/11/2019,24,Other Transfer Payments - Sector 17- Other,Government Services-Not Elsewhere Classified,GPC
18/10/2019 to 18/11/2019,C&YPS-Non Delegated,Otterbox Ireland,30/10/2019,127.98,IT Equipment - General,Unknown,GPC
18/10/2019 to 18/11/2019,C&YPS-Non Delegated,Paypal *complementg,05/11/2019,145,Other Transfer Payments - Sector 17- Other,"Medical Services, Health Practitioners-Not Elsewhe",GPC
18/10/2019 to 18/11/2019,C&YPS-Non Delegated,Paypal *snowbooksli,22/10/2019,346,Other Expenditure - Assist/Conts to Schemes,Unknown,GPC
18/10/2019 to 18/11/2019,C&YPS-Non Delegated,Post Office Counter,06/11/2019,11,Other Expenditure - General,Postage Stamps,GPC
18/10/2019 to 18/11/2019,C&YPS-Non Delegated,Post Office Counter,08/11/2019,9.1,Other Expenditure - General,Postage Stamps,GPC
18/10/2019 to 18/11/2019,C&YPS-Non Delegated,Post Office Counter,25/10/2019,16.37,Other Transfer Payments - General,Postage Stamps,GPC
18/10/2019 to 18/11/2019,C&YPS-Non Delegated,Post Office Counter,31/10/2019,42,Postal Services - General,Unknown,GPC
18/10/2019 to 18/11/2019,C&YPS-Non Delegated,Poundland Ltd 1142,13/11/2019,6,Other Transfer Payments - General,Discount Stores,GPC
18/10/2019 to 18/11/2019,C&YPS-Non Delegated,Poundstretcher 791,05/11/2019,80.58,Other Transfer Payments - General,Variety Stores,GPC
18/10/2019 to 18/11/2019,C&YPS-Non Delegated,Poundstretcher 791,21/10/2019,10.03,Other Transfer Payments - Leaving Care Grants,Unknown,GPC
18/10/2019 to 18/11/2019,C&YPS-Non Delegated,Poundstretcher 791,17/10/2019,31.76,Other Transfer Payments - Sector 17- Other,Variety Stores,GPC
18/10/2019 to 18/11/2019,C&YPS-Non Delegated,Poundstretcher 791,18/10/2019,40.55,Provisions - General,Variety Stores,GPC
18/10/2019 to 18/11/2019,C&YPS-Non Delegated,Pp*doughnotts,18/10/2019,36.6,Other Expenditure - General,"Miscellaneous Food Stores-Convenience Stores, Mark",GPC
18/10/2019 to 18/11/2019,C&YPS-Non Delegated,Premier Inn44011950,07/11/2019,390,Other Equipment & Materials - General,PREMIER TRAVEL,GPC
18/10/2019 to 18/11/2019,C&YPS-Non Delegated,Premier Inn44011950,07/11/2019,61.44,Other Equipment & Materials - General,PREMIER TRAVEL,GPC
18/10/2019 to 18/11/2019,C&YPS-Non Delegated,Premier Inn44011950,08/11/2019,15.83,Other Equipment & Materials - General,PREMIER TRAVEL,GPC
18/10/2019 to 18/11/2019,C&YPS-Non Delegated,Premier Inn44011950,08/11/2019,17.5,Other Equipment & Materials - General,PREMIER TRAVEL,GPC
18/10/2019 to 18/11/2019,C&YPS-Non Delegated,Premier Inn44521255,20/10/2019,-65,Other Transfer Payments - Section 23 Grants,Unknown,GPC
18/10/2019 to 18/11/2019,C&YPS-Non Delegated,Premier Inn44521255,28/10/2019,68,Other Transfer Payments - Section 23 Grants,Unknown,GPC
18/10/2019 to 18/11/2019,C&YPS-Non Delegated,Premier Inn44521255,13/11/2019,43.33,Other Transfer Payments - Section 23 Grants,PREMIER TRAVEL,GPC
18/10/2019 to 18/11/2019,C&YPS-Non Delegated,Premier Inn44521255,13/11/2019,43.33,Other Transfer Payments - Section 23 Grants,PREMIER TRAVEL,GPC
18/10/2019 to 18/11/2019,C&YPS-Non Delegated,Premier Inn44521255,15/11/2019,-43.33,Other Transfer Payments - Section 23 Grants,PREMIER TRAVEL,GPC
18/10/2019 to 18/11/2019,C&YPS-Non Delegated,Premier Inn44521680,04/11/2019,57.92,Casual/Essential - Casual,PREMIER TRAVEL,GPC
18/10/2019 to 18/11/2019,C&YPS-Non Delegated,Premiermeetings.Co.Uk,24/10/2019,168,Conference - General,Business Services-Not Elsewhere Classified,GPC
18/10/2019 to 18/11/2019,C&YPS-Non Delegated,Pre-School Learning Al,15/11/2019,210,Subscriptions - General,Schools and Educational Services-Not Elsewhere Cla,GPC
18/10/2019 to 18/11/2019,C&YPS-Non Delegated,Pret A Manger,12/11/2019,14.45,Other Equipment & Materials - General,"Eating Places, Restaurants",GPC
18/10/2019 to 18/11/2019,C&YPS-Non Delegated,Primark 477,30/10/2019,42.5,Materials - General,Unknown,GPC
18/10/2019 to 18/11/2019,C&YPS-Non Delegated,Primark 477,25/10/2019,23,Other Transfer Payments - General,Unknown,GPC
18/10/2019 to 18/11/2019,C&YPS-Non Delegated,Primark 477,15/11/2019,35,Other Transfer Payments - Section 23 Grants,Family Clothing Stores,GPC
18/10/2019 to 18/11/2019,C&YPS-Non Delegated,Printerpix UK Limited,11/11/2019,13.48,Other Transfer Payments - General,Miscellaneous Apparel and Accessory Stores,GPC
18/10/2019 to 18/11/2019,C&YPS-Non Delegated,Product Support Ag,07/11/2019,2.84,Other Transfer Payments - Leaving Care Grants,Continuity/Subscription Merchants,GPC
18/10/2019 to 18/11/2019,C&YPS-Non Delegated,Product Support Ag,07/11/2019,1.89,Other Transfer Payments - Leaving Care Grants,Continuity/Subscription Merchants,GPC
18/10/2019 to 18/11/2019,C&YPS-Non Delegated,Progress Works Gym Limite,25/10/2019,20,Provisions - General,"Membership Clubs (Sports, Recreation, Athletic), C",GPC
18/10/2019 to 18/11/2019,C&YPS-Non Delegated,Psa Parts,25/10/2019,32,IT Equipment - General,Unknown,GPC
18/10/2019 to 18/11/2019,C&YPS-Non Delegated,Puregym Limited,29/10/2019,26.99,Public Transport -  Staff - General,Unknown,GPC
18/10/2019 to 18/11/2019,C&YPS-Non Delegated,Qd Stores,07/11/2019,49.99,Stationery - General,Discount Stores,GPC
18/10/2019 to 18/11/2019,C&YPS-Non Delegated,Ramblers Coffee Shop,29/10/2019,6.13,Other Transfer Payments - Section 23 Grants,Unknown,GPC
18/10/2019 to 18/11/2019,C&YPS-Non Delegated,Riide Adt Taxis,13/11/2019,21.8,Other Transfer Payments - Section 24,Computer Software Stores,GPC
18/10/2019 to 18/11/2019,C&YPS-Non Delegated,Royal Mail Online Shop,23/10/2019,122,Postal Services - General,Postage Stamps,GPC
18/10/2019 to 18/11/2019,C&YPS-Non Delegated,Sainsburys S/mkt,23/10/2019,21.05,Other Expenditure - General,Unknown,GPC
18/10/2019 to 18/11/2019,C&YPS-Non Delegated,Sainsburys S/mkt,29/10/2019,5.52,Other Expenditure - General,Unknown,GPC
18/10/2019 to 18/11/2019,C&YPS-Non Delegated,Sainsburys S/mkt,28/10/2019,13.55,Provisions - General,Unknown,GPC
18/10/2019 to 18/11/2019,C&YPS-Non Delegated,Sainsburys S/mkt,28/10/2019,13.73,Provisions - General,Unknown,GPC
18/10/2019 to 18/11/2019,C&YPS-Non Delegated,Sainsburys S/mkts,17/10/2019,8.55,Other Equipment & Materials - General,"Grocery Stores, Supermarkets",GPC
18/10/2019 to 18/11/2019,C&YPS-Non Delegated,Sainsburys S/mkts,31/10/2019,8.8,Other Equipment & Materials - General,Unknown,GPC
18/10/2019 to 18/11/2019,C&YPS-Non Delegated,Sainsburys S/mkts,05/11/2019,23.31,Other Equipment & Materials - General,"Grocery Stores, Supermarkets",GPC
18/10/2019 to 18/11/2019,C&YPS-Non Delegated,Sainsburys S/mkts,14/11/2019,34,Other Equipment & Materials - General,"Grocery Stores, Supermarkets",GPC
18/10/2019 to 18/11/2019,C&YPS-Non Delegated,Sainsburys S/mkts,17/10/2019,9.5,Other Expenditure - General,"Grocery Stores, Supermarkets",GPC
18/10/2019 to 18/11/2019,C&YPS-Non Delegated,Sainsburys S/mkts,04/11/2019,12,Other Transfer Payments - Leaving Care Grants,"Grocery Stores, Supermarkets",GPC
18/10/2019 to 18/11/2019,C&YPS-Non Delegated,Sainsburys S/mkts,13/11/2019,6,Other Transfer Payments - Section 23 Grants,"Grocery Stores, Supermarkets",GPC
18/10/2019 to 18/11/2019,C&YPS-Non Delegated,Sainsburys S/mkts,30/10/2019,36.6,Postal Services - General,Unknown,GPC
18/10/2019 to 18/11/2019,C&YPS-Non Delegated,Sainsburys S/mkts,12/11/2019,24,Provisions - General,"Grocery Stores, Supermarkets",GPC
18/10/2019 to 18/11/2019,C&YPS-Non Delegated,Shell Brantinghill,14/11/2019,6.39,Training Expenses - General,Service Stations (with or without Ancillary Servic,GPC
18/10/2019 to 18/11/2019,C&YPS-Non Delegated,Simplepay Solutions Uk,05/11/2019,12,Casual/Essential - General,Automobile Parking Lots and Garages,GPC
18/10/2019 to 18/11/2019,C&YPS-Non Delegated,Snowdome Limited,15/11/2019,250,Public Transport -  Staff - General,"Membership Clubs (Sports, Recreation, Athletic), C",GPC
18/10/2019 to 18/11/2019,C&YPS-Non Delegated,Snowdome Limited,15/11/2019,250,Public Transport -  Staff - General,"Membership Clubs (Sports, Recreation, Athletic), C",GPC
18/10/2019 to 18/11/2019,C&YPS-Non Delegated,Snowdome Limited,15/11/2019,250,Public Transport -  Staff - General,"Membership Clubs (Sports, Recreation, Athletic), C",GPC
18/10/2019 to 18/11/2019,C&YPS-Non Delegated,Snowdome Limited,15/11/2019,20.7,Public Transport -  Staff - General,"Membership Clubs (Sports, Recreation, Athletic), C",GPC
18/10/2019 to 18/11/2019,C&YPS-Non Delegated,Sofa,17/10/2019,152.92,Other Equipment & Materials - General,"Furniture, Home Furnishings and Equipment Stores,",GPC
18/10/2019 to 18/11/2019,C&YPS-Non Delegated,Somerby Riding Centre Llp,30/10/2019,50,Other Transfer Payments - Section 23 Grants,Unknown,GPC
18/10/2019 to 18/11/2019,C&YPS-Non Delegated,Spar Market Harborough,11/11/2019,4.4,Cleaning Materials - General,"Grocery Stores, Supermarkets",GPC
18/10/2019 to 18/11/2019,C&YPS-Non Delegated,Spar Market Harborough,13/11/2019,1.83,Other Equipment & Materials - General,"Grocery Stores, Supermarkets",GPC
18/10/2019 to 18/11/2019,C&YPS-Non Delegated,Sportsdirect 125,07/11/2019,19.98,Materials - General,Sporting Goods Stores,GPC
18/10/2019 to 18/11/2019,C&YPS-Non Delegated,Sportsdirect 65,06/11/2019,60.97,Subscriptions - General,Sporting Goods Stores,GPC
18/10/2019 to 18/11/2019,C&YPS-Non Delegated,Sportsdirect.Com,23/10/2019,22.99,Educational Visits - General,Unknown,GPC
18/10/2019 to 18/11/2019,C&YPS-Non Delegated,Sportsdirect.Com,26/10/2019,164.95,Materials - General,Unknown,GPC
18/10/2019 to 18/11/2019,C&YPS-Non Delegated,Sportsdirect.Com,23/10/2019,166.95,Provisions - General,Unknown,GPC
18/10/2019 to 18/11/2019,C&YPS-Non Delegated,Spot On Leisure (Loughbor,05/11/2019,3.2,Subscriptions - General,Billiard and Pool Establishments,GPC
18/10/2019 to 18/11/2019,C&YPS-Non Delegated,Spot On Leisure (Loughbor,08/11/2019,8.27,Subscriptions - General,Billiard and Pool Establishments,GPC
18/10/2019 to 18/11/2019,C&YPS-Non Delegated,St Johns Self Storage,23/10/2019,58.33,Other Transfer Payments - General,Unknown,GPC
18/10/2019 to 18/11/2019,C&YPS-Non Delegated,St Pancras Intl,05/11/2019,6.95,Subsistence - General,"Eating Places, Restaurants",GPC
18/10/2019 to 18/11/2019,C&YPS-Non Delegated,Staples.Co.Uk,25/10/2019,73,Other Services - General,Unknown,GPC
18/10/2019 to 18/11/2019,C&YPS-Non Delegated,Star Carpets,21/10/2019,280,Materials - General,Floor Coverings   Stores,GPC
18/10/2019 to 18/11/2019,C&YPS-Non Delegated,Starbucks,31/10/2019,10.5,Subsistence - General,Unknown,GPC
18/10/2019 to 18/11/2019,C&YPS-Non Delegated,Starbucks Ashby,08/11/2019,6.9,Subsistence - General,"Eating Places, Restaurants",GPC
18/10/2019 to 18/11/2019,C&YPS-Non Delegated,Storage Giant Ltd,12/11/2019,47.92,Other Transfer Payments - General,Public Warehousing,GPC
18/10/2019 to 18/11/2019,C&YPS-Non Delegated,Storagemart UK A-4405ad50,01/11/2019,163.03,Other Transfer Payments - General,"Motor Freight Carriers, and Trucking",GPC
18/10/2019 to 18/11/2019,C&YPS-Non Delegated,Subway 30001,30/10/2019,2.99,Other Transfer Payments - General,Unknown,GPC
18/10/2019 to 18/11/2019,C&YPS-Non Delegated,Subway 66173,25/10/2019,9.38,Other Transfer Payments - Section 23 Grants,Unknown,GPC
18/10/2019 to 18/11/2019,C&YPS-Non Delegated,Subway 66173,11/11/2019,8.28,Other Transfer Payments - Section 23 Grants,Fast-Food Restaurants (Quick Payment Service Pilot,GPC
18/10/2019 to 18/11/2019,C&YPS-Non Delegated,Tamworth Borough Counc,15/11/2019,300,Other Transfer Payments - Section 24,Government Services-Not Elsewhere Classified,GPC
18/10/2019 to 18/11/2019,C&YPS-Non Delegated,Tesco Store 2819,26/10/2019,45.88,Materials - General,Unknown,GPC
18/10/2019 to 18/11/2019,C&YPS-Non Delegated,Tesco Store 2846,08/11/2019,74.51,Materials - General,"Grocery Stores, Supermarkets",GPC
18/10/2019 to 18/11/2019,C&YPS-Non Delegated,Tesco Store 2846,09/11/2019,72.06,Materials - General,"Grocery Stores, Supermarkets",GPC
18/10/2019 to 18/11/2019,C&YPS-Non Delegated,Tesco Store 2846,16/11/2019,75.64,Materials - General,"Grocery Stores, Supermarkets",GPC
18/10/2019 to 18/11/2019,C&YPS-Non Delegated,Tesco Store 2846,23/10/2019,3,Provisions - General,Unknown,GPC
18/10/2019 to 18/11/2019,C&YPS-Non Delegated,Tesco Store 2846,29/10/2019,3,Provisions - General,Unknown,GPC
18/10/2019 to 18/11/2019,C&YPS-Non Delegated,Tesco Store 2846,12/11/2019,30,Provisions - General,"Grocery Stores, Supermarkets",GPC
18/10/2019 to 18/11/2019,C&YPS-Non Delegated,Tesco Store 2849,29/10/2019,10.27,Other Equipment & Materials - General,Unknown,GPC
18/10/2019 to 18/11/2019,C&YPS-Non Delegated,Tesco Store 2849,13/11/2019,9.2,Other Equipment & Materials - General,"Grocery Stores, Supermarkets",GPC
18/10/2019 to 18/11/2019,C&YPS-Non Delegated,Tesco Store 2849,24/10/2019,3.5,Other Expenditure - General,Unknown,GPC
18/10/2019 to 18/11/2019,C&YPS-Non Delegated,Tesco Store 2849,21/10/2019,2.95,Provisions - General,Unknown,GPC
18/10/2019 to 18/11/2019,C&YPS-Non Delegated,Tesco Store 2849,06/11/2019,14.99,Provisions - General,"Grocery Stores, Supermarkets",GPC
18/10/2019 to 18/11/2019,C&YPS-Non Delegated,Tesco Store 2849,13/11/2019,5.5,Provisions - General,"Grocery Stores, Supermarkets",GPC
18/10/2019 to 18/11/2019,C&YPS-Non Delegated,Tesco Stores 2044,22/10/2019,10,Provisions - General,Unknown,GPC
18/10/2019 to 18/11/2019,C&YPS-Non Delegated,Tesco Stores 5182,30/10/2019,17.62,Materials - General,Unknown,GPC
18/10/2019 to 18/11/2019,C&YPS-Non Delegated,Tesco Stores 5182,11/11/2019,8.99,Provisions - General,"Grocery Stores, Supermarkets",GPC
18/10/2019 to 18/11/2019,C&YPS-Non Delegated,Tesco Stores 6135,29/10/2019,3.5,Other Expenditure - Assist/Conts to Schemes,Unknown,GPC
18/10/2019 to 18/11/2019,C&YPS-Non Delegated,Tesco Stores 6418,21/10/2019,36.91,Other Expenditure - General,Unknown,GPC
18/10/2019 to 18/11/2019,C&YPS-Non Delegated,Tesco Stores 6678,23/10/2019,12.8,Other Equipment & Materials - General,Unknown,GPC
18/10/2019 to 18/11/2019,C&YPS-Non Delegated,The Book People,22/10/2019,46.33,Books - General,Unknown,GPC
18/10/2019 to 18/11/2019,C&YPS-Non Delegated,The Book People,29/10/2019,187.21,Books - General,Unknown,GPC
18/10/2019 to 18/11/2019,C&YPS-Non Delegated,The Book People,06/11/2019,56.92,Books - General,Book Stores,GPC
18/10/2019 to 18/11/2019,C&YPS-Non Delegated,The Book People,13/11/2019,28.95,Books - General,Book Stores,GPC
18/10/2019 to 18/11/2019,C&YPS-Non Delegated,The Book People,14/11/2019,-12.52,Books - General,Book Stores,GPC
18/10/2019 to 18/11/2019,C&YPS-Non Delegated,The Carpet Collection,08/11/2019,300,Other Transfer Payments - General,Floor Coverings   Stores,GPC
18/10/2019 to 18/11/2019,C&YPS-Non Delegated,The Carpet Collection,08/11/2019,333,Other Transfer Payments - General,Floor Coverings   Stores,GPC
18/10/2019 to 18/11/2019,C&YPS-Non Delegated,The Makaton Charit,04/11/2019,60.45,Other Equipment & Materials - General,Schools and Educational Services-Not Elsewhere Cla,GPC
18/10/2019 to 18/11/2019,C&YPS-Non Delegated,The Myers Briggs Company,22/10/2019,44,Other Equipment & Materials - General,Business Services-Not Elsewhere Classified,GPC
18/10/2019 to 18/11/2019,C&YPS-Non Delegated,The Pasty Shop - Eusto,08/11/2019,5.12,Other Equipment & Materials - General,Fast-Food Restaurants (Quick Payment Service Pilot,GPC
18/10/2019 to 18/11/2019,C&YPS-Non Delegated,The Post Office,08/11/2019,2.26,Other Transfer Payments - Section 24,Postage Stamps,GPC
18/10/2019 to 18/11/2019,C&YPS-Non Delegated,The Range,28/10/2019,8.22,Other Equipment & Materials - General,Unknown,GPC
18/10/2019 to 18/11/2019,C&YPS-Non Delegated,The Range,15/11/2019,41.01,Other Equipment & Materials - General,Department Stores,GPC
18/10/2019 to 18/11/2019,C&YPS-Non Delegated,The Store Room,11/11/2019,123.08,Other Transfer Payments - General,"Motor Freight Carriers, and Trucking",GPC
18/10/2019 to 18/11/2019,C&YPS-Non Delegated,The Store Room,11/11/2019,122.68,Other Transfer Payments - General,"Motor Freight Carriers, and Trucking",GPC
18/10/2019 to 18/11/2019,C&YPS-Non Delegated,The Store Room,11/11/2019,76,Other Transfer Payments - General,"Motor Freight Carriers, and Trucking",GPC
18/10/2019 to 18/11/2019,C&YPS-Non Delegated,The Store Room,31/10/2019,123,Other Transfer Payments - Sector 17- Other,Unknown,GPC
18/10/2019 to 18/11/2019,C&YPS-Non Delegated,The Works,25/10/2019,16.25,Other Expenditure - General,Unknown,GPC
18/10/2019 to 18/11/2019,C&YPS-Non Delegated,The Z Hotel Bath,11/11/2019,55,Subsistence - General,"Lodging-Hotels, Motels, Resorts",GPC
18/10/2019 to 18/11/2019,C&YPS-Non Delegated,Thinktank,12/11/2019,24,Other Equipment & Materials - General,Tourist Attractions and Exhibits,GPC
18/10/2019 to 18/11/2019,C&YPS-Non Delegated,Topsham House Day Nurs,07/11/2019,61.75,Other Transfer Payments - Section 23 Grants,Child Care Services,GPC
18/10/2019 to 18/11/2019,C&YPS-Non Delegated,Trainline,31/10/2019,34.12,Other Transfer Payments - General,Unknown,GPC
18/10/2019 to 18/11/2019,C&YPS-Non Delegated,Trainline.Com,15/11/2019,109.33,Casual/Essential - General,Passenger Railways,GPC
18/10/2019 to 18/11/2019,C&YPS-Non Delegated,Trainline.Com,07/11/2019,9.51,Public Transport -  Staff - General,Passenger Railways,GPC
18/10/2019 to 18/11/2019,C&YPS-Non Delegated,Trainline.Com,26/10/2019,108.31,Training Expenses - General,Unknown,GPC
18/10/2019 to 18/11/2019,C&YPS-Non Delegated,Treezy,23/10/2019,26.49,General Equipment - General,Schools and Educational Services-Not Elsewhere Cla,GPC
18/10/2019 to 18/11/2019,C&YPS-Non Delegated,Tvlicensing.Co.Uk,31/10/2019,154.5,Other Premises Expenses - General,Unknown,GPC
18/10/2019 to 18/11/2019,C&YPS-Non Delegated,Uk-Sba,01/11/2019,95,Training Expenses - General,Membership Organizations-Not Elsewhere Classified,GPC
18/10/2019 to 18/11/2019,C&YPS-Non Delegated,Upper Crust-12941713,12/11/2019,14.65,Other Equipment & Materials - General,Fast-Food Restaurants (Quick Payment Service Pilot,GPC
18/10/2019 to 18/11/2019,C&YPS-Non Delegated,Very,07/11/2019,556.97,Other Transfer Payments - Leaving Care Grants,Catalog Merchants,GPC
18/10/2019 to 18/11/2019,C&YPS-Non Delegated,Welcome Break,04/11/2019,341.79,Other Agency & Cont Services - LCT/LAC (Not Fostered),"Lodging-Hotels, Motels, Resorts",GPC
18/10/2019 to 18/11/2019,C&YPS-Non Delegated,Welcome Break,11/11/2019,271.58,Other Agency & Cont Services - LCT/LAC (Not Fostered),"Lodging-Hotels, Motels, Resorts",GPC
18/10/2019 to 18/11/2019,C&YPS-Non Delegated,Welcome Break,12/11/2019,58.33,Other Transfer Payments - Sector 17- Other,"Lodging-Hotels, Motels, Resorts",GPC
18/10/2019 to 18/11/2019,C&YPS-Non Delegated,Welcome Break,24/10/2019,4.4,Provisions - General,Unknown,GPC
18/10/2019 to 18/11/2019,C&YPS-Non Delegated,Westminster Insight,08/11/2019,315,Training Expenses - General,Schools and Educational Services-Not Elsewhere Cla,GPC
18/10/2019 to 18/11/2019,C&YPS-Non Delegated,White Ribbon Uk,01/11/2019,203.5,Other Equipment & Materials - General,Men's And Women's Clothing Stores,GPC
18/10/2019 to 18/11/2019,C&YPS-Non Delegated,White Ribbon Uk,04/11/2019,203.5,Other Equipment & Materials - General,Men's And Women's Clothing Stores,GPC
18/10/2019 to 18/11/2019,C&YPS-Non Delegated,Whsmith,07/11/2019,6.78,Other Equipment & Materials - General,"Grocery Stores, Supermarkets",GPC
18/10/2019 to 18/11/2019,C&YPS-Non Delegated,Wilko Retail Limit,26/10/2019,5.83,General Equipment - General,Unknown,GPC
18/10/2019 to 18/11/2019,C&YPS-Non Delegated,Wilko Retail Limit,17/10/2019,41.29,Other Expenditure - General,Household Appliance Stores,GPC
18/10/2019 to 18/11/2019,C&YPS-Non Delegated,Wilko Retail Limit,22/10/2019,11,Other Expenditure - General,Unknown,GPC
18/10/2019 to 18/11/2019,C&YPS-Non Delegated,Wilko Retail Limited,11/11/2019,4.17,Other Transfer Payments - Section 23 Grants,Miscellaneous General Merchandise Stores,GPC
18/10/2019 to 18/11/2019,C&YPS-Non Delegated,Wm Morrisons Store,28/10/2019,25,Other Equipment & Materials - General,Unknown,GPC
18/10/2019 to 18/11/2019,C&YPS-Non Delegated,Wm Morrisons Store,13/11/2019,9.75,Other Transfer Payments - General,"Grocery Stores, Supermarkets",GPC
18/10/2019 to 18/11/2019,C&YPS-Non Delegated,Wm Morrisons Store,13/11/2019,3,Other Transfer Payments - General,"Grocery Stores, Supermarkets",GPC
18/10/2019 to 18/11/2019,C&YPS-Non Delegated,Wm Morrisons Store,12/11/2019,25,Other Transfer Payments - Leaving Care Grants,"Grocery Stores, Supermarkets",GPC
18/10/2019 to 18/11/2019,C&YPS-Non Delegated,Wm Morrisons Store,25/10/2019,4.75,Other Transfer Payments - Section 24,Unknown,GPC
18/10/2019 to 18/11/2019,C&YPS-Non Delegated,Wm Morrisons Store,05/11/2019,10,Provisions - General,"Grocery Stores, Supermarkets",GPC
18/10/2019 to 18/11/2019,C&YPS-Non Delegated,Wm Morrisons Store,05/11/2019,1.95,Provisions - General,"Grocery Stores, Supermarkets",GPC
18/10/2019 to 18/11/2019,C&YPS-Non Delegated,Wp-Warwickshire Co,31/10/2019,11,Other Expenditure - General,Unknown,GPC
18/10/2019 to 18/11/2019,C&YPS-Non Delegated,Wp-Warwickshire Co,21/10/2019,11,Other Transfer Payments - Section 23 Grants,Government Services-Not Elsewhere Classified,GPC
18/10/2019 to 18/11/2019,C&YPS-Non Delegated,Www.Anyvan.Com,31/10/2019,132,Other Transfer Payments - General,Unknown,GPC
18/10/2019 to 18/11/2019,C&YPS-Non Delegated,Www.Argos.Co.Uk,23/10/2019,207.91,Other Equipment & Materials - General,Unknown,GPC
18/10/2019 to 18/11/2019,C&YPS-Non Delegated,Www.Argos.Co.Uk,18/10/2019,-299.99,Other Transfer Payments - Leaving Care Grants,Discount Stores,GPC
18/10/2019 to 18/11/2019,C&YPS-Non Delegated,Www.Argos.Co.Uk,21/10/2019,116.93,Other Transfer Payments - Leaving Care Grants,Unknown,GPC
18/10/2019 to 18/11/2019,C&YPS-Non Delegated,Www.Argos.Co.Uk,06/11/2019,492.93,Other Transfer Payments - Leaving Care Grants,Discount Stores,GPC
18/10/2019 to 18/11/2019,C&YPS-Non Delegated,Www.Bristowsutor.C,30/10/2019,250,Other Transfer Payments - General,Unknown,GPC
18/10/2019 to 18/11/2019,C&YPS-Non Delegated,Www.Brooksbymelton.Ac.,01/11/2019,65,Other Equipment & Materials - General,"Theatrical Products (Except Motion Pictures), Tick",GPC
18/10/2019 to 18/11/2019,C&YPS-Non Delegated,Www.Brooksbymelton.Ac.,01/11/2019,32,Other Equipment & Materials - General,"Theatrical Products (Except Motion Pictures), Tick",GPC
18/10/2019 to 18/11/2019,C&YPS-Non Delegated,Www.Carphonewareho,22/10/2019,29.99,Other Expenditure - General,Unknown,GPC
18/10/2019 to 18/11/2019,C&YPS-Non Delegated,Www.Coram.Org.Uk,30/10/2019,11.95,Other Transfer Payments - Section 23 Grants,Unknown,GPC
18/10/2019 to 18/11/2019,C&YPS-Non Delegated,Www.Huntforfun.Co.Uk,17/10/2019,35,Training Expenses - General,"Hobby, Toy, and Game Shops",GPC
18/10/2019 to 18/11/2019,C&YPS-Non Delegated,Www.Ikea.Com,12/11/2019,486.88,Other Equipment & Materials - General,"Furniture, Home Furnishings and Equipment Stores,",GPC
18/10/2019 to 18/11/2019,C&YPS-Non Delegated,Www.Leicestershire.Gov,06/11/2019,9.17,Other Transfer Payments - Section 23 Grants,Government Services-Not Elsewhere Classified,GPC
18/10/2019 to 18/11/2019,C&YPS-Non Delegated,Www.Loughboroughtownha,21/10/2019,18,Other Transfer Payments - Sector 17- Other,"Theatrical Products (Except Motion Pictures), Tick",GPC
18/10/2019 to 18/11/2019,C&YPS-Non Delegated,Www.Physioroom.Com,01/11/2019,11.98,Other Equipment & Materials - General,Miscellaneous General Merchandise Stores,GPC
18/10/2019 to 18/11/2019,C&YPS-Non Delegated,Www.Preschool.Org.Uk,05/11/2019,10.95,Other Expenditure - General,Charitable and Social Service Organizations,GPC
18/10/2019 to 18/11/2019,C&YPS-Non Delegated,Www.Theworks.Co.Uk,30/10/2019,24.4,Other Equipment & Materials - General,Unknown,GPC
18/10/2019 to 18/11/2019,C&YPS-Non Delegated,Www.Tts-Groups.Co.Uk,28/10/2019,60,Other Equipment & Materials - General,Unknown,GPC
18/10/2019 to 18/11/2019,C&YPS-Non Delegated,X-Sport,20/10/2019,12.99,Materials - General,Sporting Goods Stores,GPC
18/10/2019 to 18/11/2019,C&YPS-Schools,Aldi 101 772,19/10/2019,14.49,Provisions - General,"Grocery Stores, Supermarkets",GPC
18/10/2019 to 18/11/2019,C&YPS-Schools,Aldi 16 772,21/10/2019,41.57,Materials - General,Unknown,GPC
18/10/2019 to 18/11/2019,C&YPS-Schools,Aldi 16 772,28/10/2019,41.09,Materials - General,Unknown,GPC
18/10/2019 to 18/11/2019,C&YPS-Schools,Aldi 16 772,04/11/2019,47.66,Provisions - General,"Grocery Stores, Supermarkets",GPC
18/10/2019 to 18/11/2019,C&YPS-Schools,Aldi 16 772,11/11/2019,46.83,Provisions - General,"Grocery Stores, Supermarkets",GPC
18/10/2019 to 18/11/2019,C&YPS-Schools,Amazon Prime*mo6xy3vv4,17/10/2019,6.66,Materials - General,Continuity/Subscription Merchants,GPC
18/10/2019 to 18/11/2019,C&YPS-Schools,Amazon Prime*nt9go5ag5 Am,17/11/2019,6.66,Materials - General,Continuity/Subscription Merchants,GPC
18/10/2019 to 18/11/2019,C&YPS-Schools,Asda Groceries Online,01/11/2019,31.08,Materials - General,"Grocery Stores, Supermarkets",GPC
18/10/2019 to 18/11/2019,C&YPS-Schools,Asda Groceries Online,01/11/2019,-0.5,Materials - General,"Grocery Stores, Supermarkets",GPC
18/10/2019 to 18/11/2019,C&YPS-Schools,Asda Superstore,30/10/2019,41.63,Materials - General,Unknown,GPC
18/10/2019 to 18/11/2019,C&YPS-Schools,Espo,30/10/2019,193.65,Materials - General,Unknown,GPC
18/10/2019 to 18/11/2019,C&YPS-Schools,Espo,05/11/2019,75.73,Other Expenditure - General,Government Services-Not Elsewhere Classified,GPC
18/10/2019 to 18/11/2019,C&YPS-Schools,Sainsburys S/mkts,25/10/2019,14.15,Provisions - General,Unknown,GPC
18/10/2019 to 18/11/2019,C&YPS-Schools,Tesco Stores 5182,28/10/2019,49.95,Materials - General,Unknown,GPC
18/10/2019 to 18/11/2019,C&YPS-Schools,Tesco Stores 5182,01/11/2019,6.4,Provisions - General,"Grocery Stores, Supermarkets",GPC
18/10/2019 to 18/11/2019,C&YPS-Schools,Tesco Stores 6857,21/10/2019,11.6,Materials - General,Unknown,GPC
18/10/2019 to 18/11/2019,C&YPS-Schools,Tts Group Ltd,31/10/2019,34.98,Materials - General,Unknown,GPC
18/10/2019 to 18/11/2019,C&YPS-Schools,Wilko.Com,08/11/2019,136.67,Materials - General,Miscellaneous General Merchandise Stores,GPC
18/10/2019 to 18/11/2019,C&YPS-Schools,Wm Morrisons Store,14/11/2019,9.6,Provisions - General,"Grocery Stores, Supermarkets",GPC
18/10/2019 to 18/11/2019,Chief Executive,Amazon.Co.Uk*mo2bs0ma4,19/10/2019,95.39,Stationery - General,Direct Marketers - Other,GPC
18/10/2019 to 18/11/2019,Chief Executive,Amazon.Co.Uk*r90ec1na5,03/11/2019,14.75,Stationery - General,Direct Marketers - Other,GPC
18/10/2019 to 18/11/2019,Chief Executive,Amz*amazon.Co.Uk,17/10/2019,-11.29,Furniture - General,Direct Marketers - Other,GPC
18/10/2019 to 18/11/2019,Chief Executive,Amz*ecom National Limi,06/11/2019,-1.5,Operational Equipment - General,Miscellaneous and Specialty Retail Stores,GPC
18/10/2019 to 18/11/2019,Chief Executive,Amznmktplace,20/10/2019,27.48,Materials - General,Miscellaneous and Specialty Retail Stores,GPC
18/10/2019 to 18/11/2019,Chief Executive,Amznmktplace,30/10/2019,8.48,Materials - General,Unknown,GPC
18/10/2019 to 18/11/2019,Chief Executive,Amznmktplace,31/10/2019,87.49,Materials - General,Unknown,GPC
18/10/2019 to 18/11/2019,Chief Executive,Amznmktplace,31/10/2019,29,Materials - General,Unknown,GPC
18/10/2019 to 18/11/2019,Chief Executive,Amznmktplace,13/11/2019,3.6,Materials - General,Miscellaneous and Specialty Retail Stores,GPC
18/10/2019 to 18/11/2019,Chief Executive,Amznmktplace,27/10/2019,133.18,Operational Equipment - General,Unknown,GPC
18/10/2019 to 18/11/2019,Chief Executive,Amznmktplace,29/10/2019,11.41,Operational Equipment - General,Unknown,GPC
18/10/2019 to 18/11/2019,Chief Executive,Amznmktplace,12/11/2019,340.42,Operational Equipment - General,Miscellaneous and Specialty Retail Stores,GPC
18/10/2019 to 18/11/2019,Chief Executive,Amznmktplace,12/11/2019,29.4,Operational Equipment - General,Miscellaneous and Specialty Retail Stores,GPC
18/10/2019 to 18/11/2019,Chief Executive,Amznmktplace,13/11/2019,15.73,Other Expenditure - General,Miscellaneous and Specialty Retail Stores,GPC
18/10/2019 to 18/11/2019,Chief Executive,Amznmktplace,11/11/2019,15.46,Stationery - General,Miscellaneous and Specialty Retail Stores,GPC
18/10/2019 to 18/11/2019,Chief Executive,Amznmktplace Amazon.Co.Uk,19/10/2019,21.99,Materials - General,Miscellaneous and Specialty Retail Stores,GPC
18/10/2019 to 18/11/2019,Chief Executive,Amznmktplace Amazon.Co.Uk,22/10/2019,17.94,Materials - General,Miscellaneous and Specialty Retail Stores,GPC
18/10/2019 to 18/11/2019,Chief Executive,Amznmktplace Amazon.Co.Uk,29/10/2019,7.46,Materials - General,Unknown,GPC
18/10/2019 to 18/11/2019,Chief Executive,Amznmktplace Amazon.Co.Uk,30/10/2019,22.46,Materials - General,Unknown,GPC
18/10/2019 to 18/11/2019,Chief Executive,Amznmktplace Amazon.Co.Uk,10/11/2019,13.65,Materials - General,Miscellaneous and Specialty Retail Stores,GPC
18/10/2019 to 18/11/2019,Chief Executive,Amznmktplace Amazon.Co.Uk,25/10/2019,29.16,Stationery - General,Unknown,GPC
18/10/2019 to 18/11/2019,Chief Executive,Brooksby Enterprises L,06/11/2019,404.17,Other Expenditure - General,Schools and Educational Services-Not Elsewhere Cla,GPC
18/10/2019 to 18/11/2019,Chief Executive,Eb *beyond 2019,23/10/2019,210.44,Conference - General,Business Services-Not Elsewhere Classified,GPC
18/10/2019 to 18/11/2019,Chief Executive,Gen Register Office,28/10/2019,45.25,Other Expenditure - Legal Expenses,Government Services-Not Elsewhere Classified,GPC
18/10/2019 to 18/11/2019,Chief Executive,Klarstein.Co.Uk Chal-Tec,06/11/2019,174.98,Materials - General,"RADIO, TELEVISION, AND STEREO STORES (ELECTRONIC STORES)",GPC
18/10/2019 to 18/11/2019,Chief Executive,Lineonline,06/11/2019,350.66,Materials - General,Hardware Stores,GPC
18/10/2019 to 18/11/2019,Chief Executive,London Borough Of,17/10/2019,35,Training Expenses - General,Government Services-Not Elsewhere Classified,GPC
18/10/2019 to 18/11/2019,Chief Executive,Ncp Limited,15/11/2019,9.5,Casual/Essential - General,Automobile Parking Lots and Garages,GPC
18/10/2019 to 18/11/2019,Chief Executive,Paypal *easymorph,30/10/2019,803.01,IT Equipment - General,Unknown,GPC
18/10/2019 to 18/11/2019,Chief Executive,Roundwin Limited,11/11/2019,10.7,Contract Hire - General,"Laundry, Cleaning, and Garment Services",GPC
18/10/2019 to 18/11/2019,Chief Executive,Royal Mail,29/10/2019,102.5,Postal Services - General,Unknown,GPC
18/10/2019 to 18/11/2019,Chief Executive,Sam Turner And Sons Ltd,30/10/2019,42.41,Protective Clothing & Uniforms - General,Unknown,GPC
18/10/2019 to 18/11/2019,Chief Executive,Screwfix Direct,29/10/2019,233.33,Operational Equipment - General,Unknown,GPC
18/10/2019 to 18/11/2019,Chief Executive,Tesco Store 2849,26/10/2019,4.11,Materials - General,Unknown,GPC
18/10/2019 to 18/11/2019,Chief Executive,Times Newspapers Ltd,28/10/2019,26,Newspapers & Periodicals - General,Unknown,GPC
18/10/2019 to 18/11/2019,Chief Executive,Tramlink Nottingham Limit,22/10/2019,12,Casual/Essential - General,Unknown,GPC
18/10/2019 to 18/11/2019,Chief Executive,Tramlink Nottingham Limit,07/11/2019,8,Casual/Essential - General,Local and Suburban Commuter Pass Trans,GPC
18/10/2019 to 18/11/2019,Chief Executive,Vodafone Ps,23/10/2019,25,Telephones - General,Unknown,GPC
18/10/2019 to 18/11/2019,Chief Executive,W A Products Uk,05/11/2019,169.5,Operational Equipment - General,Durable Goods Not Elsewhere Classified,GPC
18/10/2019 to 18/11/2019,Chief Executive,Warwick Register Office,01/11/2019,35,Other Expenditure - General,Government Services-Not Elsewhere Classified,GPC
18/10/2019 to 18/11/2019,Chief Executive,Www.Broxap.Com,05/11/2019,124,Operational Equipment - General,Unknown,GPC
18/10/2019 to 18/11/2019,Chief Executive,Www.Johnlewis.Com,14/11/2019,33.52,Operational Equipment - General,Department Stores,GPC
18/10/2019 to 18/11/2019,Chief Executive,Www.Neopost.Co.Uk,29/10/2019,500,Stationery - General,Unknown,GPC
18/10/2019 to 18/11/2019,Chief Executive,Information not known,06/11/2019,-350.66,Materials - General,Unknown,GPC
18/10/2019 to 18/11/2019,Chief Executive,Information not known,06/11/2019,-174.98,Materials - General,Unknown,GPC
18/10/2019 to 18/11/2019,Chief Executive,Information not known,07/11/2019,0,Other Expenditure - General,Unknown,GPC
18/10/2019 to 18/11/2019,Corporate Resources,A T Houghton,28/10/2019,8.7,Other Services - General,Unknown,GPC
18/10/2019 to 18/11/2019,Corporate Resources,A4labelscom,12/11/2019,79.8,Stationery - General,Durable Goods Not Elsewhere Classified,GPC
18/10/2019 to 18/11/2019,Corporate Resources,Abrsm,01/11/2019,16.5,Subscriptions - General,Charitable and Social Service Organizations,GPC
18/10/2019 to 18/11/2019,Corporate Resources,Aldi 19 772,17/10/2019,2.88,Other Expenditure - General,"Grocery Stores, Supermarkets",GPC
18/10/2019 to 18/11/2019,Corporate Resources,All Screwed Up Ltd,12/11/2019,24.74,Materials - General,Hardware Stores,GPC
18/10/2019 to 18/11/2019,Corporate Resources,Amazon.Co.Uk*4z92z6ei5,07/11/2019,10,Other Expenditure - General,Direct Marketers - Other,GPC
18/10/2019 to 18/11/2019,Corporate Resources,Amazon.Co.Uk*9g94m3hk5,30/10/2019,9.57,Catering Equipment - General,Unknown,GPC
18/10/2019 to 18/11/2019,Corporate Resources,Amazon.Co.Uk*cl7926bp5 Am,14/11/2019,36.66,Stationery - General,Miscellaneous and Specialty Retail Stores,GPC
18/10/2019 to 18/11/2019,Corporate Resources,Amazon.Co.Uk*i96xv29z5 Am,06/11/2019,8.75,Other Equipment & Materials - General,Miscellaneous and Specialty Retail Stores,GPC
18/10/2019 to 18/11/2019,Corporate Resources,Amazon.Co.Uk*ma5q49v15 Am,10/11/2019,3.03,Operational Equipment - General,Miscellaneous and Specialty Retail Stores,GPC
18/10/2019 to 18/11/2019,Corporate Resources,Amazon.Co.Uk*mo0a95hf4,20/10/2019,8.33,Other Expenditure - General,Direct Marketers - Other,GPC
18/10/2019 to 18/11/2019,Corporate Resources,Amazon.Co.Uk*mo25v2bx4,22/10/2019,18.3,Other Expenditure - General,Direct Marketers - Other,GPC
18/10/2019 to 18/11/2019,Corporate Resources,Amazon.Co.Uk*pu0s45425,09/11/2019,31.98,Other Expenditure - General,Direct Marketers - Other,GPC
18/10/2019 to 18/11/2019,Corporate Resources,Amazon.Co.Uk*ud36l56q5,12/11/2019,2.78,Stationery - General,Direct Marketers - Other,GPC
18/10/2019 to 18/11/2019,Corporate Resources,Amznmktplace,17/10/2019,92.83,Catering Equipment - General,Miscellaneous and Specialty Retail Stores,GPC
18/10/2019 to 18/11/2019,Corporate Resources,Amznmktplace,04/11/2019,25.68,Catering Equipment - General,Miscellaneous and Specialty Retail Stores,GPC
18/10/2019 to 18/11/2019,Corporate Resources,Amznmktplace,02/11/2019,44.76,IT Equipment - General,Miscellaneous and Specialty Retail Stores,GPC
18/10/2019 to 18/11/2019,Corporate Resources,Amznmktplace,18/10/2019,66.73,IT Equipment - Purchase - Hardware,Miscellaneous and Specialty Retail Stores,GPC
18/10/2019 to 18/11/2019,Corporate Resources,Amznmktplace,18/10/2019,24.99,IT Equipment - Purchase - Hardware,Miscellaneous and Specialty Retail Stores,GPC
18/10/2019 to 18/11/2019,Corporate Resources,Amznmktplace,24/10/2019,126.8,IT Equipment - Purchase - Hardware,Unknown,GPC
18/10/2019 to 18/11/2019,Corporate Resources,Amznmktplace,24/10/2019,7.92,Materials - General,Unknown,GPC
18/10/2019 to 18/11/2019,Corporate Resources,Amznmktplace,27/10/2019,18.33,Materials - General,Unknown,GPC
18/10/2019 to 18/11/2019,Corporate Resources,Amznmktplace,28/10/2019,35.98,Materials - General,Unknown,GPC
18/10/2019 to 18/11/2019,Corporate Resources,Amznmktplace,28/10/2019,2.42,Materials - General,Unknown,GPC
18/10/2019 to 18/11/2019,Corporate Resources,Amznmktplace,31/10/2019,13.73,Materials - General,Unknown,GPC
18/10/2019 to 18/11/2019,Corporate Resources,Amznmktplace,07/11/2019,9.48,Materials - General,Miscellaneous and Specialty Retail Stores,GPC
18/10/2019 to 18/11/2019,Corporate Resources,Amznmktplace,11/11/2019,38.68,Materials - General,Miscellaneous and Specialty Retail Stores,GPC
18/10/2019 to 18/11/2019,Corporate Resources,Amznmktplace,12/11/2019,17.97,Materials - General,Miscellaneous and Specialty Retail Stores,GPC
18/10/2019 to 18/11/2019,Corporate Resources,Amznmktplace,13/11/2019,35.73,Materials - General,Miscellaneous and Specialty Retail Stores,GPC
18/10/2019 to 18/11/2019,Corporate Resources,Amznmktplace,15/11/2019,26.91,Materials - General,Miscellaneous and Specialty Retail Stores,GPC
18/10/2019 to 18/11/2019,Corporate Resources,Amznmktplace,22/10/2019,22.49,Operational Equipment - General,Miscellaneous and Specialty Retail Stores,GPC
18/10/2019 to 18/11/2019,Corporate Resources,Amznmktplace,22/10/2019,15.83,Operational Equipment - General,Miscellaneous and Specialty Retail Stores,GPC
18/10/2019 to 18/11/2019,Corporate Resources,Amznmktplace,07/11/2019,8.42,Operational Equipment - General,Miscellaneous and Specialty Retail Stores,GPC
18/10/2019 to 18/11/2019,Corporate Resources,Amznmktplace,12/11/2019,11.5,Operational Equipment - General,Miscellaneous and Specialty Retail Stores,GPC
18/10/2019 to 18/11/2019,Corporate Resources,Amznmktplace,12/11/2019,129.92,Operational Equipment - General,Miscellaneous and Specialty Retail Stores,GPC
18/10/2019 to 18/11/2019,Corporate Resources,Amznmktplace,11/11/2019,16.31,Other Expenditure - General,Miscellaneous and Specialty Retail Stores,GPC
18/10/2019 to 18/11/2019,Corporate Resources,Amznmktplace,27/10/2019,36.63,Other Services - General,Unknown,GPC
18/10/2019 to 18/11/2019,Corporate Resources,Amznmktplace,04/11/2019,8,Other Services - General,Miscellaneous and Specialty Retail Stores,GPC
18/10/2019 to 18/11/2019,Corporate Resources,Amznmktplace,18/10/2019,10.75,Rech to other revenue accounts - General,Miscellaneous and Specialty Retail Stores,GPC
18/10/2019 to 18/11/2019,Corporate Resources,Amznmktplace,07/11/2019,12.5,Rech to other revenue accounts - General,Miscellaneous and Specialty Retail Stores,GPC
18/10/2019 to 18/11/2019,Corporate Resources,Amznmktplace,12/11/2019,7.54,Rech to other revenue accounts - General,Miscellaneous and Specialty Retail Stores,GPC
18/10/2019 to 18/11/2019,Corporate Resources,Amznmktplace,06/11/2019,26.91,Stationery - General,Miscellaneous and Specialty Retail Stores,GPC
18/10/2019 to 18/11/2019,Corporate Resources,Amznmktplace Amazon.Co.Uk,18/10/2019,7.99,Materials - General,Miscellaneous and Specialty Retail Stores,GPC
18/10/2019 to 18/11/2019,Corporate Resources,Amznmktplace Amazon.Co.Uk,28/10/2019,66.74,Materials - General,Unknown,GPC
18/10/2019 to 18/11/2019,Corporate Resources,Amznmktplace Amazon.Co.Uk,01/11/2019,195.25,Materials - General,Miscellaneous and Specialty Retail Stores,GPC
18/10/2019 to 18/11/2019,Corporate Resources,Amznmktplace Amazon.Co.Uk,04/11/2019,35.88,Materials - General,Miscellaneous and Specialty Retail Stores,GPC
18/10/2019 to 18/11/2019,Corporate Resources,Amznmktplace Amazon.Co.Uk,08/11/2019,76.66,Materials - General,Miscellaneous and Specialty Retail Stores,GPC
18/10/2019 to 18/11/2019,Corporate Resources,Amznmktplace Amazon.Co.Uk,08/11/2019,-35.88,Materials - General,Miscellaneous and Specialty Retail Stores,GPC
18/10/2019 to 18/11/2019,Corporate Resources,Amznmktplace Amazon.Co.Uk,10/11/2019,32.56,Materials - General,Miscellaneous and Specialty Retail Stores,GPC
18/10/2019 to 18/11/2019,Corporate Resources,Amznmktplace Amazon.Co.Uk,14/11/2019,279.93,Materials - General,Miscellaneous and Specialty Retail Stores,GPC
18/10/2019 to 18/11/2019,Corporate Resources,Amznmktplace Amazon.Co.Uk,14/11/2019,109.99,Materials - General,Miscellaneous and Specialty Retail Stores,GPC
18/10/2019 to 18/11/2019,Corporate Resources,Amznmktplace Amazon.Co.Uk,15/11/2019,7.48,Operational Equipment - General,Miscellaneous and Specialty Retail Stores,GPC
18/10/2019 to 18/11/2019,Corporate Resources,Amznmktplace Amazon.Co.Uk,21/10/2019,13.25,Other Services - General,Miscellaneous and Specialty Retail Stores,GPC
18/10/2019 to 18/11/2019,Corporate Resources,Amznmktplace Amazon.Co.Uk,10/11/2019,28.32,Rech to other revenue accounts - General,Miscellaneous and Specialty Retail Stores,GPC
18/10/2019 to 18/11/2019,Corporate Resources,Anticlimbgu,21/10/2019,703.5,Materials - General,Unknown,GPC
18/10/2019 to 18/11/2019,Corporate Resources,Anticlimbgu,12/11/2019,33.5,Materials - General,Industrial Supplies Not Elsewhere Classified,GPC
18/10/2019 to 18/11/2019,Corporate Resources,Arco Ltd,11/11/2019,126.86,Protective Clothing & Uniforms - General,Industrial Supplies Not Elsewhere Classified,GPC
18/10/2019 to 18/11/2019,Corporate Resources,Arco Ltd,11/11/2019,44.12,Protective Clothing & Uniforms - General,Industrial Supplies Not Elsewhere Classified,GPC
18/10/2019 to 18/11/2019,Corporate Resources,Argos Leic North (Inside,16/11/2019,11.99,Materials - General,Discount Stores,GPC
18/10/2019 to 18/11/2019,Corporate Resources,Asda Stores 4477,25/10/2019,8.33,Materials - General,Unknown,GPC
18/10/2019 to 18/11/2019,Corporate Resources,Asda Stores 4477,22/10/2019,5.29,Other Expenditure - General,Unknown,GPC
18/10/2019 to 18/11/2019,Corporate Resources,Asda Stores 4477,23/10/2019,5.84,Other Expenditure - General,Unknown,GPC
18/10/2019 to 18/11/2019,Corporate Resources,Asda Stores 4477,23/10/2019,7.23,Other Expenditure - General,Unknown,GPC
18/10/2019 to 18/11/2019,Corporate Resources,Asda Stores 4477,30/10/2019,4.75,Other Expenditure - General,Unknown,GPC
18/10/2019 to 18/11/2019,Corporate Resources,Asda Stores 4477,05/11/2019,4.53,Other Expenditure - General,"Grocery Stores, Supermarkets",GPC
18/10/2019 to 18/11/2019,Corporate Resources,Asda Stores 4477,06/11/2019,1.34,Other Expenditure - General,"Grocery Stores, Supermarkets",GPC
18/10/2019 to 18/11/2019,Corporate Resources,Asda Stores 4477,06/11/2019,5.49,Other Expenditure - General,"Grocery Stores, Supermarkets",GPC
18/10/2019 to 18/11/2019,Corporate Resources,Asda Stores 4477,09/11/2019,0.79,Other Expenditure - General,"Grocery Stores, Supermarkets",GPC
18/10/2019 to 18/11/2019,Corporate Resources,Asda Stores 4477,12/11/2019,14.7,Other Expenditure - General,"Grocery Stores, Supermarkets",GPC
18/10/2019 to 18/11/2019,Corporate Resources,Asda Stores 4477,13/11/2019,4.99,Other Expenditure - General,"Grocery Stores, Supermarkets",GPC
18/10/2019 to 18/11/2019,Corporate Resources,Asda Stores 4477,14/11/2019,8.2,Other Expenditure - General,"Grocery Stores, Supermarkets",GPC
18/10/2019 to 18/11/2019,Corporate Resources,Asda Stores 4477,11/11/2019,3.24,Provisions - General,"Grocery Stores, Supermarkets",GPC
18/10/2019 to 18/11/2019,Corporate Resources,Asda Stores 4477,15/11/2019,1.08,Provisions - General,"Grocery Stores, Supermarkets",GPC
18/10/2019 to 18/11/2019,Corporate Resources,Asda Stores 4477,31/10/2019,15,Provisions - Wines & Spirits - (Purchase),Unknown,GPC
18/10/2019 to 18/11/2019,Corporate Resources,Asda Stores 4477,01/11/2019,8.33,Video Recordings - Feature Film Videos,"Grocery Stores, Supermarkets",GPC
18/10/2019 to 18/11/2019,Corporate Resources,Asda Superstore,12/11/2019,50.05,Materials - General,"Grocery Stores, Supermarkets",GPC
18/10/2019 to 18/11/2019,Corporate Resources,Audible.Co.Uk,21/10/2019,7.99,Other Expenditure - General,Continuity/Subscription Merchants,GPC
18/10/2019 to 18/11/2019,Corporate Resources,Basc Membership,30/10/2019,55,Other Services - General,Unknown,GPC
18/10/2019 to 18/11/2019,Corporate Resources,Bridgeconf,30/10/2019,597,Training Expenses - General,Unknown,GPC
18/10/2019 to 18/11/2019,Corporate Resources,Central Eng Coop,21/10/2019,25.27,Other Expenditure - General,Department Stores,GPC
18/10/2019 to 18/11/2019,Corporate Resources,Central Eng Coop R,20/10/2019,9.04,Materials - General,"Grocery Stores, Supermarkets",GPC
18/10/2019 to 18/11/2019,Corporate Resources,Certsure Llp,18/10/2019,700,Training Expenses - General,Miscellaneous and Specialty Retail Stores,GPC
18/10/2019 to 18/11/2019,Corporate Resources,Certsure Llp,18/10/2019,700,Training Expenses - General,Miscellaneous and Specialty Retail Stores,GPC
18/10/2019 to 18/11/2019,Corporate Resources,Cipfa Finance,21/10/2019,400,Training Expenses - General,Miscellaneous and Specialty Retail Stores,GPC
18/10/2019 to 18/11/2019,Corporate Resources,Co-Op Group Food,30/10/2019,1.5,Other Expenditure - General,Unknown,GPC
18/10/2019 to 18/11/2019,Corporate Resources,Co-Op Late Shop,25/10/2019,3.5,Other Expenditure - General,Unknown,GPC
18/10/2019 to 18/11/2019,Corporate Resources,Co-Op Late Shop,10/11/2019,6.7,Other Expenditure - General,"Grocery Stores, Supermarkets",GPC
18/10/2019 to 18/11/2019,Corporate Resources,Co-Op Late Shop,31/10/2019,1.5,Provisions - General,Unknown,GPC
18/10/2019 to 18/11/2019,Corporate Resources,Dell Products,21/10/2019,133.42,IT Equipment - Software,Unknown,GPC
18/10/2019 to 18/11/2019,Corporate Resources,Dobbies,24/10/2019,1.99,Materials - General,Unknown,GPC
18/10/2019 to 18/11/2019,Corporate Resources,Dobbies,24/10/2019,-1.99,Materials - General,Unknown,GPC
18/10/2019 to 18/11/2019,Corporate Resources,Dvla Vehicle Tax,11/11/2019,262.5,Road Licences - General,Government Services-Not Elsewhere Classified,GPC
18/10/2019 to 18/11/2019,Corporate Resources,Dvla Vehicle Tax,11/11/2019,262.5,Road Licences - General,Government Services-Not Elsewhere Classified,GPC
18/10/2019 to 18/11/2019,Corporate Resources,Dvla Vehicle Tax,11/11/2019,167.5,Road Licences - General,Government Services-Not Elsewhere Classified,GPC
18/10/2019 to 18/11/2019,Corporate Resources,Dvla Vehicle Tax,14/11/2019,262.5,Road Licences - General,Government Services-Not Elsewhere Classified,GPC
18/10/2019 to 18/11/2019,Corporate Resources,Dvla Vehicle Tax,14/11/2019,262.5,Road Licences - General,Government Services-Not Elsewhere Classified,GPC
18/10/2019 to 18/11/2019,Corporate Resources,Dvla Vehicle Tax,14/11/2019,262.5,Road Licences - General,Government Services-Not Elsewhere Classified,GPC
18/10/2019 to 18/11/2019,Corporate Resources,Dvla Vehicle Tax,14/11/2019,262.5,Road Licences - General,Government Services-Not Elsewhere Classified,GPC
18/10/2019 to 18/11/2019,Corporate Resources,Eb *learning Pool Live,15/11/2019,297,Training Expenses - General,Business Services-Not Elsewhere Classified,GPC
18/10/2019 to 18/11/2019,Corporate Resources,Essentialphoto.Co.,14/11/2019,31.66,Operational Equipment - General,Camera and Photographic Supply Stores,GPC
18/10/2019 to 18/11/2019,Corporate Resources,Essentra Packaging,21/10/2019,666,Other LCC Funds - General,Professional Services-Not Elsewhere Classified,GPC
18/10/2019 to 18/11/2019,Corporate Resources,Extremegb Ltd,24/10/2019,77.16,Protective Clothing & Uniforms - General,Unknown,GPC
18/10/2019 to 18/11/2019,Corporate Resources,F Redfern & Sons Ltd,18/10/2019,26.4,Other Expenditure - Public Enquiry fees,Funeral Service and Crematories,GPC
18/10/2019 to 18/11/2019,Corporate Resources,Facebk *mxaf7p6te2,31/10/2019,128.45,Publicity/Marketing - Information Provision,Unknown,GPC
18/10/2019 to 18/11/2019,Corporate Resources,Facebk *xzg4hpjte2,24/10/2019,600,Publicity/Marketing - Information Provision,Advertising Services,GPC
18/10/2019 to 18/11/2019,Corporate Resources,Facebk 2dh3nm2l52,22/10/2019,495,Publicity/Marketing - Information Provision,Advertising Services,GPC
18/10/2019 to 18/11/2019,Corporate Resources,Facebk Dxdkjp24k2,31/10/2019,162.05,Publicity/Marketing - Information Provision,Unknown,GPC
18/10/2019 to 18/11/2019,Corporate Resources,Facebk N3v9rnnl52,31/10/2019,118.89,Publicity/Marketing - Information Provision,Unknown,GPC
18/10/2019 to 18/11/2019,Corporate Resources,Facebk P6bvvnwk52,24/10/2019,28.6,Publicity/Marketing - Information Provision,Advertising Services,GPC
18/10/2019 to 18/11/2019,Corporate Resources,Full Circle Events & E,05/11/2019,4000,Other Equipment & Materials - General,Business Services-Not Elsewhere Classified,GPC
18/10/2019 to 18/11/2019,Corporate Resources,Full Circle Events & E,11/11/2019,2300,Other Equipment & Materials - General,Business Services-Not Elsewhere Classified,GPC
18/10/2019 to 18/11/2019,Corporate Resources,Go-Dive,29/10/2019,10.49,Other Expenditure - General,Unknown,GPC
18/10/2019 to 18/11/2019,Corporate Resources,Google *ads3070599614,21/10/2019,500,Other Expenditure - General,Continuity/Subscription Merchants,GPC
18/10/2019 to 18/11/2019,Corporate Resources,Google *ads3070599614,15/11/2019,500,Other Expenditure - General,Continuity/Subscription Merchants,GPC
18/10/2019 to 18/11/2019,Corporate Resources,Harvest Forecast,29/10/2019,39.05,IT Equipment - Software,Unknown,GPC
18/10/2019 to 18/11/2019,Corporate Resources,Highspeedtraining.Co.U,13/11/2019,30,Training Expenses - General,Business and Secretarial Schools,GPC
18/10/2019 to 18/11/2019,Corporate Resources,Hoo*hootsuite Inc,30/10/2019,8.67,Other Equipment & Materials - General,Unknown,GPC
18/10/2019 to 18/11/2019,Corporate Resources,Hotel On Booking.Com Shel,24/10/2019,165.62,Subsistence - General,"Lodging-Hotels, Motels, Resorts",GPC
18/10/2019 to 18/11/2019,Corporate Resources,Hse,06/11/2019,25,Subscriptions - General,Government Services-Not Elsewhere Classified,GPC
18/10/2019 to 18/11/2019,Corporate Resources,Imagin Products Ltd,05/11/2019,88.56,Printing - General,Photographic Studios,GPC
18/10/2019 to 18/11/2019,Corporate Resources,J.W. Pepper,12/11/2019,8.39,Materials - General,"Music Stores-Musical Instruments, Pianos, Sheet Mu",GPC
18/10/2019 to 18/11/2019,Corporate Resources,Knights Professional S,06/11/2019,1666.67,Training Expenses - General,"Legal Services, Attorneys",GPC
18/10/2019 to 18/11/2019,Corporate Resources,Knights Professional S,06/11/2019,968.48,Training Expenses - General,"Legal Services, Attorneys",GPC
18/10/2019 to 18/11/2019,Corporate Resources,Lcc Tithe Barn,15/11/2019,3.8,Other Expenditure - General,"Eating Places, Restaurants",GPC
18/10/2019 to 18/11/2019,Corporate Resources,Le Fevres Stores,07/11/2019,3.73,Other Expenditure - General,"Grocery Stores, Supermarkets",GPC
18/10/2019 to 18/11/2019,Corporate Resources,Le Fevres Stores,15/11/2019,7.18,Other Expenditure - General,"Grocery Stores, Supermarkets",GPC
18/10/2019 to 18/11/2019,Corporate Resources,Linkedin-415*2037116,18/10/2019,97.18,Other Expenditure - General,Continuity/Subscription Merchants,GPC
18/10/2019 to 18/11/2019,Corporate Resources,Linkedin-415*5925956,20/10/2019,96.94,Other Expenditure - General,Continuity/Subscription Merchants,GPC
18/10/2019 to 18/11/2019,Corporate Resources,Linkedin-415*9529566,22/10/2019,97.06,Other Expenditure - General,Continuity/Subscription Merchants,GPC
18/10/2019 to 18/11/2019,Corporate Resources,Linkedin-416*4633056,24/10/2019,97.45,Other Expenditure - General,Unknown,GPC
18/10/2019 to 18/11/2019,Corporate Resources,Linkedin-416*9172906,26/10/2019,97.43,Other Expenditure - General,Unknown,GPC
18/10/2019 to 18/11/2019,Corporate Resources,Linkedin-417*2613896,28/10/2019,97.01,Other Expenditure - General,Unknown,GPC
18/10/2019 to 18/11/2019,Corporate Resources,Linkedin-417*7372656,30/10/2019,97.06,Other Expenditure - General,Unknown,GPC
18/10/2019 to 18/11/2019,Corporate Resources,Linkedin-418*2309536,01/11/2019,15.01,Other Expenditure - General,Continuity/Subscription Merchants,GPC
18/10/2019 to 18/11/2019,Corporate Resources,Linkedin-503*7764754,17/10/2019,593.12,Other Expenditure - General,Continuity/Subscription Merchants,GPC
18/10/2019 to 18/11/2019,Corporate Resources,Marks&spencer Plc Sf,30/10/2019,72.18,Materials - General,Unknown,GPC
18/10/2019 to 18/11/2019,Corporate Resources,Mbl Seminars,24/10/2019,120,Training Expenses - General,Schools and Educational Services-Not Elsewhere Cla,GPC
18/10/2019 to 18/11/2019,Corporate Resources,Measham Hardware,24/10/2019,4.99,R & M of Buildings - General,Unknown,GPC
18/10/2019 to 18/11/2019,Corporate Resources,Mhfa England Cic Ltd,12/11/2019,66.67,Training Expenses - General,Charitable and Social Service Organizations,GPC
18/10/2019 to 18/11/2019,Corporate Resources,Msft *<e02009ahmk>,31/10/2019,571.92,IT Equipment - Software,Unknown,GPC
18/10/2019 to 18/11/2019,Corporate Resources,Natural World Pet Stor,19/10/2019,41.99,Other Services - General,Pet Shops-Pet Food and Supplies,GPC
18/10/2019 to 18/11/2019,Corporate Resources,Nec Car Parks,11/11/2019,12,Casual/Essential - General,Automobile Parking Lots and Garages,GPC
18/10/2019 to 18/11/2019,Corporate Resources,Nec Car Parks,11/11/2019,12,Casual/Essential - General,Automobile Parking Lots and Garages,GPC
18/10/2019 to 18/11/2019,Corporate Resources,Nec Car Parks,11/11/2019,12,Casual/Essential - General,Automobile Parking Lots and Garages,GPC
18/10/2019 to 18/11/2019,Corporate Resources,Norton Park,14/11/2019,255,Training Expenses - General,"Lodging-Hotels, Motels, Resorts",GPC
18/10/2019 to 18/11/2019,Corporate Resources,Nwldc Card Payment,28/10/2019,116,Other Expenditure - General,Government Services-Not Elsewhere Classified,GPC
18/10/2019 to 18/11/2019,Corporate Resources,Oscars Pet Foods,22/10/2019,30,Materials - General,Pet Shops-Pet Food and Supplies,GPC
18/10/2019 to 18/11/2019,Corporate Resources,Oscars Pet Foods,05/11/2019,20,Materials - General,Pet Shops-Pet Food and Supplies,GPC
18/10/2019 to 18/11/2019,Corporate Resources,Oscars Pet Foods,05/11/2019,40,Materials - General,Pet Shops-Pet Food and Supplies,GPC
18/10/2019 to 18/11/2019,Corporate Resources,Paddle.Net* Teleprompt,25/10/2019,5.99,Other Expenditure - General,Unknown,GPC
18/10/2019 to 18/11/2019,Corporate Resources,Paypal *ebay Vixg83,18/10/2019,9.65,Materials - General,Miscellaneous and Specialty Retail Stores,GPC
18/10/2019 to 18/11/2019,Corporate Resources,Paypal *rtpi,04/11/2019,230,Training Expenses - General,Charitable and Social Service Organizations,GPC
18/10/2019 to 18/11/2019,Corporate Resources,Pochins Loughborough,07/11/2019,7.74,Other Services - General,Plumbing and Heating Equipment,GPC
18/10/2019 to 18/11/2019,Corporate Resources,Rose & Radish,31/10/2019,16.08,Provisions - General,Unknown,GPC
18/10/2019 to 18/11/2019,Corporate Resources,Safetysignsup.Couk,01/11/2019,54.39,Rech to other revenue accounts - General,"Commercial Photography, Art, Graphics",GPC
18/10/2019 to 18/11/2019,Corporate Resources,Sainsburys S/Mkts,12/11/2019,24.4,Materials - General,"Grocery Stores, Supermarkets",GPC
18/10/2019 to 18/11/2019,Corporate Resources,School Library Associa,13/11/2019,355,Training Expenses - General,Schools and Educational Services-Not Elsewhere Cla,GPC
18/10/2019 to 18/11/2019,Corporate Resources,School Library Associa,14/11/2019,62.5,Training Expenses - General,Schools and Educational Services-Not Elsewhere Cla,GPC
18/10/2019 to 18/11/2019,Corporate Resources,Screwfix Coalville,30/10/2019,16.21,Operational Equipment - General,Unknown,GPC
18/10/2019 to 18/11/2019,Corporate Resources,Screwfix Coalville,13/11/2019,10.82,Operational Equipment - General,"Building Materials, Lumber Stores",GPC
18/10/2019 to 18/11/2019,Corporate Resources,Screwfix Coalville,13/11/2019,15.83,Operational Equipment - General,"Building Materials, Lumber Stores",GPC
18/10/2019 to 18/11/2019,Corporate Resources,Screwfix Coalville,04/11/2019,33.33,Other Expenditure - General,"Building Materials, Lumber Stores",GPC
18/10/2019 to 18/11/2019,Corporate Resources,Screwfix Coalville,25/10/2019,91.96,R & M of Buildings - General,Unknown,GPC
18/10/2019 to 18/11/2019,Corporate Resources,Screwfix Coalville,28/10/2019,38.16,R & M of Buildings - General,Unknown,GPC
18/10/2019 to 18/11/2019,Corporate Resources,Shepshed Auto Spares L,23/10/2019,99.22,Materials - General,Unknown,GPC
18/10/2019 to 18/11/2019,Corporate Resources,Slb Supplies,11/11/2019,36.5,Other Services - General,Pet Shops-Pet Food and Supplies,GPC
18/10/2019 to 18/11/2019,Corporate Resources,Sp * Stonewall Equalit,28/10/2019,130,Materials - General,Unknown,GPC
18/10/2019 to 18/11/2019,Corporate Resources,Spar Melton,08/11/2019,26.95,Materials - General,"Grocery Stores, Supermarkets",GPC
18/10/2019 to 18/11/2019,Corporate Resources,Tesco Stores 2044,15/11/2019,17.35,Other Expenditure - General,"Grocery Stores, Supermarkets",GPC
18/10/2019 to 18/11/2019,Corporate Resources,Tesco Stores 3076,29/10/2019,7.82,Other Expenditure - General,Unknown,GPC
18/10/2019 to 18/11/2019,Corporate Resources,Tesco Stores 5182,11/11/2019,43.6,Materials - General,"Grocery Stores, Supermarkets",GPC
18/10/2019 to 18/11/2019,Corporate Resources,Tesco Stores 5182,12/11/2019,36,Materials - General,"Grocery Stores, Supermarkets",GPC
18/10/2019 to 18/11/2019,Corporate Resources,Tesco Stores 6857,08/11/2019,16.67,R & M of Buildings - General,"Grocery Stores, Supermarkets",GPC
18/10/2019 to 18/11/2019,Corporate Resources,The Black Horse Restaura,11/11/2019,33,Hospitality - General,"Eating Places, Restaurants",GPC
18/10/2019 to 18/11/2019,Corporate Resources,The Christmas Cabin,01/11/2019,63.83,Materials - General,Miscellaneous and Specialty Retail Stores,GPC
18/10/2019 to 18/11/2019,Corporate Resources,The Post Office,20/10/2019,4.99,Other Services - General,Postage Stamps,GPC
18/10/2019 to 18/11/2019,Corporate Resources,The Works,24/10/2019,15,Materials - General,Unknown,GPC
18/10/2019 to 18/11/2019,Corporate Resources,Tp Shepshed,23/10/2019,32,Protective Clothing & Uniforms - General,Unknown,GPC
18/10/2019 to 18/11/2019,Corporate Resources,Trainline,18/10/2019,291.57,Casual/Essential - General,Unknown,GPC
18/10/2019 to 18/11/2019,Corporate Resources,Trainline,12/11/2019,106.5,Casual/Essential - General,Passenger Railways,GPC
18/10/2019 to 18/11/2019,Corporate Resources,Trainline.Com,11/11/2019,147.46,Casual/Essential - General,Passenger Railways,GPC
18/10/2019 to 18/11/2019,Corporate Resources,Tvlicensing.Co.Uk,23/10/2019,154.5,Other Expenditure - General,"Management, Consulting and Public Relations Servic",GPC
18/10/2019 to 18/11/2019,Corporate Resources,Viking Uk,18/10/2019,53.94,Catering Equipment - General,"Stationary, Office Supplies, Printing and Writing",GPC
18/10/2019 to 18/11/2019,Corporate Resources,Vimeo.Com,14/11/2019,189.01,IT Equipment - General,Continuity/Subscription Merchants,GPC
18/10/2019 to 18/11/2019,Corporate Resources,Westminster Forum Proj,05/11/2019,230,Training Expenses - General,"Management, Consulting and Public Relations Servic",GPC
18/10/2019 to 18/11/2019,Corporate Resources,Wickes Ashby De La Zouch,31/10/2019,27.2,Other Services - General,Unknown,GPC
18/10/2019 to 18/11/2019,Corporate Resources,Wickes Ashby De La Zouch,17/11/2019,28,Other Services - General,"Building Materials, Lumber Stores",GPC
18/10/2019 to 18/11/2019,Corporate Resources,Wilko Retail Limited,18/10/2019,25,Other Services - General,Miscellaneous General Merchandise Stores,GPC
18/10/2019 to 18/11/2019,Corporate Resources,Wilko Retail Limited,19/10/2019,19.1,Other Services - General,Miscellaneous General Merchandise Stores,GPC
18/10/2019 to 18/11/2019,Corporate Resources,Willow Select Coff,12/11/2019,50,Provisions - General,Miscellaneous General Merchandise Stores,GPC
18/10/2019 to 18/11/2019,Corporate Resources,Willow Select Coff,12/11/2019,43,Provisions - General,Miscellaneous General Merchandise Stores,GPC
18/10/2019 to 18/11/2019,Corporate Resources,Willow Select Coff,13/11/2019,50,Provisions - General,Miscellaneous General Merchandise Stores,GPC
18/10/2019 to 18/11/2019,Corporate Resources,Winfields Megastore,15/11/2019,39.97,Protective Clothing & Uniforms - General,Tent and Awning Shops,GPC
18/10/2019 to 18/11/2019,Corporate Resources,Wm Morrisons Store,19/10/2019,6,Other Expenditure - General,"Grocery Stores, Supermarkets",GPC
18/10/2019 to 18/11/2019,Corporate Resources,Wm Morrisons Store,28/10/2019,15.6,Other Expenditure - General,Unknown,GPC
18/10/2019 to 18/11/2019,Corporate Resources,Wm Morrisons Store,21/10/2019,13.2,Provisions - General,"Grocery Stores, Supermarkets",GPC
18/10/2019 to 18/11/2019,Corporate Resources,Wm Morrisons Store,25/10/2019,16.61,Provisions - General,Unknown,GPC
18/10/2019 to 18/11/2019,Corporate Resources,Wm Morrisons Store,26/10/2019,10.1,Provisions - General,Unknown,GPC
18/10/2019 to 18/11/2019,Corporate Resources,Workwear Express Limited,06/11/2019,86.53,Protective Clothing & Uniforms - General,"Mens, Womens, and Childerens Uniforms and Commerci",GPC
18/10/2019 to 18/11/2019,Corporate Resources,Workwear Express Limited,06/11/2019,86.53,Protective Clothing & Uniforms - General,"Mens, Womens, and Childerens Uniforms and Commerci",GPC
18/10/2019 to 18/11/2019,Corporate Resources,Www.Apm.Org.Uk,30/10/2019,170,Other Services - General,Unknown,GPC
18/10/2019 to 18/11/2019,Corporate Resources,Www.Box15.Co.Uk,31/10/2019,227.1,Operational Equipment - General,Unknown,GPC
18/10/2019 to 18/11/2019,Corporate Resources,Www.Box15.Co.Uk,01/11/2019,282,Operational Equipment - General,"Furniture, Home Furnishings and Equipment Stores,",GPC
18/10/2019 to 18/11/2019,Corporate Resources,Www.Box15.Co.Uk,01/11/2019,-227.1,Operational Equipment - General,"Furniture, Home Furnishings and Equipment Stores,",GPC
18/10/2019 to 18/11/2019,Corporate Resources,Www.Carpettilewhol,12/11/2019,115,R & M of Buildings - General,Floor Coverings   Stores,GPC
18/10/2019 to 18/11/2019,Corporate Resources,Www.Cipfa.Org.Uk,07/11/2019,161,Subscriptions - General,Membership Organizations-Not Elsewhere Classified,GPC
18/10/2019 to 18/11/2019,Corporate Resources,Www.Cipfa.Org.Uk,07/11/2019,161,Subscriptions - General,Membership Organizations-Not Elsewhere Classified,GPC
18/10/2019 to 18/11/2019,Corporate Resources,Www.Easybooktraining.C,30/10/2019,110,Training Expenses - General,Unknown,GPC
18/10/2019 to 18/11/2019,Corporate Resources,Www.Easybooktraining.C,04/11/2019,110,Training Expenses - General,Business and Secretarial Schools,GPC
18/10/2019 to 18/11/2019,Corporate Resources,Www.Filmbank.Co.Uk,11/11/2019,99.6,Other Equipment & Materials - General,Motion Picture and Video Tape Production,GPC
18/10/2019 to 18/11/2019,Corporate Resources,Www.Lisssport.Co.Uk,24/10/2019,50,Materials - General,Unknown,GPC
18/10/2019 to 18/11/2019,Corporate Resources,Www.Lisssport.Co.Uk,24/10/2019,50,Materials - General,Unknown,GPC
18/10/2019 to 18/11/2019,Corporate Resources,Www.Lisssport.Co.Uk,24/10/2019,50,Materials - General,Unknown,GPC
18/10/2019 to 18/11/2019,Corporate Resources,Www.Presco-Uk.Com,25/10/2019,47.83,Materials - General,Unknown,GPC
18/10/2019 to 18/11/2019,Corporate Resources,Www.Presco-Uk.Com,04/11/2019,179.07,Materials - General,"Stationery, Office, and School Supply Stores",GPC
18/10/2019 to 18/11/2019,Corporate Resources,Www.Ryman.Co.Uk,15/11/2019,52,Stationery - General,"Stationery, Office, and School Supply Stores",GPC
18/10/2019 to 18/11/2019,Corporate Resources,Www.Showdata.Com,05/11/2019,264,Materials - General,Miscellaneous and Specialty Retail Stores,GPC
18/10/2019 to 18/11/2019,Corporate Resources,Www.Studio-Music.C,18/10/2019,40.95,Operational Equipment - General,Unknown,GPC
18/10/2019 to 18/11/2019,Corporate Resources,Www.Theworks.Co.Uk,31/10/2019,444.5,Materials - General,Unknown,GPC
18/10/2019 to 18/11/2019,Corporate Resources,Information not known,30/10/2019,1.07,IT Equipment - Software,Unknown,GPC
18/10/2019 to 18/11/2019,Corporate Resources,Information not known,13/11/2019,0.23,Materials - General,Unknown,GPC
18/10/2019 to 18/11/2019,Corporate Resources,Information not known,31/10/2019,0.32,Other Equipment & Materials - General,Unknown,GPC
18/10/2019 to 18/11/2019,E&T,Amznmktplace,04/11/2019,50.6,Materials - General,Miscellaneous and Specialty Retail Stores,GPC
18/10/2019 to 18/11/2019,E&T,Amznmktplace,06/11/2019,28.72,Materials - General,Miscellaneous and Specialty Retail Stores,GPC
18/10/2019 to 18/11/2019,E&T,Amznmktplace,14/11/2019,815.99,Materials - General,Miscellaneous and Specialty Retail Stores,GPC
18/10/2019 to 18/11/2019,E&T,Amznmktplace,15/11/2019,18.45,Materials - General,Miscellaneous and Specialty Retail Stores,GPC
18/10/2019 to 18/11/2019,E&T,Amznmktplace,17/11/2019,42,Materials - General,Miscellaneous and Specialty Retail Stores,GPC
18/10/2019 to 18/11/2019,E&T,Amznmktplace,08/11/2019,19.99,Other Equipment & Materials - General,Miscellaneous and Specialty Retail Stores,GPC
18/10/2019 to 18/11/2019,E&T,Amznmktplace Amazon.Co.Uk,27/10/2019,58.5,Materials - General,Unknown,GPC
18/10/2019 to 18/11/2019,E&T,Amznmktplace Amazon.Co.Uk,30/10/2019,15.81,Materials - General,Unknown,GPC
18/10/2019 to 18/11/2019,E&T,Argos Retail Group,25/10/2019,89.96,Operational Equipment - Purchase,Unknown,GPC
18/10/2019 to 18/11/2019,E&T,Design Supply Ltd,30/10/2019,66.12,Stationery - General,Unknown,GPC
18/10/2019 to 18/11/2019,E&T,Dvla Vehicle Tax,21/10/2019,262.5,Road Licences - General,Government Services-Not Elsewhere Classified,GPC
18/10/2019 to 18/11/2019,E&T,Dvla Vehicle Tax,21/10/2019,167.5,Road Licences - General,Government Services-Not Elsewhere Classified,GPC
18/10/2019 to 18/11/2019,E&T,Dvla Vehicle Tax,11/11/2019,617.5,Road Licences - General,Government Services-Not Elsewhere Classified,GPC
18/10/2019 to 18/11/2019,E&T,Dvla Vehicle Tax,11/11/2019,262.5,Road Licences - General,Government Services-Not Elsewhere Classified,GPC
18/10/2019 to 18/11/2019,E&T,Dvla Vehicle Tax,11/11/2019,167.5,Road Licences - General,Government Services-Not Elsewhere Classified,GPC
18/10/2019 to 18/11/2019,E&T,Dvla Vehicle Tax,14/11/2019,167.5,Road Licences - General,Government Services-Not Elsewhere Classified,GPC
18/10/2019 to 18/11/2019,E&T,Dvla Vehicle Tax,14/11/2019,167.5,Road Licences - General,Government Services-Not Elsewhere Classified,GPC
18/10/2019 to 18/11/2019,E&T,Dvla Vehicle Tax,14/11/2019,167.5,Road Licences - General,Government Services-Not Elsewhere Classified,GPC
18/10/2019 to 18/11/2019,E&T,Dvla Vehicle Tax,14/11/2019,167.5,Road Licences - General,Government Services-Not Elsewhere Classified,GPC
18/10/2019 to 18/11/2019,E&T,Dvla Vehicle Tax,14/11/2019,167.5,Road Licences - General,Government Services-Not Elsewhere Classified,GPC
18/10/2019 to 18/11/2019,E&T,Dvla Vehicle Tax,14/11/2019,167.5,Road Licences - General,Government Services-Not Elsewhere Classified,GPC
18/10/2019 to 18/11/2019,E&T,Dvla Vehicle Tax,14/11/2019,167.5,Road Licences - General,Government Services-Not Elsewhere Classified,GPC
18/10/2019 to 18/11/2019,E&T,Dvla Vehicle Tax,15/11/2019,167.5,Road Licences - General,Government Services-Not Elsewhere Classified,GPC
18/10/2019 to 18/11/2019,E&T,Dvla Vehicle Tax,15/11/2019,167.5,Road Licences - General,Government Services-Not Elsewhere Classified,GPC
18/10/2019 to 18/11/2019,E&T,Dvla Vehicle Tax,15/11/2019,167.5,Road Licences - General,Government Services-Not Elsewhere Classified,GPC
18/10/2019 to 18/11/2019,E&T,East Midlands Rail,14/11/2019,751.7,Casual/Essential - General,Passenger Railways,GPC
18/10/2019 to 18/11/2019,E&T,East Midlands Rail,17/10/2019,355,Public Transport -  Staff - General,Passenger Railways,GPC
18/10/2019 to 18/11/2019,E&T,East Midlands Rail,30/10/2019,215.1,Public Transport -  Staff - General,Unknown,GPC
18/10/2019 to 18/11/2019,E&T,East Midlands Rail,31/10/2019,46.2,Public Transport -  Staff - General,Unknown,GPC
18/10/2019 to 18/11/2019,E&T,East Midlands Rail,05/11/2019,10.1,Public Transport -  Staff - General,Passenger Railways,GPC
18/10/2019 to 18/11/2019,E&T,East Midlands Rail,05/11/2019,28.6,Public Transport -  Staff - General,Passenger Railways,GPC
18/10/2019 to 18/11/2019,E&T,East Midlands Rail,05/11/2019,18.25,Public Transport -  Staff - General,Passenger Railways,GPC
18/10/2019 to 18/11/2019,E&T,East Midlands Rail,05/11/2019,8.3,Public Transport -  Staff - General,Passenger Railways,GPC
18/10/2019 to 18/11/2019,E&T,East Midlands Rail,05/11/2019,341,Public Transport -  Staff - General,Passenger Railways,GPC
18/10/2019 to 18/11/2019,E&T,East Midlands Rail,06/11/2019,13.4,Public Transport -  Staff - General,Passenger Railways,GPC
18/10/2019 to 18/11/2019,E&T,East Midlands Rail,06/11/2019,19.1,Public Transport -  Staff - General,Passenger Railways,GPC
18/10/2019 to 18/11/2019,E&T,East Midlands Rail,07/11/2019,180.5,Public Transport -  Staff - General,Passenger Railways,GPC
18/10/2019 to 18/11/2019,E&T,East Midlands Rail,07/11/2019,50.5,Public Transport -  Staff - General,Passenger Railways,GPC
18/10/2019 to 18/11/2019,E&T,East Midlands Rail,12/11/2019,37.5,Public Transport -  Staff - General,Passenger Railways,GPC
18/10/2019 to 18/11/2019,E&T,East Midlands Rail,12/11/2019,13.4,Public Transport -  Staff - General,Passenger Railways,GPC
18/10/2019 to 18/11/2019,E&T,East Midlands Rail,12/11/2019,43.5,Public Transport -  Staff - General,Passenger Railways,GPC
18/10/2019 to 18/11/2019,E&T,East Midlands Rail,12/11/2019,13.4,Public Transport -  Staff - General,Passenger Railways,GPC
18/10/2019 to 18/11/2019,E&T,East Midlands Rail,12/11/2019,48.5,Public Transport -  Staff - General,Passenger Railways,GPC
18/10/2019 to 18/11/2019,E&T,East Midlands Rail,12/11/2019,48.5,Public Transport -  Staff - General,Passenger Railways,GPC
18/10/2019 to 18/11/2019,E&T,East Midlands Rail,12/11/2019,48.5,Public Transport -  Staff - General,Passenger Railways,GPC
18/10/2019 to 18/11/2019,E&T,East Midlands Rail,12/11/2019,48.5,Public Transport -  Staff - General,Passenger Railways,GPC
18/10/2019 to 18/11/2019,E&T,East Midlands Rail,12/11/2019,48.5,Public Transport -  Staff - General,Passenger Railways,GPC
18/10/2019 to 18/11/2019,E&T,East Midlands Rail,12/11/2019,48.5,Public Transport -  Staff - General,Passenger Railways,GPC
18/10/2019 to 18/11/2019,E&T,East Midlands Rail,13/11/2019,13.4,Public Transport -  Staff - General,Passenger Railways,GPC
18/10/2019 to 18/11/2019,E&T,East Midlands Rail,14/11/2019,166.35,Public Transport -  Staff - General,Passenger Railways,GPC
18/10/2019 to 18/11/2019,E&T,East Midlands Rail,14/11/2019,189.5,Public Transport -  Staff - General,Passenger Railways,GPC
18/10/2019 to 18/11/2019,E&T,East Midlands Rail,14/11/2019,175.5,Public Transport -  Staff - General,Passenger Railways,GPC
18/10/2019 to 18/11/2019,E&T,East Midlands Trai,06/11/2019,15.6,Casual/Essential - General,Passenger Railways,GPC
18/10/2019 to 18/11/2019,E&T,Espo,25/10/2019,90.5,Stationery - General,Government Services-Not Elsewhere Classified,GPC
18/10/2019 to 18/11/2019,E&T,Espo,25/10/2019,39.9,Stationery - General,Government Services-Not Elsewhere Classified,GPC
18/10/2019 to 18/11/2019,E&T,Espo,08/11/2019,32,Stationery - General,Government Services-Not Elsewhere Classified,GPC
18/10/2019 to 18/11/2019,E&T,Fosse Taxis,28/10/2019,25,Other Allowances/Expenses - General,Unknown,GPC
18/10/2019 to 18/11/2019,E&T,Lace Market Car Park U,06/11/2019,13,Casual/Essential - General,Automobile Parking Lots and Garages,GPC
18/10/2019 to 18/11/2019,E&T,Mitchell Storage&distr,29/10/2019,18,Private Contractors - General,Unknown,GPC
18/10/2019 to 18/11/2019,E&T,National Railcard,15/11/2019,30,Casual/Essential - General,Passenger Railways,GPC
18/10/2019 to 18/11/2019,E&T,Paypal *ebay Wepost Lt,13/11/2019,99.99,Materials - General,Discount Stores,GPC
18/10/2019 to 18/11/2019,E&T,Post Office Counter,31/10/2019,167.5,Road Licences - General,Unknown,GPC
18/10/2019 to 18/11/2019,E&T,Premier Inn44521260,14/11/2019,32.5,Subsistence - General,PREMIER TRAVEL,GPC
18/10/2019 to 18/11/2019,E&T,Showcase Nottingham T,24/10/2019,3.75,Public Transport -  Staff - General,Motion Picture Theatres,GPC
18/10/2019 to 18/11/2019,E&T,Showcase Nottingham T,24/10/2019,8.95,Public Transport -  Staff - General,Motion Picture Theatres,GPC
18/10/2019 to 18/11/2019,E&T,Simplycarmats.Co.U,13/11/2019,32.94,R&M of Vehicles-Non Contract - General,"Automotive Parts, Accessories Stores",GPC
18/10/2019 to 18/11/2019,E&T,Timpson Ltd,28/10/2019,80,Materials - General,Unknown,GPC
18/10/2019 to 18/11/2019,E&T,Trainline.Com,28/10/2019,359,Casual/Essential - General,Unknown,GPC
18/10/2019 to 18/11/2019,E&T,Wickes Building,14/11/2019,223.33,R & M of Buildings - General,"Building Materials, Lumber Stores",GPC
18/10/2019 to 18/11/2019,E&T,Ww.Elepos.Com,05/11/2019,325,Materials - General,Household Appliance Stores,GPC
18/10/2019 to 18/11/2019,E&T,Ww.Elepos.Com,05/11/2019,-325,Materials - General,Household Appliance Stores,GPC
18/10/2019 to 18/11/2019,Public Health,123 Reg Ltd,04/11/2019,35.96,Communications Equipment - General,Computer Network/Information Services,GPC
18/10/2019 to 18/11/2019,Public Health,123 Reg Ltd,14/11/2019,35.96,Other Expenditure - General,Continuity/Subscription Merchants,GPC
18/10/2019 to 18/11/2019,Public Health,3c_*blaby District Cou,30/10/2019,0.5,Subsistence - General,Unknown,GPC
18/10/2019 to 18/11/2019,Public Health,Adobe Id Creative Cld,02/11/2019,75.84,IT Equipment - Licences,Computer Software Stores,GPC
18/10/2019 to 18/11/2019,Public Health,Amazon.Co.Uk*mo2j54hd4 Am,21/10/2019,41.67,Other Equipment & Materials - General,Miscellaneous and Specialty Retail Stores,GPC
18/10/2019 to 18/11/2019,Public Health,Amznmktplace,16/11/2019,16.48,Materials - General,Miscellaneous and Specialty Retail Stores,GPC
18/10/2019 to 18/11/2019,Public Health,Amznmktplace,19/10/2019,50,Other Equipment & Materials - General,Miscellaneous and Specialty Retail Stores,GPC
18/10/2019 to 18/11/2019,Public Health,Amznmktplace,25/10/2019,13.2,Other Equipment & Materials - General,Unknown,GPC
18/10/2019 to 18/11/2019,Public Health,Amznmktplace,25/10/2019,21.22,Other Equipment & Materials - General,Unknown,GPC
18/10/2019 to 18/11/2019,Public Health,Amznmktplace Amazon.Co.Uk,27/10/2019,62.69,Materials - General,Unknown,GPC
18/10/2019 to 18/11/2019,Public Health,Amznmktplace Amazon.Co.Uk,05/11/2019,-58.74,Materials - General,Miscellaneous and Specialty Retail Stores,GPC
18/10/2019 to 18/11/2019,Public Health,Amznmktplace Amazon.Co.Uk,12/11/2019,20.79,Other Equipment & Materials - General,Miscellaneous and Specialty Retail Stores,GPC
18/10/2019 to 18/11/2019,Public Health,Central Eng Coop,22/10/2019,11.31,Materials - General,Unknown,GPC
18/10/2019 to 18/11/2019,Public Health,Charnwood Borough Council,12/11/2019,1.6,Subsistence - General,Automobile Parking Lots and Garages,GPC
18/10/2019 to 18/11/2019,Public Health,East Midlands Trai,12/11/2019,19,Subsistence - General,Passenger Railways,GPC
18/10/2019 to 18/11/2019,Public Health,Eb *nspa Conference 20,04/11/2019,144,Other Equipment & Materials - General,Business Services-Not Elsewhere Classified,GPC
18/10/2019 to 18/11/2019,Public Health,Espo,06/11/2019,24.72,Stationery - General,Government Services-Not Elsewhere Classified,GPC
18/10/2019 to 18/11/2019,Public Health,Gourmet Coffee Bar And Ki,12/11/2019,4.25,Contract Catering - General,"Miscellaneous Food Stores-Convenience Stores, Mark",GPC
18/10/2019 to 18/11/2019,Public Health,Helloprint,18/10/2019,181.14,Printing - Printing ( Outside Firms),Quick Copy and Reproduction Services,GPC
18/10/2019 to 18/11/2019,Public Health,Jd Sports Internet,12/11/2019,23.99,Other Equipment & Materials - General,Sporting Goods Stores,GPC
18/10/2019 to 18/11/2019,Public Health,Makro Self Service,05/11/2019,39.97,Provisions - General,Wholesale Clubs,GPC
18/10/2019 to 18/11/2019,Public Health,Ncp Limited,31/10/2019,9.2,Subsistence - General,Unknown,GPC
18/10/2019 to 18/11/2019,Public Health,Ribbonworks,29/10/2019,98.2,Protective Clothing & Uniforms - General,Unknown,GPC
18/10/2019 to 18/11/2019,Public Health,Sainsburys S/mkts,07/11/2019,32.25,Other Equipment & Materials - General,"Grocery Stores, Supermarkets",GPC
18/10/2019 to 18/11/2019,Public Health,Sp * Stonewall Equalit,08/11/2019,175,Other Equipment & Materials - General,Men's And Women's Clothing Stores,GPC
18/10/2019 to 18/11/2019,Public Health,Spotify Uk,10/11/2019,9.99,Publicity/Marketing - General,"Digital Goods - Media, Books, Movies, Music",GPC
18/10/2019 to 18/11/2019,Public Health,Tesco Store 2849,30/10/2019,65,Materials - General,Unknown,GPC
18/10/2019 to 18/11/2019,Public Health,The Post Office,22/10/2019,40,Postal Services - General,Postage Stamps,GPC
18/10/2019 to 18/11/2019,Public Health,Trainline,28/10/2019,97.12,Public Transport -  Staff - General,Unknown,GPC
18/10/2019 to 18/11/2019,Public Health,Trainline,15/11/2019,216.11,Public Transport -  Staff - General,Passenger Railways,GPC
18/10/2019 to 18/11/2019,Public Health,Trainline.Com,18/10/2019,51.31,Public Transport -  Staff - General,Unknown,GPC
18/10/2019 to 18/11/2019,Public Health,Trainline.Com,08/11/2019,73.73,Public Transport -  Staff - General,Passenger Railways,GPC
18/10/2019 to 18/11/2019,Public Health,Trainline.Com,12/11/2019,65.65,Public Transport -  Staff - General,Passenger Railways,GPC
18/10/2019 to 18/11/2019,Public Health,Travelodge Gb0789,12/11/2019,-3,Subsistence - General,Travelodge,GPC
18/10/2019 to 18/11/2019,Public Health,Www.Leicesterchristmaspa,24/10/2019,108,Other Expenditure - General,"Theatrical Products (Except Motion Pictures), Tick",GPC
18/10/2019 to 18/11/2019,Public Health,Www.Officefurnitureonl,01/11/2019,120,Furniture - General,"Furniture, Home Furnishings and Equipment Stores,",GPC
18/10/2019 to 18/11/2019,Public Health,Www.Theglowcompany.Co.Uk,24/10/2019,103.49,Other Equipment & Materials - General,Unknown,GPC
"**Amounts stated are net of VAT, except where VAT has not been recovered.",,,,,,,
